Workbook

Sheet Application Form (hidden)
B1: =Development!A3&" Residential Rebate Application Form" -> 2023 Residential Rebate Application Form
C2: PSEG Long Island's Residential Central Air Conditioning Program, Central Air Conditioners, Heat Pumps, Ductless Mini Split Systems.
B4: REBATE OPTION 2: Choose any Central Air Conditioning (CAC) Contractor
B6: Directions:
B7: 1. | C7: Customer hires a contractor (at least three estimates are recommended prior to selection).
B8: 2. | C8: Customer has a qualifying system installed.
B9: 3. | C9: ="Customer fills out and signs the "&Development!A3&" Residential Rebate Application Form." -> Customer fills out and signs the 2023 Residential Rebate Application Form.
B10: 4. | C10: ="Customer submits "&Development!A3&" Residential Rebate Application Form and all required documentation listed below. Copy all forms prior to submission/keep a copy for your records." -> Customer submits 2023 Residential Rebate Application Form and all required documentation listed below. Copy all forms prior to submission/keep a copy for your records.
B11: 5. | C11: If all required paperwork is correct and all rebate requirements are fulfilled, a rebate check will be sent to the customer.
B13: Required Documents Checklist:
C18: ▪ | D18: Customer name and installation address matching electric account holder information
C19: ▪ | D19: Equipment manufacturer
C20: ▪ | D20: Condenser model number and serial number
C21: ▪ | D21: Coil/Air Handler model number and serial number
C22: ▪ | D22: Total Cost
C25: Eligible Equipment Table:
B40: Rebate Requirements / Terms and Conditions:
B41: 1. | C41: There must be a PSEG Long Island residential electric account at the installation site in the applicant’s name.
B42: 2. | C42: ="Unit(s) must be purchased and installed between "&TEXT(DATE(Development!A3,1,1),"M/D/YY")&" and "&TEXT(DATE(Development!A3,12,31),"M/D/YY")&"." -> Unit(s) must be purchased and installed between 1/1/23 and 12/31/23.
B43: 3. | C43: ="Rebate application must be submitted within 90 days of purchase and postmarked no later than "&TEXT(DATE(Development!A3,12,31),"M/D/YY")&"." -> Rebate application must be submitted within 90 days of purchase and postmarked no later than 12/31/23.
B44: 4. | C44: Please allow up to 60 days for delivery of the rebate check.
B45: 5. | C45: Some ENERGY STAR® qualified equipment may not be eligible for this rebate. Qualifying units must be listed in the AHRI directory.
B46: 6. | C46: It is the customer’s responsibility to ensure contractor has proper licenses, certifications and insurance. Installation is to be properly permitted (or received authorization). Documents, including but not limited to, permits and surveys are to be provided upon request.
B47: 7. | C47: Replacement of systems less than five years old, that were rebated, are not eligible for a rebate unless the SEER level of the replacement unit is higher than the existing unit by at least one full SEER level.
B48: 8. | C48: All units, including Ductless Mini Split Systems, must be installed with the matching pieces specified in the AHRI directory. These rebates apply to new and replacement total system installations performed during the term of this rebate program. The Condenser (outdoor), and Coil/ Air Handler (indoor) must be installed new and constitute one unit. Partial system replacements do not qualify.
B49: 9. | C49: PSEG Long Island reserves the right to inspect the equipment installation to ensure compliance with program requirements. Failure to allow PSEG Long Island access to the equipment will result in a denial of the rebate application.
B50: 10. | C50: PSEG Long Island is not responsible for any tax liability imposed as a result of rebate payments.
B51: 11. | C51: PSEG Long Island reserves the right to use the customer rebate to credit accounts in arrears.
B52: 12. | C52: PSEG Long Island is not responsible for lost or undeliverable mail or email.
B54: Submit Signed Application Form and all Required Documents:
C55: By Email: Preferred method for timely processing - coolhomesli@pseg.com
C56: By Mail: PSEG Long Island's Residential CAC Program
D57: 395 North Service Road, Suite 409, Melville, NY 11747
B61: Any Questions? Call PSEG Long Island's Infoline at 1-800-692-2626 or visit PSEG Long Island's website for more information at www.psegliny.com/efficiency
B66: =Development!A3&" Residential Rebate Application Form" -> 2023 Residential Rebate Application Form
C67: PSEG Long Island's Residential Central Air Conditioning Program, Central Air Conditioners, Heat Pumps, Ductless Mini Split Systems.
B69: Customer Information:
B71: Your PSEG Long Island Residential Account Number (found on the back of your bill):
B73: Your Name: | H73: E-Mail:
B75: Account/Installation Address:
B77: City: | G77: State: | I77: Zip:
B79: Home Telephone: | G79: Work Telephone:
B81: Mailing Address: (if different)
B83: City: | G83: State: | I83: Zip:
B85: Installation Contractor Name: | I85: Contractor Telephone:
B87: Installation Date:
B89: Product Information:
B91: Unit Number 1:
B93: New Equipment
B94: Manufacturer: | H94: AHRI Reference No:
B95: Condenser Model No. (outdoor): | H95: SEER Rating:
B96: Condenser Serial No. (outdoor): | H96: EER Rating:
B97: Coil/Air Handler Model No. (Indoor): | H97: HSPF Rating (Heat Pump Only):
B98: Coil/Air Handler Serial No. (Indoor): | H98: Tons:
B100: Existing Equipment
B101: Manufacturer: | H101: SEER Rating:
B102: Condenser Model No. (outdoor): | H102: EER Rating:
B103: Coil/Air Handler Model No. (Indoor): | H103: Tons:
B105: Unit Number 2: (if applicable)
B106: New Equipment
B107: Manufacturer: | H107: AHRI Reference No:
B108: Condenser Model No. (outdoor): | H108: SEER Rating:
B109: Condenser Serial No. (outdoor): | H109: EER Rating:
B110: Coil/Air Handler Model No. (Indoor): | H110: HSPF Rating (Heat Pump Only):
B111: Coil/Air Handler Serial No. (Indoor): | H111: Tons:
B113: Existing Equipment
B114: Manufacturer: | H114: SEER Rating:
B115: Condenser Model No. (outdoor): | H115: EER Rating:
B116: Coil/Air Handler Model No. (Indoor): | H116: Tons:
I118: Total Rebate Amount Expected: $
B120: I certify that I purchased the unit(s) on the enclosed invoice and /or contract and that they were installed at the location indicated. I agree to the terms and conditions stated on this application (see rebate requirements).
B122: Customer's Signature: | I122: Date:
B125: PSEG Long Island administrators the rebate program on behalf of the Long Island Power Authority, the rebate program sponsor. Please visit www.psegliny.com/efficiency for more details.
B127: Any Questions? Call PSEG Long Island's Infoline at 1-800-692-2626 or visit PSEG Long Island's website for more information at www.psegliny.com/efficiency

Sheet Instructions (hidden)
B1: ='Customer Information'!A1 -> 2023 Residential Efficiency Program
B2: Instructions
B4: The PSEG Long Island Home All Electric Home Application gathers data on Heating and Cooling Systems and energy efficient electric appliances and provides rebates for eligible equipment.
B6: Cells requiring input are shaded with a gray background. Cells with white background are locked and will auto populate.
B8: The All Electric Homes Application is intended for all Residential customers (Rate Code 180 or equivalent) and New Construction developments and accommodates projects that include the installation of Whole House Heat Pumps and energy efficient electric appliances. There are two participation tiers for All Electric Homes. Please refer to the Eligibility Table Tab for qualifying Tiers and associated participation bonus. For questions about eligibility, please speak to your PSEG Long Island Representative.
B10: To complete the worksheet enable all macros and follow these simple steps:
B12: Customer Information
C13: 1. | D13: Enter account number, account holder name and installation address, and General Contractor/Developer information, and Rebate Payment Method on the Customer Information tab.
C14: 2. | D14: Enter Developer/General Contractor Information
C15: 3. | D15: Select Rebate Payment Method from dropdown
B17: Contractor Information
C18: 1. | D18: Enter Contractor Information for all participating contractors included in project installation
D19: *Please note, all installation contractors must be participating PSEG Long Island contractors
B21: Site Information
C22: 1. | D22: Select Residence Type from dropdown
D23: - If New Construction is selected, please select "New Construction" for Primary Heating and Cooling Equipment fields
C24: 2. | D24: Enter Size of Home (sq.ft)
C25: 3. | D25: Enter Number of Residences
C26: 4. | D26: Select Project Type - Heat Pump from dropdown
D27: • | E27: Whole House
E28: - The designed heating Manual J must meet 90-120% of the Heating Load.
D29: - Please note, if you are only completing a Weatherization project then select "Not Applicable"
C30: 5. | D30: Select Project Type - Weatherization from dropdown
D31: • | E31: Home Performance (HEMI)
D32: • | E32: Not Applicable
D33: - Please note, Home Performance participation is availble to existing building customers only and participation is suggested but not a program requirement
C34: 6. | D34: Select Project Type - "Electric Appliances" from dropdown
D35: • | E35: Yes
C36: 7. | D36: Select Fossil Fuel Heater Removed from dropdown
D37: • | E37: Yes
D38: • | E38: No
D39: • | E39: New Construction
D40: - Please note, there should be no fossil fuel heater on site; If fossil fuel heater is not removed, project is not eligible for All Electric Home program
C41: 8. | D41: Select "Existing Primary Heating Equipment" from dropdown
D42: - If New Construction, please select "New Construction"
C43: 9. | D43: Select "Existing Primary Cooling Equipment"
D44: - If New Construction, please select "none"
C45: * | D45: If you have a second Heating and Cooling System, please check the "Check here to enter Secondary Equipment Information" checkbox and repeat the same steps as above
C46: 10. | D46: In the Exsiting Equipment Information Table, please enter Primary Heating System Information
D47: - Heating Capacity (btu), HSPF, COP, AFUE
C48: 11. | D48: In the Exsiting Equipment Information Table, please enter Primary Cooling System Information
D49: - Cooling Capacity (btu), SEER, EER
C50: * | D50: If you selected the "Seconday Equipment Information" checkbox, please complete the Secondary System Information section for Heating and Cooling
B52: Equipment Selection
C53: All Required selections on this page must be selected; The selections made on this page will appear on corresponding worksheet tabs and determine either Tier I or Tier II participation bonus
C54: 1. | D54: Select Space Heating & Air Conditioning Equipment
D55: • | E55: Cold Climate Air Source Heat Pump
D56: • | E56: Geothermal Heat Pump
D57: * In order to qualify for the All Electric Home Program, a Whole House ccASHP system or Whole House Geothermal Heat Pump system must be installed
C58: 2. | D58: Select Smart HVAC Controls
D59: • | E59: Connected Wi-Fi Thermostat
D60: • | E60: Learning Thermostat
D61: • | E61: "Other" Smart Control
D62: * In order to qualify for the All Electric Home Program, a Smart HVAC Control must be installed
C63: 3. | D63: Water Heating
D64: • | E64: Tankless Water Heater
D65: • | E65: Heat Pump Water Heater
D66: • | E66: Dedicated Geothermal Heat Pump Water Heater
D67: * In order to qualify for the All Electric Home Program, electric water heating must be installed
D68: - Please note, Tankless Water Heater and Heat Pump Water Heater will appear on the "Appliances Worksheet" tab of this workbook
C69: 4. | D69: Select Required Appliances
D70: • | E70: ENERGY STAR Refrigerator OR ENERGY STAR Most Efficient Refrigerator
D71: • | E71: ENERGY STAR Clothes Washer OR ENERGY STAR Most Efficient Clothes Washer
D72: • | E72: ENERGY STAR Clothes Dryer - Electric Resistance OR ENERGY STAR Most Efficient Clothes Dryer - Heat Pump
D73: • | E73: ENERGY STAR Dishwasher OR ENERGY STAR Most Efficient Dishwasher
D74: • | E74: Standard Electric Range/Oven OR Induction Cooktop/Convection Oven
D75: • | E75: ENERGY STAR LED Lamps
D76: * In order to qualify for the All Electric Home Program, all required appliances must be installed
C77: 5. | D77: Select Optional Appliances
D78: • | E78: Heat Pump Pool Heater
D79: • | E79: ENERGY STAR Dehumidifier
D80: • | E80: ENERGY STAR Air Purifier
D81: • | E81: Electric Lawn Mower
D82: • | E82: Electric Leaf Blower
D83: • | E83: Electric Weed Trimmer
D84: * Optional Appliances do not have to be installed to qualify for the All Electric Home Program
B86: ASHP Equipment Information - Heat Pump Installation
C87: 1. | D87: Complete the "Heating and Cooling System 1" table for new equipment
D88: • | E88: Select "New Equipment Type" from dropdown
D89: • | E89: Select "Existing Equipment Type" from dropdown
E90: - Select either Primary Heating System or Secondary Heating System
E91: - For New Construction select Primary Heating System
D92: • | E92: Enter equipment and AHRI data in all grey cells; AHRI number must match information on AHRI certified, please don't abbreviate
C93: 2. | D93: If installing a Smart Thermostat, complete the Smart Thermostats Worksheet tab
C94: 3. | D94: If installing more than one Heat Pump, please select the checkbox that states "Click here to enter an additional Heating and Cooling System"; Up to 10 Heat Pumps may be entered
E95: - Repeat the same steps as above
C96: * | D96: All Cold Climate Heat Pumps must be listed and verified on the NEEP database | K96: www.NEEP.org
B98: ASHP Load Calculations - Heat Pump Installation
C99: 1. | D99: Enter the "Cooling Manual J" and "Heating Manual J" data
E100: - For Whole House Projects, the equipment must meet 90-120% of the Manual J designed heating load
C101: 2. | D101: Select "Unit Controlled" from dropdown
E102: - The "Unit #" correlates with the Smart Thermostat worksheet
C103: * | D103: New Equipment Type, Control Type, Qualifying Tier, Equipment Rebate, and Manual J Pass/Fail fields will all autopopulate based on previous inputs
E104: - Refer to the "Eligiblity Table" if you have questions regarding Qualifying Tier and Equipment Rebate
C105: * | D105: Provide complete and accurate load calculations associated with each Manual J report
B107: Air Flow Tabs- Heat Pump Installation
C108: 1. | D108: Complete the "Airflow Form" tab for all Ducted Heat Pumps
D109: • | E109: If more than one "Airflow Form" is required, selected the button that states "Click Here for Additional Airflow Form"
E110: - Up to 10 Airflow Forms are available
D111: *Provide complete and accurate Air Flow and Charge data for each eligible unit
B113: Smart Thermostats Worksheet
B114: In order to qualify for an incentive,Smart Thermostats must be listed at | H114: https://enrollmythermostat.com/faqs/pseg-long-island-faq/
C115: 1. | D115: Select Manufacturer from dropdown
C116: 2. | D116: Select Approved Thermostat from dropdown
C117: 3. | D117: Select Model Number from dropdown
C118: 4. | D118: Enter Serial Number
C119: 5. | D119: Select Unit Controlled from dropdown
C120: * | D120: If "Other" Smart Control, enter data for control in "Other Smart Control" section, please note this selection is not eligible for rebate
B122: Appliances Worksheet
C123: 1. | D123: Complete the worksheet sections for appliances and weater heating equipment selected on the "Equipment Selection" tab
C124: 2. | D124: All appliances and water heating equipment require the Proposed Quantity, Manufacturer, and Model Number to be entered
C125: 3. | D125: ENERGY STAR listed appliances require the ENERGY STAR Unique ID to be entered
C126: 4. | D126: Heat Pump Water Heater and Tankless Water Heater require the equipment size dropdown to be selected and the Proposed Efficiency of the system to be entered
D127: *Heat Pump Water Heater must be ENERGY STAR listed; Tankless Water Heater must be ETL or UL listed
C128: 5. | D128: Air Purifiers require the equipment size dropdown to be selected
B130: Geothermal - Space Heating
C131: 1. | D131: Select Application Type
D132: • | E132: Geothermal System
C133: 2. | D133: Select New Equipment Type
D134: • | E134: Geothermal, Water to Air - Closed
D135: • | E135: Geothermal, Water to Air - Open
D136: • | E136: Geothermal, Water to Water - Closed
D137: • | E137: Geothermal, Water to Water - Open
D138: • | E138: Geothermal, DGX
C139: 3. | D139: Select Stages
D140: • | E140: Single Stage
D141: • | E141: Dual Stage
D142: • | E142: Multi - Stage
D143: • | E143: Variable Speed
C144: 4. | D144: Select Pump Type
D145: • | E145: Variable Pumping
D146: • | E146: Staged Pumping
D147: • | E147: Constant Pumping
C148: 5. | D148: Enter Full Load Capacity Cooling btuh
C149: 6. | D149: Enter Full Load Capacity Heating btuh
C150: 7. | D150: Enter Part Load Capacity Cooling btuh (if applicable)
C151: 8. | D151: Enter Part Load Capacity Heating btuh (if applicable)
C152: 9. | D152: Enter AHRI Reference No.
C153: 10. | D153: Enter Full Load EER
C154: 11. | D154: Enter Full Load COP
C155: 12. | D155: Enter Part Load EER (if applicable)
C156: 13. | D156: Enter Part Load COP (if applicable)
C157: 14. | D157: Select Existing Equiment Type - Heating
D158: - If New Construction, select Primary Existing Heating
C159: 15. | D159: Select Existing Equiment Type - Cooling
D160: - If New Construction, select Primary Existing Heating
C161: 16. | D161: Enter Existing Equipment SEER
C162: 17. | D162: Enter Existing Equipment EER
C163: 18. | D163: Enter Existing Equipment COP/AFUE
C164: 19. | D164: Enter the following new equipment specs:
D165: - Condenser Manufacturer, Model Number, Serial Number
D166: - Coil/Air Handler Manufacturer, Model Number, Serial Number
C167: 20. | D167: Select Yes/No for Residential Desuperheater installation
C168: 21. | D168: Select Yes/No for to confirm if Equipment Sized in Accordance with Manual S
C169: 22. | D169: Enter the following Existing Equiment details:
D170: - Operating (Yes/No), Manufacturer, Model Number, Serial Number
C171: 23. | D171: Enter Manual J Btu Cooling
C172: 24. | D172: Enter Manual J Btu Heating
B174: Geothermal - Water Heating
C175: 1. | D175: Select Application Type
D176: • | E176: Geothermal System
C177: 2. | D177: Select New Equipment Type
D178: • | E178: Geothermal, Water to Water - Closed
D179: • | E179: Geothermal, Water to Water - Open
C180: 3. | D180: Enter Storage Tank Size (gallons)
C181: 4. | D181: Enter AHRI Full Load Heating btuh
C182: 5. | D182: Enter AHRI Reference No.
C183: 6. | D183: Enter AHRI Full Load COP
C184: 7. | D184: Select Existing Equiment Type - Water Heater
C185: 8. | D185: Enter Existing Equipment Storage Tank Size (gallons)
C186: 9. | D186: Enter Existing Equipment UEF
C187: 10. | D187: Enter the following new equipment specs:
D188: - Condenser Manufacturer, Model Number, Serial Number
D189: - Coil/Air Handler Manufacturer, Model Number, Serial Number
C190: 11. | D190: Select Yes/No for Supplemental Electric Heat
C191: 12. | D191: Enter the following Existing Equiment details:
D192: - Operating (Yes/No), Manufacturer, Model Number, Serial Number
B193: HPwES - Weatherization
C195: 1. | D195: If installing Weatherization measures, select Heating and Cooling System information from the drop down
C196: * | D196: If installing a Heat Pump, please select "Home Comfort Heat Pump" in dropdown
C197: * | D197: All Heating and Cooling system values will autopopulate based on Heat Pump installation or data inputs on Site Information tab
D198: • | E198: If two cooling systems exist and only one heating system exists, enter "0" as the value for "% of heating load"
C199: 2. | D199: Enter all Duct Sealing data, if applicable, in gray cells
C200: 3. | D200: Enter all Air Sealing data, if applicable, in grey cells
C201: 4. | D201: Enter all Insulation data, if applicable, in grey cells
B204: Submit completed application and any other required documents to HomeComfortLI@PSEG.com. Be sure to include All Electric Homes in the subject line.
B207: Application Version: | E207: =Development!A2 -> 1.0 | N207: Effective Date: | O207: =Development!A4 -> 1.1.23

Sheet Customer Information
A1: =Development!A3&" Residential Efficiency Program" -> 2023 Residential Efficiency Program
A2: ="All Electric Homes Rebate Application, Version "&Development!$A$2&" " -> All Electric Homes Rebate Application, Version 1.0
A3: The Residential Efficiency Program offers rebates to PSEG Long Island customers installing efficient Whole House Heat Pumps and energy efficient electric appliances. All projects are subject to pre-inspections, pre-approval, and post inspections
A4: Customer Information
A5: Account No: | J5: Rate Code:
A6: Account Holder Name: | J6: Installation Date:
A7: Installation Address: | H7: City: | K7: Zip:
A8: Mailing Address: (If different than above) | H8: City: | K8: Zip:
I9: Home Phone:
A10: Alternate Contact: | I10: Cell Phone:
A11: E-Mail Address:
A13: Rebate Payment Method:
A16: General Contractor/Developer Information
A18: Contractor Name:
A19: Contractor Address: | H19: City: | K19: Zip:
A20: Contact Name/Title: | J20: Business Phone:
A21: Tax ID #: | J21: Cell Phone:
A22: E-Mail Address: | J22: Fax:
A24: I certify that the system to be installed will be in accordance with ACCA Manual J version 8.0 calculations and that the calculation was performed using ACCA-approved software. For Geothermal installations, I certify that the unit(s) are sized in accordance with ACCA Manual S 2nd Edition. I also certify that the unit(s) will be installed at the location indicated above. I agree to the terms and conditions stated on this application (see eligibility requirements).
A27: Disclaimer: Terms and conditions are subject to change without notice, including early termination of this promotion. No additional fees apply. The rebate will be issued in the form of a check unless otherwise indicated. PSEG Long Island administers the rebate program on behalf of the Long Island Power Authority, the rebate program sponsor. Please visit www.psegliny.com/efficiency for more details. Signature also confirms that to the best of my knowledge this PSEG Long Account has not received any HPwES rebates in the past. If rebates have already been claimed for the HPwES program, PSEG Long Island has the authority to deny additional rebate claims.
A28: Contact Name/Title: | C28: =IF($C$20="","",$C$20) ->  | H28: Signature:
A30: Rebate
J31: Qualifying Bonus Tier: | K31: =IF(References!BX12="","",References!BX12) -> 
J32: Total Estimated Customer Rebate Amount: | K32: ='Appliances Worksheet'!T9+'ASHP Load Calculations'!G6+'Smart T-Stats'!K34+HPwES!J56+HPwES!J109+HPwES!J148+'Space Heating Worksheet'!AL44+'Dedicated Water Heating'!AA41 -> 0
J33: Total Estimated Customer Rebate & Bonus Amount: | K33: =SUM(K32+'Appliances Worksheet'!V9+'ASHP Load Calculations'!G8+'Smart T-Stats'!K36+'Space Heating Worksheet'!AL46+'Dedicated Water Heating'!AA43) -> 0
J34: Total Estimated Contractor Incentive Amount: | K34: =IF(K31="","",2000) -> 
A35: *Disclaimer: Terms and conditions are subject to change without notice, including early termination of this promotion. No additional fees apply. The rebate may be issued in the form of a check. PSEG Long Island administers the rebate program on behalf of the Long Island Power Authority, the rebate program sponsor. Please visit www.PSEGLINY.com/Efficiency for more details.
A37: Certification Statement: Customer has read, understands and agrees to be bound by the Terms and Conditions set forth herein, and agrees to abide by them. Customer certifies that the unit(s) described on the proposal provided by a QIV Participating Contractor will be installed at the location indicated. By participating in this program, Customer agrees on behalf of itself and any successor in interest or assignee that PSEG Long Island obtains and/or retains ownership of all rights to existing and future emission credits, renewable energy rights to existing and future emissions credits, renewable energy green tags, tradable renewable certificates and/or any and all other environmental benefits associated with the installation of the ECMs. Customer certifies that the information provided in the herein is true and accurate. Customer further certifies that the energy saving products described herein have or will be installed in the Home indicated above and will not be resold. As specified herein, Customer agrees to permit PSEG Long Island to: (1) verify the purchase invoices and product installations and (2) upon request, install and remove load-monitoring equipment at the Home. Customer acknowledges that the rights and obligations in this application shall be binding upon assignees, successors and future owners of the Home. Customer agrees to include restrictions contained in this agreement in any leases, sales, contracts, or other similar documents relating to the use and ownership of the Home. Customer acknowledge that, consistent with PSEG Long Island’s Efficiency Long Island program policies and procedures, PSEG Long Island may pro-rate a rebate or incentive (the “Rebate”) if the Customer purchases less than its full electric requirements from PSEG Long Island. Customer further acknowledges that PSEG Long Island may require the Customer to repay all or a portion of the Rebate received if, within five (5) years of receipt of the Rebate, the Customer ceases purchasing its full electric requirements from PSEG Long Island or increases its use of electric power from non-PSEG Long Island sources at the Home, other than through the Long Island Choice Program.
A38: Account Holder Name: (Print)
A40: Customer Signature: Duly authorized representative | J40: Date:
J48: For PSEG Long Island use only: | K48: Application ID:
A50: Application Version: | B50: =Development!A2 -> 1.0 | K50: Effective: | L50: =Development!A4 -> 1.1.23

Sheet Contractor Information
A1: =Development!A3&" Residential Efficiency Program" -> 2023 Residential Efficiency Program
A2: ="All Electric Homes Rebate Application, Version "&Development!$A$2 -> All Electric Homes Rebate Application, Version 1.0
A3: Enter all Contractor Information using the below fields
A4: Home Comfort Partner
A6: Contractor Name:
A7: Contractor Address: | H7: City: | K7: Zip:
A8: Contact Name/Title: | J8: Business Phone:
A9: Tax ID #: | J9: Cell Phone:
A10: E-Mail Address: | J10: Fax:
A14: Geothermal Participating Contractor
A16: Contractor Name:
A17: Contractor Address: | H17: City: | K17: Zip:
A18: Contact Name/Title: | J18: Business Phone:
A19: Tax ID #: | J19: Cell Phone:
A20: E-Mail Address: | J20: Fax:
A24: Home Performance with ENERGY STAR Partner
A26: Contractor Name:
A27: Contractor Address: | H27: City: | K27: Zip:
A28: Contact Name/Title: | J28: Business Phone:
A29: Tax ID #: | J29: Cell Phone:
A30: E-Mail Address: | J30: Fax:
A34: Heat Pump Water Heater/Tankless Water Heater Installation Contractor
A36: Contractor Name:
A37: Contractor Address: | H37: City: | K37: Zip:
A38: Contact Name/Title: | J38: Business Phone:
A39: Tax ID #: | J39: Cell Phone:
A40: E-Mail Address: | J40: Fax:
A44: Pool Heater Installation Contractor
A46: Contractor Name:
A47: Contractor Address: | H47: City: | K47: Zip:
A48: Contact Name/Title: | J48: Business Phone:
A49: Tax ID #: | J49: Cell Phone:
A50: E-Mail Address: | J50: Fax:

Sheet Site Information
A1: =Development!A3&" Residential Efficiency Program" -> 2023 Residential Efficiency Program
A2: ="All Electric Homes Rebate Application, Version"&Development!A2 -> All Electric Homes Rebate Application, Version1.0
A4: Site Information
A6: Residence Type: | C6: Select… | E6: =IF(C6="New Construction","",IF(C6="Select…","",IF(C6="Existing Building","If residence type is existing building, please contact a PSEG Long Island representative."))) -> 
A8: Size of Home (sq. ft.) | H8: Number of Residences:
A10: Project Type - Heat Pump*: | C10: Select… | E10: =IF(C10="Partial House","",IF(C10="Whole House","",IF(C10="Select…","",IF(C10="Not Applicable","Project must include Whole House Heat Pump to be eligible for rebates.")))) ->  | H10: Project Type - Electric Appliances: | J10: Select… | L10: =IF(J10="Yes","",IF(J10="Select…","",IF(J10="Not Applicable","Project must include appliances to be eligible for rebates."))) -> 
A11: *The Designed Heating Manual J must meet 90% of the Heating Load.
A12: Project Type - Weatherization: | C12: Select… | E12: =IF(C12="Not Applicable","",IF(C12="Select…","",IF(C12="Home Performance","Home Performance projects are eligible for existing residences only."))) -> 
A14: Income Eligible? | C14: No | E14: =IF(OR(C14="NO",C14="Select…"),"", IF(C14="YES", "Refer to Required Documents for Verification Documents","")) -> 
A16: Existing Primary Heating Equipment: | C16: Select… | H16: Fossil Fuel Heater Removed? | J16: Select… | L16: =IF(J16="Yes","",IF(J16="Select…","",IF(J16="New Construction","",IF(J16="No","Fossil Fuel Heater must be removed to be eligible for rebates.")))) -> 
A18: Existing Primary Cooling Equipment: | C18: Select…
A22: Existing Secondary Heating Equipment: | C22: Select…
A24: Existing Secondary Cooling Equipment: | C24: Select…
A26: Existing Equipment Information
B29: Primary Heating System Information | H29: Primary Cooling System Information
A31: Heating Capacity: | E31: (btuh) | H31: Cooling Capacity: | L31: (btuh)
A33: HSPF: *For Electric Heat Pumps | H33: SEER:
A35: COP: *For Electric Heating | H35: EER:
A37: AFUE: *For Fossil Fuel Heating
B41: Secondary Heating System Information | H41: Secondary Cooling System Information
A43: Heating Capacity: | E43: (btuh) | H43: Cooling Capacity: | L43: (btuh)
A45: HSPF: *For Electric Heat Pumps | H45: SEER:
A47: COP: *For Electric Heating | H47: EER:
A49: AFUE: *For Fossil Fuel Heating
A56: Application Version: | B56: =Development!A2 | K56: Effective: | L56: =Development!A4 -> 1.1.23

Sheet Equipment Selection
A1: =Development!A3&" Residential Efficiency Program" -> 2023 Residential Efficiency Program
A2: ="All Electric Homes Rebate Application, Version "&Development!A2 -> All Electric Homes Rebate Application, Version 1.0
A4: All Electric Homes Equipment Checklist
A7: =IF(References!BU13,"This Project qualifies for the "&References!BX12&" bonus.","This Project is missing "&References!BT25&".") -> This Project is missing Space Heating and Air Conditioning, Water Heating, Refrigerators, Clothes Washers,Clothes Dryers, Dishwashers, Cooking Components, LED Lighting, and Thermostat Controls.
A8: Space Heating & Air Conditioning (Required):
A17: Smart HVAC Controls (Required):
A26: Water Heating (Required):
A39: Appliances (Required):
A41: Refrigerator (Choose one):
A45: Clothes Washer (Choose One):
A49: Clothes Dryer (Choose One):
A53: Dish Washer (Choose One):
A57: Cooking (Choose One):
A64: Lighting (Choose One):
A69: Add-on Appliances (Optional):
A86: Home Performance with ENERGY STAR (Optional for Existing Residence Only):

Sheet Ts and Cs
A1: =Development!$A$3&" Residential Efficiency Program" -> 2023 Residential Efficiency Program
A2: ='Customer Information'!A2:H2 -> All Electric Homes Rebate Application, Version 1.0
A3: Terms and Conditions
B5: 1. | C5: ="Units must be installed on or after "&Development!A4 -> Units must be installed on or after 1.1.23
B6: 2. | C6: The participating Customer must have or obtain a PSEG Long Island residential electric account prior to payment
B7: 3. | C7: Qualifying ASHP units must be listed in the AHRI directory at the time of installation (Visit www.ahridirectory.org/ to verify equipment eligibility). Program Manager document review and approval required
B8: 4. | C8: Split ASHP systems must be installed with the matching pieces specified in the AHRI directory at the time of installation
B9: 5. | C9: If proposed equipment is a Cold Climate Air Source Heat Pump (ASHP), equipment must be listed with NEEP and visible on its Cold Climate Air Source Heat Pump Specifications Product Listing: www.NEEP.org
B10: 6. | C10: Rebates and incentives apply only to installations completed within the effective dates of this rebate application
B11: 7. | C11: The heat pump unit and air handler / fan coil must both be installed new. Partial system replacements do not qualify
B12: 8. | C12: All qualifying units installed at a residence must be documented on the same application (additional sheets may be attached if necessary)
B13: 9. | C13: Retrofit of systems less than five years old that were previously rebated by PSEG Long Island are not eligible for another rebate unless the SEER level of the replacement unit is higher than the existing unit by at least 1 full SEER level
B14: 10. | C14: Participating Contractors must use an ACCA approved Manual J version 8 software package to perform the load calculation, and then size the unit(s) accordingly (Visit http://www.acca.org/software/ for a current list of ACCA approved Manual J version 8 software)
B15: 11. | C15: To qualify for Whole House ASHP rebates and incentives, integrated controls must be installed with the ASHP where there is a secondary/supplementary gas, oil, or propane heating system. The ASHP must be used for primary heating of the space. If integrated controls are not installed, the project will not be eligible for Whole House rebates and incentives. (Not applicable to homes with electric resistance heating.)
B16: 12. | C16: Installation must be completed after the application has been preapproved.
B17: 13. | C17: Required Documents as outlined on the corresponding tab must be submited with this application
B18: 14. | C18: PSEG Long Island reserves the right to inspect and test the equipment installation and review the original contract in order to ensure compliance with program requirements. Failure to allow PSEG Long Island access to the equipment or original contract will result in denial of the rebate application
B19: 15. | C19: PSEG Long Island is not responsible for any tax liability imposed as a result of rebate payments
B20: 16. | C20: PSEG Long Island reserves the right to use the Customer rebate to credit accounts in arrears
B21: 17. | C21: Please allow up to 60 days for the delivery of the rebate check or bill credit
B22: 18. | C22: ="Applications must be received by December 31, "&Development!$A$3 -> Applications must be received by December 31, 2023
B23: 19. | C23: PSEG Long Island reserves the right to modify or withdraw these rebates and incentives, or to adjust the eligibility requirements, at any time
B24: 20. | C24: By providing a telephone number you are giving consent to be contacted at that number about matters that are closely related to the utility service
A30: Application Version: | C30: =Development!$A$2 -> 1.0 | J30: Effective: | K30: =Development!$A$4 -> 1.1.23

Sheet Required Documents
A1: =Development!$A$3&" Residential Efficiency Program" -> 2023 Residential Efficiency Program
A2: ='Customer Information'!A2:H2 -> All Electric Homes Rebate Application, Version 1.0
B3: Required Documents Checklist
B4: Required Documents for Pre Approval
B5: Document: | D5: Responsible Party
D6: Customer/Applicant
D7: Customer/Applicant
D8: Customer/Applicant
D9: Home Comfort Partner/Geothermal Partner
D10: Customer/Applicant
D11: Customer/Applicant and PSEG Long Island Representative
D12: Applicant
D13: Geothermal Partner
D14: Geothermal Partner
D15: Geothermal Partner
D16: Geothermal Partner
B17: *Please note, if installing Geothermal System and invoice for well drilling is not provide, system will not be eligible for a rebate
B19: Required Documents for Payment
B20: Document: | D20: Responsible Party
D21: Customer/Applicant
D22: Applicant
D23: Applicant
D24: Home Comfort Partner
D25: Geothermal Partner
D26: Customer/Applicant and PSEG Long Island Representative
B29: Required Documents for Home Performance with ENERGY STAR Pre-Approval
B30: Document: | D30: Responsible Party
D31: Customer/HPwES Partner
D32: Customer/HPwES Partner
D33: Customer/HPwES Partner
D34: Customer/HPwES Partner
B36: Required Documents for Home Performance with ENERGY STAR Payment
B37: Document: | D37: Responsible Party
D38: HPwES Partner
D39: HPwES Partner
D40: HPwES Partner
B43: PSEG Long Island may require additional documentation not listed above as deemed necessary to properly process any rebates.
B44: Any hard copy documents provided by Customer must be scanned and emailed to PSEG Long Island or uploaded to the Lead Partner Portal by a participating Partner
B50: Application Version: | C50: =Development!$A$2 -> 1.0 | G50: Effective: | H50: =Development!$A$4 -> 1.1.23

Sheet AssignmentForm (hidden)
A1: =Development!$A$3&" Residential Efficiency Program" -> 2023 Residential Efficiency Program
A2: All Electric Homes Assignment Form
A3: The Residential Efficiency Program offers rebates to PSEG Long Island customers installing efficient Whole House Heat Pumps and energy efficient electric appliances. All projects are subject to pre-inspections, pre-approval, and post inspections
A4: Customer Information
A5: Customer Name: | C5: =IF('Customer Information'!C6="","",'Customer Information'!C6) -> 
A6: Installation Address: | C6: =IF('Customer Information'!C7="","",'Customer Information'!C7) ->  | H6: City: | I6: =IF('Customer Information'!I7="","",'Customer Information'!I7) ->  | K6: Zip: | L6: =IF('Customer Information'!L7="","",'Customer Information'!L7) -> 
A7: Mailing Address: (If different than above) | C7: =IF('Customer Information'!C8="","",'Customer Information'!C8) ->  | H7: City: | I7: =IF('Customer Information'!I8="","",'Customer Information'!I8) ->  | K7: Zip: | L7: =IF('Customer Information'!L8="","",'Customer Information'!L8) -> 
C8: =IF('Customer Information'!C9="","",'Customer Information'!C9) ->  | I8: Home Phone: | K8: =IF('Customer Information'!K9="","",'Customer Information'!K9) -> 
A9: Alternate Contact: | C9: =IF('Customer Information'!C10="","",'Customer Information'!C10) ->  | I9: Cell Phone: | K9: =IF('Customer Information'!K10="","",'Customer Information'!K10) -> 
A10: E-Mail Address: | C10: =IF('Customer Information'!C11="","",'Customer Information'!C11) -> 
A13: Developer/General Contractor Information
A14: Contractor Name: | C14: =IF('Customer Information'!C18="","",'Customer Information'!C18) -> 
A15: Contractor Address: | C15: =IF('Customer Information'!C19="","",'Customer Information'!C19) ->  | H15: City: | I15: =IF('Customer Information'!I19="","",'Customer Information'!I19) ->  | K15: Zip: | L15: =IF('Customer Information'!L19="","",'Customer Information'!L19) -> 
A16: Contact Name/Title: | C16: =IF('Customer Information'!C20="","",'Customer Information'!C20) ->  | H16: Business Phone: | I16: =IF('Customer Information'!K20="","",'Customer Information'!K20) -> 
A17: Tax ID #: | C17: =IF('Customer Information'!C21="","",'Customer Information'!C21) ->  | H17: Cell Phone: | I17: =IF('Customer Information'!K21="","",'Customer Information'!K21) -> 
A18: E-Mail Address: | C18: =IF('Customer Information'!C22="","",'Customer Information'!C22) ->  | H18: Fax: | I18: =IF('Customer Information'!K22="","",'Customer Information'!K22) -> 
A21: Rebate
J22: Total Estimated Customer Rebate Amount (Calculated from Equipment Worksheets and Smart Thermostat Worksheet): | K22: =IF('Customer Information'!K32="","",'Customer Information'!K32) -> 0
B24: As the payee of the above referenced Home Comfort Rebate, I, Customer, hereby assign my rights and interest in the payment of said rebate to Assignee as indicated below. I certify that the electric account listed above is not in arrears and that I have supplied the contractor with a copy of the latest PSEGLI bill for the listed account, showing that the account is active and that there is no previous balance owed on the account. Rebates can not be assigned to the contractor if the PSEGLI account is in arrears. If the PSEGLI account goes into arrears while the rebate is being processed, PSEGLI will apply the Home Comfort Rebate to those arrears before remitting the balance of the rebate, if any, to my Assignee. I also understand that PSEGLI’s application of all, or a portion of, the Rebate to any arrears on my PSEGLI account does not reduce the amount I am responsible to pay my Assignee (I will still owe my contractor the Rebate amount applied to my PSEGLI account). Please forward my rebate to the Assignee listed directly above. I also understand that I am responsible to inform PSEGLI (via email to homecomfortli@pseg.com or in writing to PSEG Long Island, Home Comfort Program, 395 N Service Rd, Melville, NY 11747) of any changes to this assignment.
A27: Customer Name*: (Print)
A28: *Must be Account Holder of Record
A29: Accepted and Agreed To Payee: (Customer Signature) | J29: Date:
A31: Contractor Name (Print) | C31: =IF('Customer Information'!C20="","",'Customer Information'!C20) -> 
A33: Accepted and Agreed To Assignee: (Duly Authorized Representative Signature) | J33: Date:
A41: Application Version: | B41: =Development!$A$4&"_"&Development!$A$2 -> 1.1.23_1.0 | K41: Effective: | L41: =Development!$A$4 -> 1.1.23

Sheet Guidelines
A1: =Development!$A$3&" Residential Efficiency Program" -> 2023 Residential Efficiency Program
A2: ='Customer Information'!A2:H2 -> All Electric Homes Rebate Application, Version 1.0
A4: Rebate Guidelines For All Projects
A5: * | B5: ="Units/Measures must be installed on or after "&Development!$A$4 -> Units/Measures must be installed on or after 1.1.23
B6: Please submit the worksheet effective during the time of installation.
A7: * | B7: Total rebates will not exceed 70% of total project cost.
A8: * | B8: Please note that installing an ASHP may qualify you for a new reduced electric rate code. When the ASHP is used for the home’s primary heating, the home will use more electricity, so PSEG Long Island offers an electric heat rate which is lower than standard rates, and which will save on your electric bill. Please reach out to us for details.
A9: * | B9: Projects are subject to pre-inspection, post inspection, and pre-approval.
B10: *Equipment should not be purchased and Project should not be started until after the Pre-Approval Letter is delivered. Rebates for pre-purchased and/or installed equipment are not permitted.
A11: * | B11: A PSEG Long Island representative may contact you to schedule a post-inspection.
A12: * | B12: Rebates are available to New Construction single family residences and existing building single family residences that convert fossil fuel systems (Natural Gas/Oil/Propane) to all electric.
A13: * | B13: To qualify for rebates and incentives, there should be no backup fossil fuel connection on site.
B14: * Backup connection for a generator is allowable.
B15: *Measures are available in either a Tier I or Tier II structure - Participation bonuses are available for all rebated measures; Refer to the Eligibility Table for more information
A16: * | B16: Premises must be serviced by a residential account/meter which must be in Customer's name before final payment.
A17: * | B17: Complete Customer Information section of application and appropriate worksheet(s). Incomplete applications will not be accepted.
A18: * | B18: If the proposed equipment is listed in the measure-specific eligibility tables, the rebate amount will be determined according to corresponding worksheet, one of which must be completed for each measure type.
A19: * | B19: All measures must carry the appropriate designated Underwriters Laboratory (UL) or Electrical Testing Laboratory (ETL) label.
A20: * | B20: Eligible equipment criteria may be updated or modified regularly. This Rebate Application will be updated, at a minimum but not limited to, quarterly.
A21: * | B21: Measure-specific eligibility requirements apply. Check each worksheet for measure-specific eligibility requirements.
A22: * | B22: All installed equipment must be electric end use only.
B23: -Propane cooking equipment is allowable so long as there's an electric connection on site.
A24: * | B24: All required electric end use equipment must be installed; please refer to the "Equipment Selection" tab and the "Eligibility Table" tab.
A25: * | B25: All equipment must be installed in accordance with all applicable local, state, and national codes and ordinances.
A26: * | B26: All equipment must be installed in a permanent building or structure.
A27: * | B27: Where eligible products are required to be listed with an approved rating agency (i.e. AHRI, ENERGY STAR; CEE), products must be installed and used in accordance with the rating condition for which it was approved.
A28: * | B28: Customers must agree to PSEG Long Island’s Terms and Conditions found within this application.
A29: * | B29: For Loan project, send all Loan ProFormas directly to EFS.
B30: Where Income Eligible Projects are submitted, all EFS Pre-Approval documents and Income Eligible Verification documents must be provided
B31: * Income Eligible customers must meet the NYSERDA EmPower income eligibility requirements
B32: https://www.nyserda.ny.gov/All-Programs/Programs/EmPower-New-York/Eligibility-Guidelines
A33: * | B33: If customer has participated in any other state or utility sponsored rebate program, related to the technology in this application, please contact a PSEG Long Island Representative to determine whether the project is also eligible under this program.
A35: Additional Rebate Guidelines Home Comfort Whole House Cold Climate ASHP Equipment
A36: * | B36: If proposed equipment is a Cold Climate Air Source Heat Pump (ASHP), equipment must be listed with NEEP and visible on its Cold Climate Air Source Heat Pump Specifications Product Listing:
B37: www.NEEP.org
A38: * | B38: Qualifying ASHP units must be listed in the AHRI directory at the time of installation (Visit www.ahridirectory.org/ to verify equipment eligibility); Program Manager document review and approval required.
A39: * | B39: SEER/EER/HSPF and SEER2/EER2/HSPF2 are all accepted efficieny values in this worksheet. Please specify which rating system will be used in the "Rating Methodology" field on the ASHP Equipment Information tab.
A40: * | B40: All Whole House equipment installations 17°F Maximum Heating Capacity must meet at least 90-120% of the Manual J designed heat load.
B41: -The 17⁰F Maximum Heating Capacity can be found on the NEEP Cold Climate list
B42: - A Manual J is required for each residence or residence type.
A43: * | B43: All Cold Climate equipment rebates will be calculated using the 17⁰F Rated Heating Capacity.
A44: * | B44: To qualify for Whole House ASHP rebates and incentives, a Smart Thermostat or Control must be installed.
A46: Additional Rebate Guidelines for Whole House Geothermal Equipment
A47: * | B47: Ground Source Heat Pumps must be installed by a Geothermal participating contractor.
A48: * | B48: Contractor must hold IGSHPA Accredited Installer certification or plan to acquire this certification within 1 year. If the installer plans to acquire the certification in coming months, then the installer will be granted provisional status as a Geothermal participating
B49: contactor.
A50: * | B50: Install properly sized qualifying equipment for the space being heated. Heat Pump may not be used exclusively for water heating.
B51: -Geothermal unit may use a Desuperheater for water heating; Please see Eligibility Table on Space Heating Worksheet for more details.
A52: * | B52: The geothermal heat pump system installer shall provide the customer with a written warranty of labor for a minimum of one (1) year from the date the service is performed and, for materials, and the equipment installed shall carry the full manufacturer’s warranty.
A53: * | B53: One application per residence every 5 years, unless new equipment efficiency exceeds the existing equipment efficiency by at least 1.0 EER value.
A54: * | B54: Desuperheaters must only be installed on residential electric tank-storage water heaters.
A55: * | B55: Desuperheater installation must comply with all local plumbing codes.
A56: * | B56: If installing Geothermal Water Heating with Geothermal Space Heating system.
B57: - Water to Water - Closed system is eligible with a COP of 3.1 or higher.
B58: - Water to Water - Open system is eligible with a COP of 3.5 or higher.
A59: * | B59: Geothermal Water Heating is not eligible without installing a Geothermal Space Heating System.
A61: Additional Rebate Guidelines Water Heating
A62: * | B62: Heat Pump Water Heater must be ENERGY STAR listed.
B63: - Limit of 1 HPWH per year.
A64: * | B64: Tankless Water Heater must carry Underwriters Laboratory (UL) or Electrical Testing Laboratory (ETL) label.
B65: - Limit of 3 < 12 kW unit per year; Limit of 1 > 12 kW unit per year.
A66: * | B66: Please note, if the customer has received a rebate for this measure, previously in the program year of 2023, the customer is not eligible for a Water Heating rebate through this application.
A68: Additional Rebate Guidelines ENERGY STAR Appliances
A69: * | B69: Appliance must be installed in pre-approved residence.
B70: -Refer to Eligiblity Table tab for quantity limits and rebates.
A71: * | B71: Appliance must carry ENERGY STAR or Most Efficient designation (if applicable).
A72: * | B72: Model must be on the qualified ENERGY STAR list at time of purchase (if applicable).
A73: * | B73: The rebate amount cannot be more than 50% of the purchase price paid.
A74: * | B74: Solar Pool Covers and Pool Heaters do not have to be ENERGY STAR labeled to receive a rebate.
A75: * | B75: Please note, if the customer has received a rebate for appliances included in this program, previously in the program year of 2023, the customer is not eligible for additional rebates for the same measure.
A76: * | B76: To be eligible for a solar pool cover rebate in 2023, a solar pool cover must be installed with a Heat Pump Pool Heater or at a customer site that's received a Heat Pump Pool Heater through our program in the past.
A78: Additional Rebate Guidelines Home Performance with ENERGY STAR Projects
A79: * | B79: HPwES Customer may participate in the HPwES Program until their project/measure rebate cap has been met, as determined by the HPwES Program Manager.
A80: * | B80: Signed contract between customer and HPwES Partner is required.
A81: * | B81: Health & Safety Test form must be completed to be eligible for rebate/incentive.
A82: * | B82: Home Performance with ENERGY STAR rebates are eligible for existing residences only.
B83: - HPwES is not a requirement for the All Electric Homes program but is recommended for existing homes that convert to All Electric
B84: - A Home Energy Audit should be conducted before participation in HPwES
A87: Program Requirements/Steps to Participate
B88: Before Whole House Heat Pump equipment purchase and installation:
A89: * | B89: Customer must choose a licensed HVAC Contractor (Home Comfort Partner, Geothermal Participating Contractor).
A90: * | B90: Print, complete, sign and date the Customer Information section of Application and provide to installation contractor.
A91: * | B91: Home Comfort Partner/Geothermal Participating Contractor must perform the ACCA approved Manual J software calculation.
A92: * | B92: Manual J version 8 report, save document as: "Manual_J_<customer name>.pdf" (Home Comfort only).
A93: * | B93: Home Comfort Partner/Geothermal Participating Contractor must ensure equipment is listed in the AHRI directory.
A94: * | B94: Home Comfort Partner/Geothermal Participating Contractor must ensure that split systems are installed with the matching pieces specified in the AHRI directory.
A95: * | B95: AHRI Certificate, save document as: "AHRI_<customer name>.pdf"
A96: * | B96: Home Comfort Partner/Geothermal Participating Contractor must install properly sized qualifying equipment.
A97: * | B97: Complete and submit the Assignment form (if applicable), save document as: "Assignment_<customer name>.pdf"
B98: Before Appliances/Water Heating equipment purchase and installation:
A99: * | B99: Customer must choose a licensed contractor to install equipment/appliances.
A100: * | B100: Customer/contractor must confirm customer has not received rebates for appliances/equipment previously in the 2022 program year.
B102: Once Project is Complete submit the following:
A103: * | B103: If the installation differs from pre-approval, please submit new worksheet.
A104: * | B104: Invoices (must contain total cost, equipment make, model, & serial number as well as Customer name, installation address and date), save document as: "Invoice_<customer name>.pdf"
B105: * If a Smart Thermostat is installed, ensure the Make, Model, and Serial Number is also listed on the invoice.
A106: * | B106: Home Comfort Partner must complete Airflow/Refrigerant and Equipment schedule worksheets from this application for all Ducted projects.
A107: * | B107: Geothermal Participating Contractor must complete the Loop Field Cx form.
A108: * | B108: Home Performance Partner must complete the Health & Safety Test Form.
A109: * | B109: Projection Completion Form (filled out and signed by Customer and Contractor), save document as: "PCF_<customer name>.pdf"
B110: For Home Comfort/Geothermal/Appliances/Water Heating Equipment please use the "Project Completion Form" tab and for HPwES please use the "Project Completion Form HPwES" tab.
A111: * | B111: Partners may submit documentation by completing an On Line Application via Partner Portal. If not submitting via Partner Portal On Line Application:
B112: Contractor must electronically submit documents to: | E112: HomeComfortLI@pseg.com | G112: Subject Line should read: All Electric Home - Customer Name
A119: Application Version: | C119: =Development!$A$2 -> 1.0 | K119: Effective: | L119: =Development!$A$4 -> 1.1.23

Sheet Eligibility Table
B1: ='Customer Information'!A1 -> 2023 Residential Efficiency Program
B2: All Electric Homes Eligibility Tables
B3: *Pre and post verification of installed equipment is required. PSEG will accept photo verification in lieu of inspection. Where a Whole House installation is completed and electric energy efficiency measures are installed, the PSEG Long Island Inspector will need to access the inside of the home to verify the removal of the existing heating source and confirm installation of Smart Themostat.
B4: Eligibility Requirements
A5: * | B5: No fossil fuel connection on site
B6: *Backup generator connection allowed
A7: * | B7: Eligible residences are either single family New Construction or Existing homes that undergo natural gas/oil/propane conversion to all electric
A8: * | B8: All required equipment must be installed to qualify for either Tier I or Tier II incentive bonus; Bonus is based on required rebated measures only (Whole House Heat Pumps, Smart Thermostats, Water Heating Equipment, ENERGY STAR Clothes Dryer, Most Efficient Heat Pump Dryer, Most Efficient Clothes Washer)
B9: Please note, not all measures are rebateable but are required
B10: -The eligible Tier I or Tier II bonus will be applied to all rebateable measures
A11: * | B11: All installed measures must be electric end use only
A12: * | B12: Weatherization measures may be installed through the HPwES worksheet tab for existing residences only
B13: - New Construction does not qualify
B14: - HPwES participation is recommended but not required for All Electric Home Program
A15: * | B15: A $2,000/Project Contractor Incentive is available upon successful project completion and PSEG Long Island validation
B16: - If Project is completed by 12/31/2023, the contractor incentive may be doubled
B34: Eligibility Requirements - Whole House Air Source Heat Pump Installations
A36: * | B36: All Whole House equipment installations 17°F Maximum Heating Capacity must meet at least 90-120% of the Manual J designed heat load
B37: -The 17⁰F Maximum Heating Capacity can be found on the NEEP Cold Climate list
A38: * | B38: All Whole House Cold Climate Air Source Heat Pumps must be NEEP listed
B39: -Rebates will be calculated using the 17⁰F Rated Heating Capacity for all Cold Climate systems
A40: * | B40: Integrated Controls are required for all projects where a supplemental heating source is present
B41: - Ducted ccASHPs may be paired with Integrated/Modulating, Integrated/Fixed, Freeze Stats, or Dual Fuel Thermostats to be eligible for Whole House rebates
B42: - Ductless ccASHPs may be paired only with Integrated/Modulating to be eligibile for Whole House rebates
A43: * | B43: An ACCA Manual J is required
A45: * | B45: Enhanced rebates are available to qualified Income Eligible customers
B46: - Please see "Required Documents" tab for guidance on "Income Eligible" verification
A47: * | B47: A per project contractor incentive is available for to all qualifying Home Comfort Partners (please note, the Contractor Incentive will be applied to the equipment entered on the first line of the " ASHP Equipment Information" tab)
B55: Eligibility Requirements - Whole House Ground Source Heat Pump Installations
A56: * | B56: Customer may choose to install a Whole House Geothermal System in place of a Cold Climate Whole House Air Source Heat Pump system
B57: -Installation of GSHP in place of ccASHP is allowable and rebateable, this will not impact project Tier level.
B58: -Whole House Geothermal Systems are rebateable and eligible for the bonus; bonus will be calculated at $1k/ton for all systems regardless of actual GSHP rebate amount
A59: * | B59: Contractor must hold IGSHPA Accredited Installer certification or plan to acquire this certification within 1 year. If the installer plans to acquire the certification in coming months, then the installer will be granted provisional status as a Geothermal participating contractor
A60: * | B60: Install properly sized qualifying equipment for the space being heated. Heat Pump may not be used exclusively for water heating
B61: -Geothermal unit may use a Desuperheater for water heating.
B62: - Desuperheaters must only be installed on residential electric tank-storage water heaters
A63: * | B63: If installing Geothermal Water Heating with Geothermal Space Heating system please reference the tables below for eligbility criteria
A64: * | B64: Geothermal Water Heating is not eligible without installing a Geothermal Space Heating System
B86: Eligibility Requirements - Water Heating
A87: * | B87: Heat Pump Water Heater must be ENERGY STAR listed
B88: - Limit of 1 HPWH per year
A89: * | B89: Tankless Water Heater must carry Underwriters Laboratory (UL) or Electrical Testing Laboratory (ETL) label
B90: - Limit of 3 < 12 kW unit per year; Limit of 1 > 12 kW unit per year
A91: * | B91: See Geothermal section for information regarding Geothermal Water Heating
B101: Eligibility Requirements - Electric Appliances (Required and Add-On)
A103: * | B103: Appliance must carry ENERGY STAR or Most Efficient designation (if applicable)
A104: * | B104: Model must be on the qualified ENERGY STAR list at time of purchase (if applicable)
A105: * | B105: Lawn Equipment, Solar Pool Covers and Pool Heaters do not have to be ENERGY STAR labeled to receive a rebate
B106: -Pool Equipment must be installed by eligible Dealer or Installer
A107: * | B107: Rebates are not available for all required appliances, refer to the Tier I and Tier II eligibility tables (found at the top of this page) to confirm which measures must be installed
B140: Eligibility Requirements - Home Performance with ENERGY STAR
A142: * | B142: HPwES participants should receive a Home Energy Assessment prior to HPwES participation
A143: * | B143: Single-family homes in the PSEG LI territory with a primary heating fuel of oil, propane, or electric are eligible
B144: - New Construction residences are not eligible
A145: * | B145: Program financing is available for all eligible measures through NYSERDA:
B146: http://www.energyfinancesolutions.com
A147: * | B147: Eligible measures include Insulation, Air Sealing, and Duct Sealing
B148: - Insulation must be accompanied by blower door assisted air sealing per BPI standard and must be installed in conjuction with comprehensive air sealing
B149: - Air Sealing must includer Blower door tests assisted per BPI standards
B150: - Duct Sealing is not permitted with duct tape, only UL181B mastic or tape is permissable; all ductwork in uncondtioned space must be duct sealed

Sheet Appliances Worksheet
B1: ='Customer Information'!A1 -> 2023 Residential Efficiency Program
B2: All Electric Homes Appliances Information
A4: 1. | B4: Enter Proposed Quantity, ENERGY STAR Unique ID, Manufacturer, and Model Number
A5: 2. | B5: Appliances must be ENERGY STAR listed or Most Efficient ENERGY STAR listed where appropriate
B6: - If installing an Electric Tankless Water Heater, Heat Pump Pool Heater, Solar Pool Cover, ENERGY STAR requirement does not apply
A7: 3. | B7: Equipment must be installed in permanent structure
A8: 4. | B8: All required appliances must be installed | T8: Total Rebate | V8: Total Bonus
B9: -Refer to Equipment Selection tab to select appliances; Once selected, the corresponding appliances will appear in the below worksheet | T9: =SUM(R20:R23,P32:P35,U56:U59,P68:P71,P80:P83,P104:P107,P116:P119,P128:P131,S140:S143,M152:M155,M164:M167,M176:M179,M188:M191,M200:M203) -> 0 | V9: =SUM(U20:V23,S32:T35,X56:Y59,S68:T71,S80:T83) -> 0
B10: -Refer to All Electric Homes - Eligible Equipment Table to ensure all appropriate sections on this worksheet tab are completed for appliances
B11: -Bonus incentives available for Tankless Water Heaters, Heat Pump Water Heaters, ENERGY STAR Clothes Dryers, Most Efficient Heat Pump Dryers, and Most Efficient Clothes Washers
B16: Electric Tankless Water Heater <12 kW or ≥12 kW - $100, $300 each
E19: Proposed Quantity | G19: Equipment Size | J19: Proposed Efficiency (Uniform Energy Factor) | L19: Manufacturer | O19: Model Number | R19: Rebate | U19: Bonus
G20: Select… | R20: =IF(G20="Select…","",IF(G20="< 12kW",'Appliance Calculations'!N2,IF(G20="≥ 12 kW",'Appliance Calculations'!N2))) ->  | U20: =IF((R20=""),"",'Appliance Calculations'!O2) -> 
G21: Select… | R21: =IF(G21="Select…","",IF(G21="< 12kW",'Appliance Calculations'!N3,IF(G21="≥ 12 kW",'Appliance Calculations'!N3))) ->  | U21: =IF((R21=""),"",'Appliance Calculations'!O3) -> 
G22: Select… | R22: =IF(G22="Select…","",IF(G22="< 12kW",'Appliance Calculations'!N4,IF(G22="≥ 12 kW",'Appliance Calculations'!N4))) ->  | U22: =IF((R22=""),"",'Appliance Calculations'!O4) -> 
G23: Select… | R23: =IF(G23="Select…","",IF(G23="< 12kW",'Appliance Calculations'!N5,IF(G23="≥ 12 kW",'Appliance Calculations'!N5))) ->  | U23: =IF((R23=""),"",'Appliance Calculations'!O5) -> 
B28: ="ENERGY STAR - Clothes Dryer - Electric Resistance - $"&'Appliances References'!AJ8&" each" -> ENERGY STAR - Clothes Dryer - Electric Resistance - $50 each
E31: Proposed Quantity | G31: ENERGY STAR Unique ID | J31: Manufacturer | M31: Model Number | P31: Rebate | S31: Bonus
P32: =IF(OR(E32="",G32=""),"",'Appliance Calculations'!N14) ->  | S32: =IF(OR(E32="",G32=""),"",'Appliance Calculations'!O14) -> 
P33: =IF(OR(E33="",G33=""),"",'Appliance Calculations'!N15) ->  | S33: =IF(OR(E33="",G33=""),"",'Appliance Calculations'!O15) -> 
P34: =IF(OR(E34="",G34=""),"",'Appliance Calculations'!N16) ->  | S34: =IF(OR(E34="",G34=""),"",'Appliance Calculations'!O16) -> 
P35: =IF(OR(E35="",G35=""),"",'Appliance Calculations'!N17) ->  | S35: =IF(OR(E35="",G35=""),"",'Appliance Calculations'!O17) -> 
B40: Smart Connected Thermostats - $70 each
E43: Proposed Quantity | G43: Manufacturer | J43: Qualified Model | M43: Rebate
B52: ="ENERGY STAR - Heat Pump Water Heater ≤ 55 gallons or > 55 gallons - $"&'Appliances References'!AJ5&" each" -> ENERGY STAR - Heat Pump Water Heater ≤ 55 gallons or > 55 gallons - $1000 each
E55: Proposed Quantity | G55: Equipment Size | J55: ENERGY STAR Unique ID | M55: Proposed Efficiency (Uniform Energy Factor) | O55: Manufacturer | R55: Model Number | U55: Rebate | X55: Bonus
G56: Select… | U56: =IF(G56="Select…","",IF(G56="≤ 55 Gallons",'Appliance Calculations'!N38,IF(G56="> 55 Gallons",'Appliance Calculations'!N38))) ->  | X56: =IF(U56="","",'Appliance Calculations'!O38) -> 
G57: Select… | U57: =IF(G57="Select…","",IF(G57="≤ 55 Gallons",'Appliance Calculations'!N39,IF(G57="> 55 Gallons",'Appliance Calculations'!N39))) ->  | X57: =IF(U57="","",'Appliance Calculations'!O39) -> 
G58: Select… | U58: =IF(G58="Select…","",IF(G58="≤ 55 Gallons",'Appliance Calculations'!N40,IF(G58="> 55 Gallons",'Appliance Calculations'!N40))) ->  | X58: =IF(U58="","",'Appliance Calculations'!O40) -> 
G59: Select… | U59: =IF(G59="Select…","",IF(G59="≤ 55 Gallons",'Appliance Calculations'!N41,IF(G59="> 55 Gallons",'Appliance Calculations'!N41))) ->  | X59: =IF(U59="","",'Appliance Calculations'!O41) -> 
B64: ="ENERGY STAR Most Efficient Clothes Dryer - Heat Pump - $"&'Appliances References'!AJ9&" each" -> ENERGY STAR Most Efficient Clothes Dryer - Heat Pump - $300 each
E67: Proposed Quantity | G67: ENERGY STAR Unique ID | J67: Manufacturer | M67: Model Number | P67: Rebate | S67: Bonus
P68: =IF(OR(E68="",G68=""),"",'Appliance Calculations'!N50) ->  | S68: =IF(OR(E68="",G68=""),"",'Appliance Calculations'!O50) -> 
P69: =IF(OR(E69="",G69=""),"",'Appliance Calculations'!N51) ->  | S69: =IF(OR(E69="",G69=""),"",'Appliance Calculations'!O51) -> 
P70: =IF(OR(E70="",G70=""),"",'Appliance Calculations'!N52) ->  | S70: =IF(OR(E70="",G70=""),"",'Appliance Calculations'!O52) -> 
P71: =IF(OR(E71="",G71=""),"",'Appliance Calculations'!N53) ->  | S71: =IF(OR(E71="",G71=""),"",'Appliance Calculations'!O53) -> 
B76: ="ENERGY STAR Most Efficient Clothes Washer - $"&'Appliances References'!AJ7&" each" -> ENERGY STAR Most Efficient Clothes Washer - $50 each
E79: Proposed Quantity | G79: ENERGY STAR Unique ID | J79: Manufacturer | M79: Model Number | P79: Rebate | S79: Bonus
P80: =IF(OR(E80="",G80=""),"",'Appliance Calculations'!N62) ->  | S80: =IF(OR(E80="",G80=""),"",'Appliance Calculations'!O62) -> 
P81: =IF(OR(E81="",G81=""),"",'Appliance Calculations'!N63) ->  | S81: =IF(OR(E81="",G81=""),"",'Appliance Calculations'!O63) -> 
P82: =IF(OR(E82="",G82=""),"",'Appliance Calculations'!N64) ->  | S82: =IF(OR(E82="",G82=""),"",'Appliance Calculations'!O64) -> 
P83: =IF(OR(E83="",G83=""),"",'Appliance Calculations'!N65) ->  | S83: =IF(OR(E83="",G83=""),"",'Appliance Calculations'!O65) -> 
B88: Smart Learning Thermostats - $100 each
E91: Proposed Quantity | G91: Manufacturer | J91: Qualified Model | M91: Rebate
B100: ="Solar Pool Cover - $"&'Appliances References'!AJ30&" each" -> Solar Pool Cover - $75 each
E103: Proposed Quantity | G103: Pool Cover Square Footage | J103: Manufacturer | M103: Model Number | P103: Rebate
P104: =IF(OR(E104="",G104=""),"",'Appliance Calculations'!N86) -> 
P105: =IF(OR(E105="",G105=""),"",'Appliance Calculations'!N87) -> 
P106: =IF(OR(E106="",G106=""),"",'Appliance Calculations'!N88) -> 
P107: =IF(OR(E107="",G107=""),"",'Appliance Calculations'!N89) -> 
B112: ="Heat Pump Pool Heater - $"&'Appliances References'!AJ29&" each" -> Heat Pump Pool Heater - $1000 each
E115: Proposed Quantity | G115: Coefficient of Performance (COP) | J115: Manufacturer | M115: Model Number | P115: Rebate
P116: =IF(OR(E116="",J116=""),"",'Appliance Calculations'!N98) -> 
P117: =IF(OR(E117="",J117=""),"",'Appliance Calculations'!N99) -> 
P118: =IF(OR(E118="",J118=""),"",'Appliance Calculations'!N100) -> 
P119: =IF(OR(E119="",J119=""),"",'Appliance Calculations'!N101) -> 
B124: ="ENERGY STAR Dehumidifier - $"&'Appliances References'!AJ14&" each" -> ENERGY STAR Dehumidifier - $30 each
E127: Proposed Quantity | G127: ENERGY STAR Unique ID | J127: Manufacturer | M127: Model Number | P127: Rebate
P128: =IF(OR(E128="",G128=""),"",'Appliance Calculations'!N110) -> 
P129: =IF(OR(E129="",G129=""),"",'Appliance Calculations'!N111) -> 
P130: =IF(OR(E130="",G130=""),"",'Appliance Calculations'!N112) -> 
P131: =IF(OR(E131="",G131=""),"",'Appliance Calculations'!N113) -> 
B136: ENERGY STAR Air Purifier <150 CADR or >150 CADR - $60 and $80 each
E139: Proposed Quantity | G139: Equipment Size | J139: ENERGY STAR Unique ID | M139: Manufacturer | P139: Model Number | S139: Rebate
G140: Select… | S140: =IF(OR(E140="",J140=""),"",'Appliance Calculations'!N122) -> 
G141: Select… | S141: =IF(OR(E141="",J141=""),"",'Appliance Calculations'!N123) -> 
G142: Select… | S142: =IF(OR(E142="",J142=""),"",'Appliance Calculations'!N124) -> 
G143: Select… | S143: =IF(OR(E143="",J143=""),"",'Appliance Calculations'!N125) -> 
B148: ="Battery Operated Lawn Mower All Sizes - $"&'Appliances References'!AJ23&" each" -> Battery Operated Lawn Mower All Sizes - $30 each
E151: Proposed Quantity | G151: Manufacturer | J151: Model Number | M151: Rebate
M152: =IF(OR(E152="",J152=""),"",'Appliance Calculations'!N134) -> 
M153: =IF(OR(E153="",J153=""),"",'Appliance Calculations'!N135) -> 
M154: =IF(OR(E154="",J154=""),"",'Appliance Calculations'!N136) -> 
M155: =IF(OR(E155="",J155=""),"",'Appliance Calculations'!N137) -> 
B160: ="Battery Operated Lawn Mower 4-5aH - $"&'Appliances References'!AJ24&" each" -> Battery Operated Lawn Mower 4-5aH - $30 each
E163: Proposed Quantity | G163: Manufacturer | J163: Model Number | M163: Rebate
M164: =IF(OR(E164="",J164=""),"",'Appliance Calculations'!N146) -> 
M165: =IF(OR(E165="",J165=""),"",'Appliance Calculations'!N147) -> 
M166: =IF(OR(E166="",J166=""),"",'Appliance Calculations'!N148) -> 
M167: =IF(OR(E167="",J167=""),"",'Appliance Calculations'!N149) -> 
B172: ="Battery Operated Lawn Mower >5aH - $"&'Appliances References'!AJ25&" each" -> Battery Operated Lawn Mower >5aH - $40 each
E175: Proposed Quantity | G175: Manufacturer | J175: Model Number | M175: Rebate
M176: =IF(OR(E176="",J176=""),"",'Appliance Calculations'!N158) -> 
M177: =IF(OR(E177="",J177=""),"",'Appliance Calculations'!N159) -> 
M178: =IF(OR(E178="",J178=""),"",'Appliance Calculations'!N160) -> 
M179: =IF(OR(E179="",J179=""),"",'Appliance Calculations'!N161) -> 
B184: ="Battery Operated Leaf Blower - $"&'Appliances References'!AJ27&" each" -> Battery Operated Leaf Blower - $20 each
E187: Proposed Quantity | G187: Manufacturer | J187: Model Number | M187: Rebate
M188: =IF(OR(E188="",G188=""),"",'Appliance Calculations'!N170) -> 
M189: =IF(OR(E189="",G189=""),"",'Appliance Calculations'!N171) -> 
M190: =IF(OR(E190="",G190=""),"",'Appliance Calculations'!N172) -> 
M191: =IF(OR(E191="",G191=""),"",'Appliance Calculations'!N173) -> 
B196: ="Battery Operated Weed Trimmer - $"&'Appliances References'!AJ26&" each" -> Battery Operated Weed Trimmer - $20 each
E199: Proposed Quantity | G199: Manufacturer | J199: Model Number | M199: Rebate
M200: =IF(OR(E200="",G200=""),"",'Appliance Calculations'!N182) -> 
M201: =IF(OR(E201="",G201=""),"",'Appliance Calculations'!N183) -> 
M202: =IF(OR(E202="",G202=""),"",'Appliance Calculations'!N184) -> 
M203: =IF(OR(E203="",G203=""),"",'Appliance Calculations'!N185) -> 
B208: ENERGY STAR Refrigerator
E211: Proposed Quantity | G211: ENERGY STAR Unique ID | J211: Manufacturer | M211: Model Number
B220: Most Efficient Refrigerator
E223: Proposed Quantity | G223: ENERGY STAR Unique ID | J223: Manufacturer | M223: Model Number
B232: ENERGY STAR Clothes Washer
E235: Proposed Quantity | G235: ENERGY STAR Unique ID | J235: Manufacturer | M235: Model Number
B244: ENERGY STAR Dishwasher
E247: Proposed Quantity | G247: ENERGY STAR Unique ID | J247: Manufacturer | M247: Model Number
B256: Most Efficient Dishwasher
E259: Proposed Quantity | G259: ENERGY STAR Unique ID | J259: Manufacturer | M259: Model Number
B268: Standard Electric Range Oven
E271: Proposed Quantity | G271: Manufacturer | J271: Model Number
B280: Induction Cooktop/Convection Oven
E283: Proposed Quantity | G283: Manufacturer | J283: Model Number
B292: Propane Stove
E295: Proposed Quantity | G295: Manufacturer | J295: Model Number
B304: ENERGY STAR LED A-19 Bulbs
E307: Proposed Quantity | G307: ENERGY STAR Unique ID | J307: Manufacturer | M307: Model Number
B316: ENERGY STAR LED Specialty
E319: Proposed Quantity | G319: ENERGY STAR Unique ID | J319: Manufacturer | M319: Model Number

Sheet Appliance Calculations (hidden)
A1: Device - Tankless | B1: Proposed Qty | C1: Gross kW per unit | D1: EE kWh per unit | E1: Winter kW saved | F1: BE kWh saved | G1: MMBTU EE | H1: MMBTU BE | I1: EE CO2 | J1: BE CO2 | K1: Rebate per unit | M1: $/kWh | N1: Total Rebate | O1: Bonus | P1: Total Rebate + Bonus
A2: =IF('Appliances Worksheet'!E20="","",IF('Appliances Worksheet'!G20='Appliances References'!$C$8,'Appliances References'!$N$21,'Appliances References'!$N$22)) ->  | B2: =IF('Appliances Worksheet'!E20="","",'Appliances Worksheet'!E20) ->  | C2: =IF($A2="","",INDEX('Appliances References'!$R$5:$R$36,MATCH($A2,'Appliances References'!$N$5:$N$36,0))) ->  | D2: =IF($A2="","",INDEX('Appliances References'!$S$5:$S$36,MATCH($A2,'Appliances References'!$N$5:$N$36,0))) ->  | E2: =IF($A2="","",INDEX('Appliances References'!$T$5:$T$36,MATCH($A2,'Appliances References'!$N$5:$N$36,0))) ->  | F2: =IF($A2="","",INDEX('Appliances References'!$U$5:$U$36,MATCH($A2,'Appliances References'!$N$5:$N$36,0))) ->  | G2: =IF($A2="","",INDEX('Appliances References'!$V$5:$V$36,MATCH($A2,'Appliances References'!$N$5:$N$36,0))) ->  | H2: =IF($A2="","",INDEX('Appliances References'!$W$5:$W$36,MATCH($A2,'Appliances References'!$N$5:$N$36,0))) ->  | I2: =IF($A2="","",INDEX('Appliances References'!$Y$5:$Y$36,MATCH($A2,'Appliances References'!$N$5:$N$36,0))) ->  | J2: =IF($A2="","",INDEX('Appliances References'!$Z$5:$Z$36,MATCH($A2,'Appliances References'!$N$5:$N$36,0))) ->  | K2: =IF($A2="","",INDEX('Appliances References'!$AJ$5:$AJ$36,MATCH($A2,'Appliances References'!$N$5:$N$36,0))) ->  | M2: =IF(D2="","",K2/D2) ->  | N2: =IF(B2>0,B2*K2,"") ->  | O2: =IF(B2>0,N2*References!$BX$23,"") ->  | P2: =IF(B2>0,N2+O2,"") -> 
A3: =IF('Appliances Worksheet'!E21="","",IF('Appliances Worksheet'!G21='Appliances References'!$C$8,'Appliances References'!$N$21,'Appliances References'!$N$22)) ->  | B3: =IF('Appliances Worksheet'!E21="","",'Appliances Worksheet'!E21) ->  | C3: =IF($A3="","",INDEX('Appliances References'!$R$5:$R$36,MATCH($A3,'Appliances References'!$N$5:$N$36,0))) ->  | D3: =IF($A3="","",INDEX('Appliances References'!$S$5:$S$36,MATCH($A3,'Appliances References'!$N$5:$N$36,0))) ->  | E3: =IF($A3="","",INDEX('Appliances References'!$T$5:$T$36,MATCH($A3,'Appliances References'!$N$5:$N$36,0))) ->  | F3: =IF($A3="","",INDEX('Appliances References'!$U$5:$U$36,MATCH($A3,'Appliances References'!$N$5:$N$36,0))) ->  | G3: =IF($A3="","",INDEX('Appliances References'!$V$5:$V$36,MATCH($A3,'Appliances References'!$N$5:$N$36,0))) ->  | H3: =IF($A3="","",INDEX('Appliances References'!$W$5:$W$36,MATCH($A3,'Appliances References'!$N$5:$N$36,0))) ->  | I3: =IF($A3="","",INDEX('Appliances References'!$Y$5:$Y$36,MATCH($A3,'Appliances References'!$N$5:$N$36,0))) ->  | J3: =IF($A3="","",INDEX('Appliances References'!$Z$5:$Z$36,MATCH($A3,'Appliances References'!$N$5:$N$36,0))) ->  | K3: =IF($A3="","",INDEX('Appliances References'!$AJ$5:$AJ$36,MATCH($A3,'Appliances References'!$N$5:$N$36,0))) ->  | M3: =IF(D3="","",K3/D3) ->  | N3: =IF(B3>0,B3*K3,"") ->  | O3: =IF(B3>0,N3*References!$BX$23,"") ->  | P3: =IF(B3>0,N3+O3,"") -> 
A4: =IF('Appliances Worksheet'!E22="","",IF('Appliances Worksheet'!G22='Appliances References'!$C$8,'Appliances References'!$N$21,'Appliances References'!$N$22)) ->  | B4: =IF('Appliances Worksheet'!E22="","",'Appliances Worksheet'!E22) ->  | C4: =IF($A4="","",INDEX('Appliances References'!$R$5:$R$36,MATCH($A4,'Appliances References'!$N$5:$N$36,0))) ->  | D4: =IF($A4="","",INDEX('Appliances References'!$S$5:$S$36,MATCH($A4,'Appliances References'!$N$5:$N$36,0))) ->  | E4: =IF($A4="","",INDEX('Appliances References'!$T$5:$T$36,MATCH($A4,'Appliances References'!$N$5:$N$36,0))) ->  | F4: =IF($A4="","",INDEX('Appliances References'!$U$5:$U$36,MATCH($A4,'Appliances References'!$N$5:$N$36,0))) ->  | G4: =IF($A4="","",INDEX('Appliances References'!$V$5:$V$36,MATCH($A4,'Appliances References'!$N$5:$N$36,0))) ->  | H4: =IF($A4="","",INDEX('Appliances References'!$W$5:$W$36,MATCH($A4,'Appliances References'!$N$5:$N$36,0))) ->  | I4: =IF($A4="","",INDEX('Appliances References'!$Y$5:$Y$36,MATCH($A4,'Appliances References'!$N$5:$N$36,0))) ->  | J4: =IF($A4="","",INDEX('Appliances References'!$Z$5:$Z$36,MATCH($A4,'Appliances References'!$N$5:$N$36,0))) ->  | K4: =IF($A4="","",INDEX('Appliances References'!$AJ$5:$AJ$36,MATCH($A4,'Appliances References'!$N$5:$N$36,0))) ->  | O4: =IF(B4>0,N4*References!$BX$23,"") -> 
A5: =IF('Appliances Worksheet'!E23="","",IF('Appliances Worksheet'!G23='Appliances References'!$C$8,'Appliances References'!$N$21,'Appliances References'!$N$22)) ->  | B5: =IF('Appliances Worksheet'!E23="","",'Appliances Worksheet'!E23) ->  | C5: =IF($A5="","",INDEX('Appliances References'!$R$5:$R$36,MATCH($A5,'Appliances References'!$N$5:$N$36,0))) ->  | D5: =IF($A5="","",INDEX('Appliances References'!$S$5:$S$36,MATCH($A5,'Appliances References'!$N$5:$N$36,0))) ->  | E5: =IF($A5="","",INDEX('Appliances References'!$T$5:$T$36,MATCH($A5,'Appliances References'!$N$5:$N$36,0))) ->  | F5: =IF($A5="","",INDEX('Appliances References'!$U$5:$U$36,MATCH($A5,'Appliances References'!$N$5:$N$36,0))) ->  | G5: =IF($A5="","",INDEX('Appliances References'!$V$5:$V$36,MATCH($A5,'Appliances References'!$N$5:$N$36,0))) ->  | H5: =IF($A5="","",INDEX('Appliances References'!$W$5:$W$36,MATCH($A5,'Appliances References'!$N$5:$N$36,0))) ->  | I5: =IF($A5="","",INDEX('Appliances References'!$Y$5:$Y$36,MATCH($A5,'Appliances References'!$N$5:$N$36,0))) ->  | J5: =IF($A5="","",INDEX('Appliances References'!$Z$5:$Z$36,MATCH($A5,'Appliances References'!$N$5:$N$36,0))) ->  | K5: =IF($A5="","",INDEX('Appliances References'!$AJ$5:$AJ$36,MATCH($A5,'Appliances References'!$N$5:$N$36,0))) ->  | O5: =IF(B5>0,N5*References!$BX$23,"") -> 
A12: Clothes Dryer - Electric Resistance
A13: Device | B13: Proposed Qty | C13: Gross kW per unit | D13: EE kWh per unit | E13: Winter kW saved | F13: BE kWh saved | G13: MMBTU EE | H13: MMBTU BE | I13: EE CO2 | J13: BE CO2 | K13: Rebate per unit | M13: $/kWh | N13: Total Rebate | O13: Bonus | P13: Total Rebate + Bonus
A14: =IF('Appliances Worksheet'!E32="","",'Appliances References'!$N$8) ->  | B14: =IF('Appliances Worksheet'!E32="","",'Appliances Worksheet'!E32) ->  | C14: =IF($A14="","",INDEX('Appliances References'!$R$5:$R$36,MATCH($A14,'Appliances References'!$N$5:$N$36,0))) ->  | D14: =IF($A14="","",INDEX('Appliances References'!$S$5:$S$36,MATCH($A14,'Appliances References'!$N$5:$N$36,0))) ->  | E14: =IF($A14="","",INDEX('Appliances References'!$T$5:$T$36,MATCH($A14,'Appliances References'!$N$5:$N$36,0))) ->  | F14: =IF($A14="","",INDEX('Appliances References'!$U$5:$U$36,MATCH($A14,'Appliances References'!$N$5:$N$36,0))) ->  | G14: =IF($A14="","",INDEX('Appliances References'!$V$5:$V$36,MATCH($A14,'Appliances References'!$N$5:$N$36,0))) ->  | H14: =IF($A14="","",INDEX('Appliances References'!$W$5:$W$36,MATCH($A14,'Appliances References'!$N$5:$N$36,0))) ->  | I14: =IF($A14="","",INDEX('Appliances References'!$Y$5:$Y$36,MATCH($A14,'Appliances References'!$N$5:$N$36,0))) ->  | J14: =IF($A14="","",INDEX('Appliances References'!$Z$5:$Z$36,MATCH($A14,'Appliances References'!$N$5:$N$36,0))) ->  | K14: =IF($A14="","",INDEX('Appliances References'!$AJ$5:$AJ$36,MATCH($A14,'Appliances References'!$N$5:$N$36,0))) ->  | M14: =IF(D14="","",K14/D14) ->  | N14: =IF(B14>0,B14*K14,"") ->  | O14: =IF(B14>0,N14*References!$BX$23,"") ->  | P14: =IF(B14>0,N14+O14,"") -> 
A15: =IF('Appliances Worksheet'!E33="","",'Appliances References'!$N$8) ->  | B15: =IF('Appliances Worksheet'!E33="","",'Appliances Worksheet'!E33) ->  | C15: =IF($A15="","",INDEX('Appliances References'!$R$5:$R$36,MATCH($A15,'Appliances References'!$N$5:$N$36,0))) ->  | D15: =IF($A15="","",INDEX('Appliances References'!$S$5:$S$36,MATCH($A15,'Appliances References'!$N$5:$N$36,0))) ->  | E15: =IF($A15="","",INDEX('Appliances References'!$T$5:$T$36,MATCH($A15,'Appliances References'!$N$5:$N$36,0))) ->  | F15: =IF($A15="","",INDEX('Appliances References'!$U$5:$U$36,MATCH($A15,'Appliances References'!$N$5:$N$36,0))) ->  | G15: =IF($A15="","",INDEX('Appliances References'!$V$5:$V$36,MATCH($A15,'Appliances References'!$N$5:$N$36,0))) ->  | H15: =IF($A15="","",INDEX('Appliances References'!$W$5:$W$36,MATCH($A15,'Appliances References'!$N$5:$N$36,0))) ->  | I15: =IF($A15="","",INDEX('Appliances References'!$Y$5:$Y$36,MATCH($A15,'Appliances References'!$N$5:$N$36,0))) ->  | J15: =IF($A15="","",INDEX('Appliances References'!$Z$5:$Z$36,MATCH($A15,'Appliances References'!$N$5:$N$36,0))) ->  | K15: =IF($A15="","",INDEX('Appliances References'!$AJ$5:$AJ$36,MATCH($A15,'Appliances References'!$N$5:$N$36,0))) ->  | O15: =IF(B15>0,N15*References!$BX$23,"") -> 
A16: =IF('Appliances Worksheet'!E34="","",'Appliances References'!$N$8) ->  | B16: =IF('Appliances Worksheet'!E34="","",'Appliances Worksheet'!E34) ->  | C16: =IF($A16="","",INDEX('Appliances References'!$R$5:$R$36,MATCH($A16,'Appliances References'!$N$5:$N$36,0))) ->  | D16: =IF($A16="","",INDEX('Appliances References'!$S$5:$S$36,MATCH($A16,'Appliances References'!$N$5:$N$36,0))) ->  | E16: =IF($A16="","",INDEX('Appliances References'!$T$5:$T$36,MATCH($A16,'Appliances References'!$N$5:$N$36,0))) ->  | F16: =IF($A16="","",INDEX('Appliances References'!$U$5:$U$36,MATCH($A16,'Appliances References'!$N$5:$N$36,0))) ->  | G16: =IF($A16="","",INDEX('Appliances References'!$V$5:$V$36,MATCH($A16,'Appliances References'!$N$5:$N$36,0))) ->  | H16: =IF($A16="","",INDEX('Appliances References'!$W$5:$W$36,MATCH($A16,'Appliances References'!$N$5:$N$36,0))) ->  | I16: =IF($A16="","",INDEX('Appliances References'!$Y$5:$Y$36,MATCH($A16,'Appliances References'!$N$5:$N$36,0))) ->  | J16: =IF($A16="","",INDEX('Appliances References'!$Z$5:$Z$36,MATCH($A16,'Appliances References'!$N$5:$N$36,0))) ->  | K16: =IF($A16="","",INDEX('Appliances References'!$AJ$5:$AJ$36,MATCH($A16,'Appliances References'!$N$5:$N$36,0))) ->  | O16: =IF(B16>0,N16*References!$BX$23,"") -> 
A17: =IF('Appliances Worksheet'!E35="","",'Appliances References'!$N$8) ->  | B17: =IF('Appliances Worksheet'!E35="","",'Appliances Worksheet'!E35) ->  | C17: =IF($A17="","",INDEX('Appliances References'!$R$5:$R$36,MATCH($A17,'Appliances References'!$N$5:$N$36,0))) ->  | D17: =IF($A17="","",INDEX('Appliances References'!$S$5:$S$36,MATCH($A17,'Appliances References'!$N$5:$N$36,0))) ->  | E17: =IF($A17="","",INDEX('Appliances References'!$T$5:$T$36,MATCH($A17,'Appliances References'!$N$5:$N$36,0))) ->  | F17: =IF($A17="","",INDEX('Appliances References'!$U$5:$U$36,MATCH($A17,'Appliances References'!$N$5:$N$36,0))) ->  | G17: =IF($A17="","",INDEX('Appliances References'!$V$5:$V$36,MATCH($A17,'Appliances References'!$N$5:$N$36,0))) ->  | H17: =IF($A17="","",INDEX('Appliances References'!$W$5:$W$36,MATCH($A17,'Appliances References'!$N$5:$N$36,0))) ->  | I17: =IF($A17="","",INDEX('Appliances References'!$Y$5:$Y$36,MATCH($A17,'Appliances References'!$N$5:$N$36,0))) ->  | J17: =IF($A17="","",INDEX('Appliances References'!$Z$5:$Z$36,MATCH($A17,'Appliances References'!$N$5:$N$36,0))) ->  | K17: =IF($A17="","",INDEX('Appliances References'!$AJ$5:$AJ$36,MATCH($A17,'Appliances References'!$N$5:$N$36,0))) ->  | O17: =IF(B17>0,N17*References!$BX$23,"") -> 
A24: Smart Thermostat - Connected
A25: Device | B25: Proposed Qty | C25: Gross kW per unit | D25: EE kWh per unit | E25: Winter kW saved | F25: BE kWh saved | G25: MMBTU EE | H25: MMBTU BE | I25: EE CO2 | J25: BE CO2 | K25: Rebate per unit | M25: $/kWh | N25: Total Rebate | O25: Bonus | P25: Total Rebate + Bonus
N26: =IF(B26>0,B26*K26,"") ->  | O26: =IF(B26>0,N26*References!$BX$23,"") ->  | P26: =IF(B26>0,N26+O26,"") -> 
O27: =IF(B27>0,N27*References!$BX$23,"") -> 
O28: =IF(B28>0,N28*References!$BX$23,"") -> 
O29: =IF(B29>0,N29*References!$BX$23,"") -> 
A36: HPWH
A37: Device | B37: Proposed Qty | C37: Gross kW per unit | D37: EE kWh per unit | E37: Winter kW saved | F37: BE kWh saved | G37: MMBTU EE | H37: MMBTU BE | I37: EE CO2 | J37: BE CO2 | K37: Rebate per unit | M37: $/kWh | N37: Total Rebate | O37: Bonus | P37: Total Rebate + Bonus
A38: =IF('Appliances Worksheet'!E56="","",IF('Appliances Worksheet'!G56='Appliances References'!$B$8,'Appliances References'!$N$5,'Appliances References'!$N$6)) ->  | B38: =IF('Appliances Worksheet'!E56="","",'Appliances Worksheet'!E56) ->  | C38: =IF($A38="","",INDEX('Appliances References'!$R$5:$R$36,MATCH($A38,'Appliances References'!$N$5:$N$36,0))) ->  | D38: =IF($A38="","",INDEX('Appliances References'!$S$5:$S$36,MATCH($A38,'Appliances References'!$N$5:$N$36,0))) ->  | E38: =IF($A38="","",INDEX('Appliances References'!$T$5:$T$36,MATCH($A38,'Appliances References'!$N$5:$N$36,0))) ->  | F38: =IF($A38="","",INDEX('Appliances References'!$U$5:$U$36,MATCH($A38,'Appliances References'!$N$5:$N$36,0))) ->  | G38: =IF($A38="","",INDEX('Appliances References'!$V$5:$V$36,MATCH($A38,'Appliances References'!$N$5:$N$36,0))) ->  | H38: =IF($A38="","",INDEX('Appliances References'!$W$5:$W$36,MATCH($A38,'Appliances References'!$N$5:$N$36,0))) ->  | I38: =IF($A38="","",INDEX('Appliances References'!$Y$5:$Y$36,MATCH($A38,'Appliances References'!$N$5:$N$36,0))) ->  | J38: =IF($A38="","",INDEX('Appliances References'!$Z$5:$Z$36,MATCH($A38,'Appliances References'!$N$5:$N$36,0))) ->  | K38: =IF($A38="","",INDEX('Appliances References'!$AJ$5:$AJ$36,MATCH($A38,'Appliances References'!$N$5:$N$36,0))) ->  | M38: =IF(D38="","",K38/D38) ->  | N38: =IF(B38>0,B38*K38,"") ->  | O38: =IF(B38>0,N38*References!$BX$23,"") ->  | P38: =IF(B38>0,N38+O38,"") -> 
A39: =IF('Appliances Worksheet'!E57="","",IF('Appliances Worksheet'!G57='Appliances References'!$B$8,'Appliances References'!$N$5,'Appliances References'!$N$6)) ->  | B39: =IF('Appliances Worksheet'!E57="","",'Appliances Worksheet'!E57) ->  | C39: =IF($A39="","",INDEX('Appliances References'!$R$5:$R$36,MATCH($A39,'Appliances References'!$N$5:$N$36,0))) ->  | D39: =IF($A39="","",INDEX('Appliances References'!$S$5:$S$36,MATCH($A39,'Appliances References'!$N$5:$N$36,0))) ->  | E39: =IF($A39="","",INDEX('Appliances References'!$T$5:$T$36,MATCH($A39,'Appliances References'!$N$5:$N$36,0))) ->  | F39: =IF($A39="","",INDEX('Appliances References'!$U$5:$U$36,MATCH($A39,'Appliances References'!$N$5:$N$36,0))) ->  | G39: =IF($A39="","",INDEX('Appliances References'!$V$5:$V$36,MATCH($A39,'Appliances References'!$N$5:$N$36,0))) ->  | H39: =IF($A39="","",INDEX('Appliances References'!$W$5:$W$36,MATCH($A39,'Appliances References'!$N$5:$N$36,0))) ->  | I39: =IF($A39="","",INDEX('Appliances References'!$Y$5:$Y$36,MATCH($A39,'Appliances References'!$N$5:$N$36,0))) ->  | J39: =IF($A39="","",INDEX('Appliances References'!$Z$5:$Z$36,MATCH($A39,'Appliances References'!$N$5:$N$36,0))) ->  | K39: =IF($A39="","",INDEX('Appliances References'!$AJ$5:$AJ$36,MATCH($A39,'Appliances References'!$N$5:$N$36,0))) ->  | M39: =IF(D39="","",K39/D39) ->  | O39: =IF(B39>0,N39*References!$BX$23,"") -> 
A40: =IF('Appliances Worksheet'!E58="","",IF('Appliances Worksheet'!G58='Appliances References'!$B$8,'Appliances References'!$N$5,'Appliances References'!$N$6)) ->  | B40: =IF('Appliances Worksheet'!E58="","",'Appliances Worksheet'!E58) ->  | C40: =IF($A40="","",INDEX('Appliances References'!$R$5:$R$36,MATCH($A40,'Appliances References'!$N$5:$N$36,0))) ->  | D40: =IF($A40="","",INDEX('Appliances References'!$S$5:$S$36,MATCH($A40,'Appliances References'!$N$5:$N$36,0))) ->  | E40: =IF($A40="","",INDEX('Appliances References'!$T$5:$T$36,MATCH($A40,'Appliances References'!$N$5:$N$36,0))) ->  | F40: =IF($A40="","",INDEX('Appliances References'!$U$5:$U$36,MATCH($A40,'Appliances References'!$N$5:$N$36,0))) ->  | G40: =IF($A40="","",INDEX('Appliances References'!$V$5:$V$36,MATCH($A40,'Appliances References'!$N$5:$N$36,0))) ->  | H40: =IF($A40="","",INDEX('Appliances References'!$W$5:$W$36,MATCH($A40,'Appliances References'!$N$5:$N$36,0))) ->  | I40: =IF($A40="","",INDEX('Appliances References'!$Y$5:$Y$36,MATCH($A40,'Appliances References'!$N$5:$N$36,0))) ->  | J40: =IF($A40="","",INDEX('Appliances References'!$Z$5:$Z$36,MATCH($A40,'Appliances References'!$N$5:$N$36,0))) ->  | K40: =IF($A40="","",INDEX('Appliances References'!$AJ$5:$AJ$36,MATCH($A40,'Appliances References'!$N$5:$N$36,0))) ->  | O40: =IF(B40>0,N40*References!$BX$23,"") -> 
A41: =IF('Appliances Worksheet'!E59="","",IF('Appliances Worksheet'!G59='Appliances References'!$B$8,'Appliances References'!$N$5,'Appliances References'!$N$6)) ->  | B41: =IF('Appliances Worksheet'!E59="","",'Appliances Worksheet'!E59) ->  | C41: =IF($A41="","",INDEX('Appliances References'!$R$5:$R$36,MATCH($A41,'Appliances References'!$N$5:$N$36,0))) ->  | D41: =IF($A41="","",INDEX('Appliances References'!$S$5:$S$36,MATCH($A41,'Appliances References'!$N$5:$N$36,0))) ->  | E41: =IF($A41="","",INDEX('Appliances References'!$T$5:$T$36,MATCH($A41,'Appliances References'!$N$5:$N$36,0))) ->  | F41: =IF($A41="","",INDEX('Appliances References'!$U$5:$U$36,MATCH($A41,'Appliances References'!$N$5:$N$36,0))) ->  | G41: =IF($A41="","",INDEX('Appliances References'!$V$5:$V$36,MATCH($A41,'Appliances References'!$N$5:$N$36,0))) ->  | H41: =IF($A41="","",INDEX('Appliances References'!$W$5:$W$36,MATCH($A41,'Appliances References'!$N$5:$N$36,0))) ->  | I41: =IF($A41="","",INDEX('Appliances References'!$Y$5:$Y$36,MATCH($A41,'Appliances References'!$N$5:$N$36,0))) ->  | J41: =IF($A41="","",INDEX('Appliances References'!$Z$5:$Z$36,MATCH($A41,'Appliances References'!$N$5:$N$36,0))) ->  | K41: =IF($A41="","",INDEX('Appliances References'!$AJ$5:$AJ$36,MATCH($A41,'Appliances References'!$N$5:$N$36,0))) ->  | O41: =IF(B41>0,N41*References!$BX$23,"") -> 
A48: ME Clothes Dryer
A49: Device | B49: Proposed Qty | C49: Gross kW per unit | D49: EE kWh per unit | E49: Winter kW saved | F49: BE kWh saved | G49: MMBTU EE | H49: MMBTU BE | I49: EE CO2 | J49: BE CO2 | K49: Rebate per unit | M49: $/kWh | N49: Total Rebate | O49: Bonus | P49: Total Rebate + Bonus
A50: =IF('Appliances Worksheet'!E68="","",'Appliances References'!$N$9) ->  | B50: =IF('Appliances Worksheet'!E68="","",'Appliances Worksheet'!E68) ->  | C50: =IF($A50="","",INDEX('Appliances References'!$R$5:$R$36,MATCH($A50,'Appliances References'!$N$5:$N$36,0))) ->  | D50: =IF($A50="","",INDEX('Appliances References'!$S$5:$S$36,MATCH($A50,'Appliances References'!$N$5:$N$36,0))) ->  | E50: =IF($A50="","",INDEX('Appliances References'!$T$5:$T$36,MATCH($A50,'Appliances References'!$N$5:$N$36,0))) ->  | F50: =IF($A50="","",INDEX('Appliances References'!$U$5:$U$36,MATCH($A50,'Appliances References'!$N$5:$N$36,0))) ->  | G50: =IF($A50="","",INDEX('Appliances References'!$V$5:$V$36,MATCH($A50,'Appliances References'!$N$5:$N$36,0))) ->  | H50: =IF($A50="","",INDEX('Appliances References'!$W$5:$W$36,MATCH($A50,'Appliances References'!$N$5:$N$36,0))) ->  | I50: =IF($A50="","",INDEX('Appliances References'!$Y$5:$Y$36,MATCH($A50,'Appliances References'!$N$5:$N$36,0))) ->  | J50: =IF($A50="","",INDEX('Appliances References'!$Z$5:$Z$36,MATCH($A50,'Appliances References'!$N$5:$N$36,0))) ->  | K50: =IF($A50="","",INDEX('Appliances References'!$AJ$5:$AJ$36,MATCH($A50,'Appliances References'!$N$5:$N$36,0))) ->  | M50: =IF(D50="","",K50/D50) ->  | N50: =IF(B50>0,B50*K50,"") ->  | O50: =IF(B50>0,N50*References!$BX$23,"") ->  | P50: =IF(B50>0,N50+O50,"") -> 
A51: =IF('Appliances Worksheet'!E69="","",'Appliances References'!$N$9) ->  | B51: =IF('Appliances Worksheet'!E69="","",'Appliances Worksheet'!E69) ->  | C51: =IF($A51="","",INDEX('Appliances References'!$R$5:$R$36,MATCH($A51,'Appliances References'!$N$5:$N$36,0))) ->  | D51: =IF($A51="","",INDEX('Appliances References'!$S$5:$S$36,MATCH($A51,'Appliances References'!$N$5:$N$36,0))) ->  | E51: =IF($A51="","",INDEX('Appliances References'!$T$5:$T$36,MATCH($A51,'Appliances References'!$N$5:$N$36,0))) ->  | F51: =IF($A51="","",INDEX('Appliances References'!$U$5:$U$36,MATCH($A51,'Appliances References'!$N$5:$N$36,0))) ->  | G51: =IF($A51="","",INDEX('Appliances References'!$V$5:$V$36,MATCH($A51,'Appliances References'!$N$5:$N$36,0))) ->  | H51: =IF($A51="","",INDEX('Appliances References'!$W$5:$W$36,MATCH($A51,'Appliances References'!$N$5:$N$36,0))) ->  | I51: =IF($A51="","",INDEX('Appliances References'!$Y$5:$Y$36,MATCH($A51,'Appliances References'!$N$5:$N$36,0))) ->  | J51: =IF($A51="","",INDEX('Appliances References'!$Z$5:$Z$36,MATCH($A51,'Appliances References'!$N$5:$N$36,0))) ->  | K51: =IF($A51="","",INDEX('Appliances References'!$AJ$5:$AJ$36,MATCH($A51,'Appliances References'!$N$5:$N$36,0))) ->  | O51: =IF(B51>0,N51*References!$BX$23,"") -> 
A52: =IF('Appliances Worksheet'!E70="","",'Appliances References'!$N$9) ->  | B52: =IF('Appliances Worksheet'!E70="","",'Appliances Worksheet'!E70) ->  | C52: =IF($A52="","",INDEX('Appliances References'!$R$5:$R$36,MATCH($A52,'Appliances References'!$N$5:$N$36,0))) ->  | D52: =IF($A52="","",INDEX('Appliances References'!$S$5:$S$36,MATCH($A52,'Appliances References'!$N$5:$N$36,0))) ->  | E52: =IF($A52="","",INDEX('Appliances References'!$T$5:$T$36,MATCH($A52,'Appliances References'!$N$5:$N$36,0))) ->  | F52: =IF($A52="","",INDEX('Appliances References'!$U$5:$U$36,MATCH($A52,'Appliances References'!$N$5:$N$36,0))) ->  | G52: =IF($A52="","",INDEX('Appliances References'!$V$5:$V$36,MATCH($A52,'Appliances References'!$N$5:$N$36,0))) ->  | H52: =IF($A52="","",INDEX('Appliances References'!$W$5:$W$36,MATCH($A52,'Appliances References'!$N$5:$N$36,0))) ->  | I52: =IF($A52="","",INDEX('Appliances References'!$Y$5:$Y$36,MATCH($A52,'Appliances References'!$N$5:$N$36,0))) ->  | J52: =IF($A52="","",INDEX('Appliances References'!$Z$5:$Z$36,MATCH($A52,'Appliances References'!$N$5:$N$36,0))) ->  | K52: =IF($A52="","",INDEX('Appliances References'!$AJ$5:$AJ$36,MATCH($A52,'Appliances References'!$N$5:$N$36,0))) ->  | O52: =IF(B52>0,N52*References!$BX$23,"") -> 
A53: =IF('Appliances Worksheet'!E71="","",'Appliances References'!$N$9) ->  | B53: =IF('Appliances Worksheet'!E71="","",'Appliances Worksheet'!E71) ->  | C53: =IF($A53="","",INDEX('Appliances References'!$R$5:$R$36,MATCH($A53,'Appliances References'!$N$5:$N$36,0))) ->  | D53: =IF($A53="","",INDEX('Appliances References'!$S$5:$S$36,MATCH($A53,'Appliances References'!$N$5:$N$36,0))) ->  | E53: =IF($A53="","",INDEX('Appliances References'!$T$5:$T$36,MATCH($A53,'Appliances References'!$N$5:$N$36,0))) ->  | F53: =IF($A53="","",INDEX('Appliances References'!$U$5:$U$36,MATCH($A53,'Appliances References'!$N$5:$N$36,0))) ->  | G53: =IF($A53="","",INDEX('Appliances References'!$V$5:$V$36,MATCH($A53,'Appliances References'!$N$5:$N$36,0))) ->  | H53: =IF($A53="","",INDEX('Appliances References'!$W$5:$W$36,MATCH($A53,'Appliances References'!$N$5:$N$36,0))) ->  | I53: =IF($A53="","",INDEX('Appliances References'!$Y$5:$Y$36,MATCH($A53,'Appliances References'!$N$5:$N$36,0))) ->  | J53: =IF($A53="","",INDEX('Appliances References'!$Z$5:$Z$36,MATCH($A53,'Appliances References'!$N$5:$N$36,0))) ->  | K53: =IF($A53="","",INDEX('Appliances References'!$AJ$5:$AJ$36,MATCH($A53,'Appliances References'!$N$5:$N$36,0))) ->  | O53: =IF(B53>0,N53*References!$BX$23,"") -> 
A60: ME Clothes Washer
A61: Device | B61: Proposed Qty | C61: Gross kW per unit | D61: EE kWh per unit | E61: Winter kW saved | F61: BE kWh saved | G61: MMBTU EE | H61: MMBTU BE | I61: EE CO2 | J61: BE CO2 | K61: Rebate per unit | M61: $/kWh | N61: Total Rebate | O61: Bonus | P61: Total Rebate + Bonus
A62: =IF('Appliances Worksheet'!E80="","",'Appliances References'!$N$7) ->  | B62: =IF('Appliances Worksheet'!E80="","",'Appliances Worksheet'!E80) ->  | C62: =IF($A62="","",INDEX('Appliances References'!$R$5:$R$36,MATCH($A62,'Appliances References'!$N$5:$N$36,0))) ->  | D62: =IF($A62="","",INDEX('Appliances References'!$S$5:$S$36,MATCH($A62,'Appliances References'!$N$5:$N$36,0))) ->  | E62: =IF($A62="","",INDEX('Appliances References'!$T$5:$T$36,MATCH($A62,'Appliances References'!$N$5:$N$36,0))) ->  | F62: =IF($A62="","",INDEX('Appliances References'!$U$5:$U$36,MATCH($A62,'Appliances References'!$N$5:$N$36,0))) ->  | G62: =IF($A62="","",INDEX('Appliances References'!$V$5:$V$36,MATCH($A62,'Appliances References'!$N$5:$N$36,0))) ->  | H62: =IF($A62="","",INDEX('Appliances References'!$W$5:$W$36,MATCH($A62,'Appliances References'!$N$5:$N$36,0))) ->  | I62: =IF($A62="","",INDEX('Appliances References'!$Y$5:$Y$36,MATCH($A62,'Appliances References'!$N$5:$N$36,0))) ->  | J62: =IF($A62="","",INDEX('Appliances References'!$Z$5:$Z$36,MATCH($A62,'Appliances References'!$N$5:$N$36,0))) ->  | K62: =IF($A62="","",INDEX('Appliances References'!$AJ$5:$AJ$36,MATCH($A62,'Appliances References'!$N$5:$N$36,0))) ->  | M62: =IF(D62="","",K62/D62) ->  | N62: =IF(B62>0,B62*K62,"") ->  | O62: =IF(B62>0,N62*References!$BX$23,"") ->  | P62: =IF(B62>0,N62+O62,"") -> 
A63: =IF('Appliances Worksheet'!E81="","",'Appliances References'!$N$7) ->  | B63: =IF('Appliances Worksheet'!E81="","",'Appliances Worksheet'!E81) ->  | C63: =IF($A63="","",INDEX('Appliances References'!$R$5:$R$36,MATCH($A63,'Appliances References'!$N$5:$N$36,0))) ->  | D63: =IF($A63="","",INDEX('Appliances References'!$S$5:$S$36,MATCH($A63,'Appliances References'!$N$5:$N$36,0))) ->  | E63: =IF($A63="","",INDEX('Appliances References'!$T$5:$T$36,MATCH($A63,'Appliances References'!$N$5:$N$36,0))) ->  | F63: =IF($A63="","",INDEX('Appliances References'!$U$5:$U$36,MATCH($A63,'Appliances References'!$N$5:$N$36,0))) ->  | G63: =IF($A63="","",INDEX('Appliances References'!$V$5:$V$36,MATCH($A63,'Appliances References'!$N$5:$N$36,0))) ->  | H63: =IF($A63="","",INDEX('Appliances References'!$W$5:$W$36,MATCH($A63,'Appliances References'!$N$5:$N$36,0))) ->  | I63: =IF($A63="","",INDEX('Appliances References'!$Y$5:$Y$36,MATCH($A63,'Appliances References'!$N$5:$N$36,0))) ->  | J63: =IF($A63="","",INDEX('Appliances References'!$Z$5:$Z$36,MATCH($A63,'Appliances References'!$N$5:$N$36,0))) ->  | K63: =IF($A63="","",INDEX('Appliances References'!$AJ$5:$AJ$36,MATCH($A63,'Appliances References'!$N$5:$N$36,0))) ->  | O63: =IF(B63>0,N63*References!$BX$23,"") -> 
A64: =IF('Appliances Worksheet'!E82="","",'Appliances References'!$N$7) ->  | B64: =IF('Appliances Worksheet'!E82="","",'Appliances Worksheet'!E82) ->  | C64: =IF($A64="","",INDEX('Appliances References'!$R$5:$R$36,MATCH($A64,'Appliances References'!$N$5:$N$36,0))) ->  | D64: =IF($A64="","",INDEX('Appliances References'!$S$5:$S$36,MATCH($A64,'Appliances References'!$N$5:$N$36,0))) ->  | E64: =IF($A64="","",INDEX('Appliances References'!$T$5:$T$36,MATCH($A64,'Appliances References'!$N$5:$N$36,0))) ->  | F64: =IF($A64="","",INDEX('Appliances References'!$U$5:$U$36,MATCH($A64,'Appliances References'!$N$5:$N$36,0))) ->  | G64: =IF($A64="","",INDEX('Appliances References'!$V$5:$V$36,MATCH($A64,'Appliances References'!$N$5:$N$36,0))) ->  | H64: =IF($A64="","",INDEX('Appliances References'!$W$5:$W$36,MATCH($A64,'Appliances References'!$N$5:$N$36,0))) ->  | I64: =IF($A64="","",INDEX('Appliances References'!$Y$5:$Y$36,MATCH($A64,'Appliances References'!$N$5:$N$36,0))) ->  | J64: =IF($A64="","",INDEX('Appliances References'!$Z$5:$Z$36,MATCH($A64,'Appliances References'!$N$5:$N$36,0))) ->  | K64: =IF($A64="","",INDEX('Appliances References'!$AJ$5:$AJ$36,MATCH($A64,'Appliances References'!$N$5:$N$36,0))) ->  | O64: =IF(B64>0,N64*References!$BX$23,"") -> 
A65: =IF('Appliances Worksheet'!E83="","",'Appliances References'!$N$7) ->  | B65: =IF('Appliances Worksheet'!E83="","",'Appliances Worksheet'!E83) ->  | C65: =IF($A65="","",INDEX('Appliances References'!$R$5:$R$36,MATCH($A65,'Appliances References'!$N$5:$N$36,0))) ->  | D65: =IF($A65="","",INDEX('Appliances References'!$S$5:$S$36,MATCH($A65,'Appliances References'!$N$5:$N$36,0))) ->  | E65: =IF($A65="","",INDEX('Appliances References'!$T$5:$T$36,MATCH($A65,'Appliances References'!$N$5:$N$36,0))) ->  | F65: =IF($A65="","",INDEX('Appliances References'!$U$5:$U$36,MATCH($A65,'Appliances References'!$N$5:$N$36,0))) ->  | G65: =IF($A65="","",INDEX('Appliances References'!$V$5:$V$36,MATCH($A65,'Appliances References'!$N$5:$N$36,0))) ->  | H65: =IF($A65="","",INDEX('Appliances References'!$W$5:$W$36,MATCH($A65,'Appliances References'!$N$5:$N$36,0))) ->  | I65: =IF($A65="","",INDEX('Appliances References'!$Y$5:$Y$36,MATCH($A65,'Appliances References'!$N$5:$N$36,0))) ->  | J65: =IF($A65="","",INDEX('Appliances References'!$Z$5:$Z$36,MATCH($A65,'Appliances References'!$N$5:$N$36,0))) ->  | K65: =IF($A65="","",INDEX('Appliances References'!$AJ$5:$AJ$36,MATCH($A65,'Appliances References'!$N$5:$N$36,0))) ->  | O65: =IF(B65>0,N65*References!$BX$23,"") -> 
A72: Smart Thermostat - Learning
A73: Device | B73: Proposed Qty | C73: Gross kW per unit | D73: EE kWh per unit | E73: Winter kW saved | F73: BE kWh saved | G73: MMBTU EE | H73: MMBTU BE | I73: EE CO2 | J73: BE CO2 | K73: Rebate per unit | M73: $/kWh | N73: Total Rebate | O73: Bonus | P73: Total Rebate + Bonus
N74: =IF(B74>0,B74*K74,"") ->  | O74: =IF(B74>0,N74*References!$BX$23,"") -> 
O75: =IF(B75>0,N75*References!$BX$23,"") -> 
O76: =IF(B76>0,N76*References!$BX$23,"") -> 
O77: =IF(B77>0,N77*References!$BX$23,"") -> 
A84: Solar Pool Cover
A85: Device | B85: Proposed Qty | C85: Gross kW per unit | D85: EE kWh per unit | E85: Winter kW saved | F85: BE kWh saved | G85: MMBTU EE | H85: MMBTU BE | I85: EE CO2 | J85: BE CO2 | K85: Rebate per unit | M85: $/kWh | N85: Total Rebate | O85: Bonus | P85: Total Rebate + Bonus
A86: =IF('Appliances Worksheet'!E104="","",'Appliances References'!$N$30) ->  | B86: =IF('Appliances Worksheet'!E104="","",'Appliances Worksheet'!E104) ->  | C86: =IF($A86="","",INDEX('Appliances References'!$R$5:$R$36,MATCH($A86,'Appliances References'!$N$5:$N$36,0))) ->  | D86: =IF($A86="","",INDEX('Appliances References'!$S$5:$S$36,MATCH($A86,'Appliances References'!$N$5:$N$36,0))) ->  | E86: =IF($A86="","",INDEX('Appliances References'!$T$5:$T$36,MATCH($A86,'Appliances References'!$N$5:$N$36,0))) ->  | F86: =IF($A86="","",INDEX('Appliances References'!$U$5:$U$36,MATCH($A86,'Appliances References'!$N$5:$N$36,0))) ->  | G86: =IF($A86="","",INDEX('Appliances References'!$V$5:$V$36,MATCH($A86,'Appliances References'!$N$5:$N$36,0))) ->  | H86: =IF($A86="","",INDEX('Appliances References'!$W$5:$W$36,MATCH($A86,'Appliances References'!$N$5:$N$36,0))) ->  | I86: =IF($A86="","",INDEX('Appliances References'!$Y$5:$Y$36,MATCH($A86,'Appliances References'!$N$5:$N$36,0))) ->  | J86: =IF($A86="","",INDEX('Appliances References'!$Z$5:$Z$36,MATCH($A86,'Appliances References'!$N$5:$N$36,0))) ->  | K86: =IF($A86="","",INDEX('Appliances References'!$AJ$5:$AJ$36,MATCH($A86,'Appliances References'!$N$5:$N$36,0))) ->  | M86: =IF(D86="","",K86/D86) ->  | O86: =IF(B86>0,0,"") -> 0
A87: =IF('Appliances Worksheet'!E105="","",'Appliances References'!$N$30) ->  | B87: =IF('Appliances Worksheet'!E105="","",'Appliances Worksheet'!E105) ->  | C87: =IF($A87="","",INDEX('Appliances References'!$R$5:$R$36,MATCH($A87,'Appliances References'!$N$5:$N$36,0))) ->  | D87: =IF($A87="","",INDEX('Appliances References'!$S$5:$S$36,MATCH($A87,'Appliances References'!$N$5:$N$36,0))) ->  | E87: =IF($A87="","",INDEX('Appliances References'!$T$5:$T$36,MATCH($A87,'Appliances References'!$N$5:$N$36,0))) ->  | F87: =IF($A87="","",INDEX('Appliances References'!$U$5:$U$36,MATCH($A87,'Appliances References'!$N$5:$N$36,0))) ->  | G87: =IF($A87="","",INDEX('Appliances References'!$V$5:$V$36,MATCH($A87,'Appliances References'!$N$5:$N$36,0))) ->  | H87: =IF($A87="","",INDEX('Appliances References'!$W$5:$W$36,MATCH($A87,'Appliances References'!$N$5:$N$36,0))) ->  | I87: =IF($A87="","",INDEX('Appliances References'!$Y$5:$Y$36,MATCH($A87,'Appliances References'!$N$5:$N$36,0))) ->  | J87: =IF($A87="","",INDEX('Appliances References'!$Z$5:$Z$36,MATCH($A87,'Appliances References'!$N$5:$N$36,0))) ->  | K87: =IF($A87="","",INDEX('Appliances References'!$AJ$5:$AJ$36,MATCH($A87,'Appliances References'!$N$5:$N$36,0))) ->  | O87: =IF(B87>0,0,"") -> 0
A88: =IF('Appliances Worksheet'!E106="","",'Appliances References'!$N$30) ->  | B88: =IF('Appliances Worksheet'!E106="","",'Appliances Worksheet'!E106) ->  | C88: =IF($A88="","",INDEX('Appliances References'!$R$5:$R$36,MATCH($A88,'Appliances References'!$N$5:$N$36,0))) ->  | D88: =IF($A88="","",INDEX('Appliances References'!$S$5:$S$36,MATCH($A88,'Appliances References'!$N$5:$N$36,0))) ->  | E88: =IF($A88="","",INDEX('Appliances References'!$T$5:$T$36,MATCH($A88,'Appliances References'!$N$5:$N$36,0))) ->  | F88: =IF($A88="","",INDEX('Appliances References'!$U$5:$U$36,MATCH($A88,'Appliances References'!$N$5:$N$36,0))) ->  | G88: =IF($A88="","",INDEX('Appliances References'!$V$5:$V$36,MATCH($A88,'Appliances References'!$N$5:$N$36,0))) ->  | H88: =IF($A88="","",INDEX('Appliances References'!$W$5:$W$36,MATCH($A88,'Appliances References'!$N$5:$N$36,0))) ->  | I88: =IF($A88="","",INDEX('Appliances References'!$Y$5:$Y$36,MATCH($A88,'Appliances References'!$N$5:$N$36,0))) ->  | J88: =IF($A88="","",INDEX('Appliances References'!$Z$5:$Z$36,MATCH($A88,'Appliances References'!$N$5:$N$36,0))) ->  | K88: =IF($A88="","",INDEX('Appliances References'!$AJ$5:$AJ$36,MATCH($A88,'Appliances References'!$N$5:$N$36,0))) ->  | O88: 0
A89: =IF('Appliances Worksheet'!E107="","",'Appliances References'!$N$30) ->  | B89: =IF('Appliances Worksheet'!E107="","",'Appliances Worksheet'!E107) ->  | C89: =IF($A89="","",INDEX('Appliances References'!$R$5:$R$36,MATCH($A89,'Appliances References'!$N$5:$N$36,0))) ->  | D89: =IF($A89="","",INDEX('Appliances References'!$S$5:$S$36,MATCH($A89,'Appliances References'!$N$5:$N$36,0))) ->  | E89: =IF($A89="","",INDEX('Appliances References'!$T$5:$T$36,MATCH($A89,'Appliances References'!$N$5:$N$36,0))) ->  | F89: =IF($A89="","",INDEX('Appliances References'!$U$5:$U$36,MATCH($A89,'Appliances References'!$N$5:$N$36,0))) ->  | G89: =IF($A89="","",INDEX('Appliances References'!$V$5:$V$36,MATCH($A89,'Appliances References'!$N$5:$N$36,0))) ->  | H89: =IF($A89="","",INDEX('Appliances References'!$W$5:$W$36,MATCH($A89,'Appliances References'!$N$5:$N$36,0))) ->  | I89: =IF($A89="","",INDEX('Appliances References'!$Y$5:$Y$36,MATCH($A89,'Appliances References'!$N$5:$N$36,0))) ->  | J89: =IF($A89="","",INDEX('Appliances References'!$Z$5:$Z$36,MATCH($A89,'Appliances References'!$N$5:$N$36,0))) ->  | K89: =IF($A89="","",INDEX('Appliances References'!$AJ$5:$AJ$36,MATCH($A89,'Appliances References'!$N$5:$N$36,0))) ->  | O89: 0
A96: Heat Pump Pool Heater
A97: Device | B97: Proposed Qty | C97: Gross kW per unit | D97: EE kWh per unit | E97: Winter kW saved | F97: BE kWh saved | G97: MMBTU EE | H97: MMBTU BE | I97: EE CO2 | J97: BE CO2 | K97: Rebate per unit | M97: $/kWh | N97: Total Rebate | O97: Bonus | P97: Total Rebate + Bonus
A98: =IF('Appliances Worksheet'!E116="","",'Appliances References'!$N$29) ->  | B98: =IF('Appliances Worksheet'!E116="","",'Appliances Worksheet'!E116) ->  | C98: =IF($A98="","",INDEX('Appliances References'!$R$5:$R$36,MATCH($A98,'Appliances References'!$N$5:$N$36,0))) ->  | D98: =IF($A98="","",INDEX('Appliances References'!$S$5:$S$36,MATCH($A98,'Appliances References'!$N$5:$N$36,0))) ->  | E98: =IF($A98="","",INDEX('Appliances References'!$T$5:$T$36,MATCH($A98,'Appliances References'!$N$5:$N$36,0))) ->  | F98: =IF($A98="","",INDEX('Appliances References'!$U$5:$U$36,MATCH($A98,'Appliances References'!$N$5:$N$36,0))) ->  | G98: =IF($A98="","",INDEX('Appliances References'!$V$5:$V$36,MATCH($A98,'Appliances References'!$N$5:$N$36,0))) ->  | H98: =IF($A98="","",INDEX('Appliances References'!$W$5:$W$36,MATCH($A98,'Appliances References'!$N$5:$N$36,0))) ->  | I98: =IF($A98="","",INDEX('Appliances References'!$Y$5:$Y$36,MATCH($A98,'Appliances References'!$N$5:$N$36,0))) ->  | J98: =IF($A98="","",INDEX('Appliances References'!$Z$5:$Z$36,MATCH($A98,'Appliances References'!$N$5:$N$36,0))) ->  | K98: =IF($A98="","",INDEX('Appliances References'!$AJ$5:$AJ$36,MATCH($A98,'Appliances References'!$N$5:$N$36,0))) ->  | M98: =IF(D98="","",K98/D98) ->  | O98: =IF(B98>0,0,"") -> 0
A99: =IF('Appliances Worksheet'!E117="","",'Appliances References'!$N$29) ->  | B99: =IF('Appliances Worksheet'!E117="","",'Appliances Worksheet'!E117) ->  | C99: =IF($A99="","",INDEX('Appliances References'!$R$5:$R$36,MATCH($A99,'Appliances References'!$N$5:$N$36,0))) ->  | D99: =IF($A99="","",INDEX('Appliances References'!$S$5:$S$36,MATCH($A99,'Appliances References'!$N$5:$N$36,0))) ->  | E99: =IF($A99="","",INDEX('Appliances References'!$T$5:$T$36,MATCH($A99,'Appliances References'!$N$5:$N$36,0))) ->  | F99: =IF($A99="","",INDEX('Appliances References'!$U$5:$U$36,MATCH($A99,'Appliances References'!$N$5:$N$36,0))) ->  | G99: =IF($A99="","",INDEX('Appliances References'!$V$5:$V$36,MATCH($A99,'Appliances References'!$N$5:$N$36,0))) ->  | H99: =IF($A99="","",INDEX('Appliances References'!$W$5:$W$36,MATCH($A99,'Appliances References'!$N$5:$N$36,0))) ->  | I99: =IF($A99="","",INDEX('Appliances References'!$Y$5:$Y$36,MATCH($A99,'Appliances References'!$N$5:$N$36,0))) ->  | J99: =IF($A99="","",INDEX('Appliances References'!$Z$5:$Z$36,MATCH($A99,'Appliances References'!$N$5:$N$36,0))) ->  | K99: =IF($A99="","",INDEX('Appliances References'!$AJ$5:$AJ$36,MATCH($A99,'Appliances References'!$N$5:$N$36,0))) ->  | O99: =IF(B99>0,N99*References!$BX$23,"") -> 
A100: =IF('Appliances Worksheet'!E118="","",'Appliances References'!$N$29) ->  | B100: =IF('Appliances Worksheet'!E118="","",'Appliances Worksheet'!E118) ->  | C100: =IF($A100="","",INDEX('Appliances References'!$R$5:$R$36,MATCH($A100,'Appliances References'!$N$5:$N$36,0))) ->  | D100: =IF($A100="","",INDEX('Appliances References'!$S$5:$S$36,MATCH($A100,'Appliances References'!$N$5:$N$36,0))) ->  | E100: =IF($A100="","",INDEX('Appliances References'!$T$5:$T$36,MATCH($A100,'Appliances References'!$N$5:$N$36,0))) ->  | F100: =IF($A100="","",INDEX('Appliances References'!$U$5:$U$36,MATCH($A100,'Appliances References'!$N$5:$N$36,0))) ->  | G100: =IF($A100="","",INDEX('Appliances References'!$V$5:$V$36,MATCH($A100,'Appliances References'!$N$5:$N$36,0))) ->  | H100: =IF($A100="","",INDEX('Appliances References'!$W$5:$W$36,MATCH($A100,'Appliances References'!$N$5:$N$36,0))) ->  | I100: =IF($A100="","",INDEX('Appliances References'!$Y$5:$Y$36,MATCH($A100,'Appliances References'!$N$5:$N$36,0))) ->  | J100: =IF($A100="","",INDEX('Appliances References'!$Z$5:$Z$36,MATCH($A100,'Appliances References'!$N$5:$N$36,0))) ->  | K100: =IF($A100="","",INDEX('Appliances References'!$AJ$5:$AJ$36,MATCH($A100,'Appliances References'!$N$5:$N$36,0))) ->  | O100: =IF(B100>0,N100*References!$BX$23,"") -> 
A101: =IF('Appliances Worksheet'!E119="","",'Appliances References'!$N$29) ->  | B101: =IF('Appliances Worksheet'!E119="","",'Appliances Worksheet'!E119) ->  | C101: =IF($A101="","",INDEX('Appliances References'!$R$5:$R$36,MATCH($A101,'Appliances References'!$N$5:$N$36,0))) ->  | D101: =IF($A101="","",INDEX('Appliances References'!$S$5:$S$36,MATCH($A101,'Appliances References'!$N$5:$N$36,0))) ->  | E101: =IF($A101="","",INDEX('Appliances References'!$T$5:$T$36,MATCH($A101,'Appliances References'!$N$5:$N$36,0))) ->  | F101: =IF($A101="","",INDEX('Appliances References'!$U$5:$U$36,MATCH($A101,'Appliances References'!$N$5:$N$36,0))) ->  | G101: =IF($A101="","",INDEX('Appliances References'!$V$5:$V$36,MATCH($A101,'Appliances References'!$N$5:$N$36,0))) ->  | H101: =IF($A101="","",INDEX('Appliances References'!$W$5:$W$36,MATCH($A101,'Appliances References'!$N$5:$N$36,0))) ->  | I101: =IF($A101="","",INDEX('Appliances References'!$Y$5:$Y$36,MATCH($A101,'Appliances References'!$N$5:$N$36,0))) ->  | J101: =IF($A101="","",INDEX('Appliances References'!$Z$5:$Z$36,MATCH($A101,'Appliances References'!$N$5:$N$36,0))) ->  | K101: =IF($A101="","",INDEX('Appliances References'!$AJ$5:$AJ$36,MATCH($A101,'Appliances References'!$N$5:$N$36,0))) ->  | O101: =IF(B101>0,N101*References!$BX$23,"") -> 
A108: Dehumidifier
A109: Device | B109: Proposed Qty | C109: Gross kW per unit | D109: EE kWh per unit | E109: Winter kW saved | F109: BE kWh saved | G109: MMBTU EE | H109: MMBTU BE | I109: EE CO2 | J109: BE CO2 | K109: Rebate per unit | M109: $/kWh | N109: Total Rebate | O109: Bonus | P109: Total Rebate + Bonus
A110: =IF('Appliances Worksheet'!E128="","",'Appliances References'!$N$14) ->  | B110: =IF('Appliances Worksheet'!E128="","",'Appliances Worksheet'!E128) ->  | C110: =IF($A110="","",INDEX('Appliances References'!$R$5:$R$36,MATCH($A110,'Appliances References'!$N$5:$N$36,0))) ->  | D110: =IF($A110="","",INDEX('Appliances References'!$S$5:$S$36,MATCH($A110,'Appliances References'!$N$5:$N$36,0))) ->  | E110: =IF($A110="","",INDEX('Appliances References'!$T$5:$T$36,MATCH($A110,'Appliances References'!$N$5:$N$36,0))) ->  | F110: =IF($A110="","",INDEX('Appliances References'!$U$5:$U$36,MATCH($A110,'Appliances References'!$N$5:$N$36,0))) ->  | G110: =IF($A110="","",INDEX('Appliances References'!$V$5:$V$36,MATCH($A110,'Appliances References'!$N$5:$N$36,0))) ->  | H110: =IF($A110="","",INDEX('Appliances References'!$W$5:$W$36,MATCH($A110,'Appliances References'!$N$5:$N$36,0))) ->  | I110: =IF($A110="","",INDEX('Appliances References'!$Y$5:$Y$36,MATCH($A110,'Appliances References'!$N$5:$N$36,0))) ->  | J110: =IF($A110="","",INDEX('Appliances References'!$Z$5:$Z$36,MATCH($A110,'Appliances References'!$N$5:$N$36,0))) ->  | K110: =IF($A110="","",INDEX('Appliances References'!$AJ$5:$AJ$36,MATCH($A110,'Appliances References'!$N$5:$N$36,0))) ->  | M110: =IF(D110="","",K110/D110) ->  | O110: =IF(B110>0,0,"") -> 0
A111: =IF('Appliances Worksheet'!E129="","",'Appliances References'!$N$14) ->  | B111: =IF('Appliances Worksheet'!E129="","",'Appliances Worksheet'!E129) ->  | C111: =IF($A111="","",INDEX('Appliances References'!$R$5:$R$36,MATCH($A111,'Appliances References'!$N$5:$N$36,0))) ->  | D111: =IF($A111="","",INDEX('Appliances References'!$S$5:$S$36,MATCH($A111,'Appliances References'!$N$5:$N$36,0))) ->  | E111: =IF($A111="","",INDEX('Appliances References'!$T$5:$T$36,MATCH($A111,'Appliances References'!$N$5:$N$36,0))) ->  | F111: =IF($A111="","",INDEX('Appliances References'!$U$5:$U$36,MATCH($A111,'Appliances References'!$N$5:$N$36,0))) ->  | G111: =IF($A111="","",INDEX('Appliances References'!$V$5:$V$36,MATCH($A111,'Appliances References'!$N$5:$N$36,0))) ->  | H111: =IF($A111="","",INDEX('Appliances References'!$W$5:$W$36,MATCH($A111,'Appliances References'!$N$5:$N$36,0))) ->  | I111: =IF($A111="","",INDEX('Appliances References'!$Y$5:$Y$36,MATCH($A111,'Appliances References'!$N$5:$N$36,0))) ->  | J111: =IF($A111="","",INDEX('Appliances References'!$Z$5:$Z$36,MATCH($A111,'Appliances References'!$N$5:$N$36,0))) ->  | K111: =IF($A111="","",INDEX('Appliances References'!$AJ$5:$AJ$36,MATCH($A111,'Appliances References'!$N$5:$N$36,0))) ->  | M111: =IF(D111="","",K111/D111) ->  | O111: =IF(B111>0,0,"") -> 0
A112: =IF('Appliances Worksheet'!E130="","",'Appliances References'!$N$14) ->  | B112: =IF('Appliances Worksheet'!E130="","",'Appliances Worksheet'!E130) ->  | C112: =IF($A112="","",INDEX('Appliances References'!$R$5:$R$36,MATCH($A112,'Appliances References'!$N$5:$N$36,0))) ->  | D112: =IF($A112="","",INDEX('Appliances References'!$S$5:$S$36,MATCH($A112,'Appliances References'!$N$5:$N$36,0))) ->  | E112: =IF($A112="","",INDEX('Appliances References'!$T$5:$T$36,MATCH($A112,'Appliances References'!$N$5:$N$36,0))) ->  | F112: =IF($A112="","",INDEX('Appliances References'!$U$5:$U$36,MATCH($A112,'Appliances References'!$N$5:$N$36,0))) ->  | G112: =IF($A112="","",INDEX('Appliances References'!$V$5:$V$36,MATCH($A112,'Appliances References'!$N$5:$N$36,0))) ->  | H112: =IF($A112="","",INDEX('Appliances References'!$W$5:$W$36,MATCH($A112,'Appliances References'!$N$5:$N$36,0))) ->  | I112: =IF($A112="","",INDEX('Appliances References'!$Y$5:$Y$36,MATCH($A112,'Appliances References'!$N$5:$N$36,0))) ->  | J112: =IF($A112="","",INDEX('Appliances References'!$Z$5:$Z$36,MATCH($A112,'Appliances References'!$N$5:$N$36,0))) ->  | K112: =IF($A112="","",INDEX('Appliances References'!$AJ$5:$AJ$36,MATCH($A112,'Appliances References'!$N$5:$N$36,0))) ->  | O112: 0
A113: =IF('Appliances Worksheet'!E131="","",'Appliances References'!$N$14) ->  | B113: =IF('Appliances Worksheet'!E131="","",'Appliances Worksheet'!E131) ->  | C113: =IF($A113="","",INDEX('Appliances References'!$R$5:$R$36,MATCH($A113,'Appliances References'!$N$5:$N$36,0))) ->  | D113: =IF($A113="","",INDEX('Appliances References'!$S$5:$S$36,MATCH($A113,'Appliances References'!$N$5:$N$36,0))) ->  | E113: =IF($A113="","",INDEX('Appliances References'!$T$5:$T$36,MATCH($A113,'Appliances References'!$N$5:$N$36,0))) ->  | F113: =IF($A113="","",INDEX('Appliances References'!$U$5:$U$36,MATCH($A113,'Appliances References'!$N$5:$N$36,0))) ->  | G113: =IF($A113="","",INDEX('Appliances References'!$V$5:$V$36,MATCH($A113,'Appliances References'!$N$5:$N$36,0))) ->  | H113: =IF($A113="","",INDEX('Appliances References'!$W$5:$W$36,MATCH($A113,'Appliances References'!$N$5:$N$36,0))) ->  | I113: =IF($A113="","",INDEX('Appliances References'!$Y$5:$Y$36,MATCH($A113,'Appliances References'!$N$5:$N$36,0))) ->  | J113: =IF($A113="","",INDEX('Appliances References'!$Z$5:$Z$36,MATCH($A113,'Appliances References'!$N$5:$N$36,0))) ->  | K113: =IF($A113="","",INDEX('Appliances References'!$AJ$5:$AJ$36,MATCH($A113,'Appliances References'!$N$5:$N$36,0))) ->  | O113: 0
A120: Room Air Purifiers
A121: Device | B121: Proposed Qty | C121: Gross kW per unit | D121: EE kWh per unit | E121: Winter kW saved | F121: BE kWh saved | G121: MMBTU EE | H121: MMBTU BE | I121: EE CO2 | J121: BE CO2 | K121: Rebate per unit | M121: $/kWh | N121: Total Rebate | O121: Bonus | P121: Total Rebate + Bonus
A122: =IF('Appliances Worksheet'!E140="","",IF('Appliances Worksheet'!G140='Appliances References'!$H$194,'Appliances References'!$N$12,'Appliances References'!$N$13)) ->  | B122: =IF('Appliances Worksheet'!E140="","",'Appliances Worksheet'!E140) ->  | C122: =IF($A122="","",INDEX('Appliances References'!$R$5:$R$36,MATCH($A122,'Appliances References'!$N$5:$N$36,0))) ->  | D122: =IF($A122="","",INDEX('Appliances References'!$S$5:$S$36,MATCH($A122,'Appliances References'!$N$5:$N$36,0))) ->  | E122: =IF($A122="","",INDEX('Appliances References'!$T$5:$T$36,MATCH($A122,'Appliances References'!$N$5:$N$36,0))) ->  | F122: =IF($A122="","",INDEX('Appliances References'!$U$5:$U$36,MATCH($A122,'Appliances References'!$N$5:$N$36,0))) ->  | G122: =IF($A122="","",INDEX('Appliances References'!$V$5:$V$36,MATCH($A122,'Appliances References'!$N$5:$N$36,0))) ->  | H122: =IF($A122="","",INDEX('Appliances References'!$W$5:$W$36,MATCH($A122,'Appliances References'!$N$5:$N$36,0))) ->  | I122: =IF($A122="","",INDEX('Appliances References'!$Y$5:$Y$36,MATCH($A122,'Appliances References'!$N$5:$N$36,0))) ->  | J122: =IF($A122="","",INDEX('Appliances References'!$Z$5:$Z$36,MATCH($A122,'Appliances References'!$N$5:$N$36,0))) ->  | K122: =IF($A122="","",INDEX('Appliances References'!$AJ$5:$AJ$36,MATCH($A122,'Appliances References'!$N$5:$N$36,0))) ->  | M122: =IF(D122="","",K122/D122) ->  | N122: =IF(B122>0,B122*K122,"") ->  | O122: =IF(B122>0,0,"") -> 0 | P122: =IF(B122>0,N122+O122,"") -> 
A123: =IF('Appliances Worksheet'!E141="","",IF('Appliances Worksheet'!G141='Appliances References'!$H$194,'Appliances References'!$N$12,'Appliances References'!$N$13)) ->  | B123: =IF('Appliances Worksheet'!E141="","",'Appliances Worksheet'!E141) ->  | C123: =IF($A123="","",INDEX('Appliances References'!$R$5:$R$36,MATCH($A123,'Appliances References'!$N$5:$N$36,0))) ->  | D123: =IF($A123="","",INDEX('Appliances References'!$S$5:$S$36,MATCH($A123,'Appliances References'!$N$5:$N$36,0))) ->  | E123: =IF($A123="","",INDEX('Appliances References'!$T$5:$T$36,MATCH($A123,'Appliances References'!$N$5:$N$36,0))) ->  | F123: =IF($A123="","",INDEX('Appliances References'!$U$5:$U$36,MATCH($A123,'Appliances References'!$N$5:$N$36,0))) ->  | G123: =IF($A123="","",INDEX('Appliances References'!$V$5:$V$36,MATCH($A123,'Appliances References'!$N$5:$N$36,0))) ->  | H123: =IF($A123="","",INDEX('Appliances References'!$W$5:$W$36,MATCH($A123,'Appliances References'!$N$5:$N$36,0))) ->  | I123: =IF($A123="","",INDEX('Appliances References'!$Y$5:$Y$36,MATCH($A123,'Appliances References'!$N$5:$N$36,0))) ->  | J123: =IF($A123="","",INDEX('Appliances References'!$Z$5:$Z$36,MATCH($A123,'Appliances References'!$N$5:$N$36,0))) ->  | K123: =IF($A123="","",INDEX('Appliances References'!$AJ$5:$AJ$36,MATCH($A123,'Appliances References'!$N$5:$N$36,0))) ->  | O123: =IF(B123>0,0,"") -> 0
A124: =IF('Appliances Worksheet'!E142="","",IF('Appliances Worksheet'!G142='Appliances References'!$H$194,'Appliances References'!$N$12,'Appliances References'!$N$13)) ->  | B124: =IF('Appliances Worksheet'!E142="","",'Appliances Worksheet'!E142) ->  | C124: =IF($A124="","",INDEX('Appliances References'!$R$5:$R$36,MATCH($A124,'Appliances References'!$N$5:$N$36,0))) ->  | D124: =IF($A124="","",INDEX('Appliances References'!$S$5:$S$36,MATCH($A124,'Appliances References'!$N$5:$N$36,0))) ->  | E124: =IF($A124="","",INDEX('Appliances References'!$T$5:$T$36,MATCH($A124,'Appliances References'!$N$5:$N$36,0))) ->  | F124: =IF($A124="","",INDEX('Appliances References'!$U$5:$U$36,MATCH($A124,'Appliances References'!$N$5:$N$36,0))) ->  | G124: =IF($A124="","",INDEX('Appliances References'!$V$5:$V$36,MATCH($A124,'Appliances References'!$N$5:$N$36,0))) ->  | H124: =IF($A124="","",INDEX('Appliances References'!$W$5:$W$36,MATCH($A124,'Appliances References'!$N$5:$N$36,0))) ->  | I124: =IF($A124="","",INDEX('Appliances References'!$Y$5:$Y$36,MATCH($A124,'Appliances References'!$N$5:$N$36,0))) ->  | J124: =IF($A124="","",INDEX('Appliances References'!$Z$5:$Z$36,MATCH($A124,'Appliances References'!$N$5:$N$36,0))) ->  | K124: =IF($A124="","",INDEX('Appliances References'!$AJ$5:$AJ$36,MATCH($A124,'Appliances References'!$N$5:$N$36,0))) ->  | O124: 0
A125: =IF('Appliances Worksheet'!E143="","",IF('Appliances Worksheet'!G143='Appliances References'!$H$194,'Appliances References'!$N$12,'Appliances References'!$N$13)) ->  | B125: =IF('Appliances Worksheet'!E143="","",'Appliances Worksheet'!E143) ->  | C125: =IF($A125="","",INDEX('Appliances References'!$R$5:$R$36,MATCH($A125,'Appliances References'!$N$5:$N$36,0))) ->  | D125: =IF($A125="","",INDEX('Appliances References'!$S$5:$S$36,MATCH($A125,'Appliances References'!$N$5:$N$36,0))) ->  | E125: =IF($A125="","",INDEX('Appliances References'!$T$5:$T$36,MATCH($A125,'Appliances References'!$N$5:$N$36,0))) ->  | F125: =IF($A125="","",INDEX('Appliances References'!$U$5:$U$36,MATCH($A125,'Appliances References'!$N$5:$N$36,0))) ->  | G125: =IF($A125="","",INDEX('Appliances References'!$V$5:$V$36,MATCH($A125,'Appliances References'!$N$5:$N$36,0))) ->  | H125: =IF($A125="","",INDEX('Appliances References'!$W$5:$W$36,MATCH($A125,'Appliances References'!$N$5:$N$36,0))) ->  | I125: =IF($A125="","",INDEX('Appliances References'!$Y$5:$Y$36,MATCH($A125,'Appliances References'!$N$5:$N$36,0))) ->  | J125: =IF($A125="","",INDEX('Appliances References'!$Z$5:$Z$36,MATCH($A125,'Appliances References'!$N$5:$N$36,0))) ->  | K125: =IF($A125="","",INDEX('Appliances References'!$AJ$5:$AJ$36,MATCH($A125,'Appliances References'!$N$5:$N$36,0))) ->  | O125: 0
A132: Battery Operated Lawn Mower All Sizes
A133: Device | B133: Proposed Qty | C133: Gross kW per unit | D133: EE kWh per unit | E133: Winter kW saved | F133: BE kWh saved | G133: MMBTU EE | H133: MMBTU BE | I133: EE CO2 | J133: BE CO2 | K133: Rebate per unit | M133: $/kWh | N133: Total Rebate | O133: Bonus | P133: Total Rebate + Bonus
A134: =IF('Appliances Worksheet'!E152="","",'Appliances References'!$N$23) ->  | B134: =IF('Appliances Worksheet'!E152="","",'Appliances Worksheet'!E152) ->  | C134: =IF($A134="","",INDEX('Appliances References'!$R$5:$R$36,MATCH($A134,'Appliances References'!$N$5:$N$36,0))) ->  | D134: =IF($A134="","",INDEX('Appliances References'!$S$5:$S$36,MATCH($A134,'Appliances References'!$N$5:$N$36,0))) ->  | E134: =IF($A134="","",INDEX('Appliances References'!$T$5:$T$36,MATCH($A134,'Appliances References'!$N$5:$N$36,0))) ->  | F134: =IF($A134="","",INDEX('Appliances References'!$U$5:$U$36,MATCH($A134,'Appliances References'!$N$5:$N$36,0))) ->  | G134: =IF($A134="","",INDEX('Appliances References'!$V$5:$V$36,MATCH($A134,'Appliances References'!$N$5:$N$36,0))) ->  | H134: =IF($A134="","",INDEX('Appliances References'!$W$5:$W$36,MATCH($A134,'Appliances References'!$N$5:$N$36,0))) ->  | I134: =IF($A134="","",INDEX('Appliances References'!$Y$5:$Y$36,MATCH($A134,'Appliances References'!$N$5:$N$36,0))) ->  | J134: =IF($A134="","",INDEX('Appliances References'!$Z$5:$Z$36,MATCH($A134,'Appliances References'!$N$5:$N$36,0))) ->  | K134: =IF($A134="","",INDEX('Appliances References'!$AJ$5:$AJ$36,MATCH($A134,'Appliances References'!$N$5:$N$36,0))) ->  | M134: =IF(D134="","",K134/D134) ->  | O134: =IF(B134>0,0,"") -> 0
A135: =IF('Appliances Worksheet'!E153="","",'Appliances References'!$N$23) ->  | B135: =IF('Appliances Worksheet'!E153="","",'Appliances Worksheet'!E153) ->  | C135: =IF($A135="","",INDEX('Appliances References'!$R$5:$R$36,MATCH($A135,'Appliances References'!$N$5:$N$36,0))) ->  | D135: =IF($A135="","",INDEX('Appliances References'!$S$5:$S$36,MATCH($A135,'Appliances References'!$N$5:$N$36,0))) ->  | E135: =IF($A135="","",INDEX('Appliances References'!$T$5:$T$36,MATCH($A135,'Appliances References'!$N$5:$N$36,0))) ->  | F135: =IF($A135="","",INDEX('Appliances References'!$U$5:$U$36,MATCH($A135,'Appliances References'!$N$5:$N$36,0))) ->  | G135: =IF($A135="","",INDEX('Appliances References'!$V$5:$V$36,MATCH($A135,'Appliances References'!$N$5:$N$36,0))) ->  | H135: =IF($A135="","",INDEX('Appliances References'!$W$5:$W$36,MATCH($A135,'Appliances References'!$N$5:$N$36,0))) ->  | I135: =IF($A135="","",INDEX('Appliances References'!$Y$5:$Y$36,MATCH($A135,'Appliances References'!$N$5:$N$36,0))) ->  | J135: =IF($A135="","",INDEX('Appliances References'!$Z$5:$Z$36,MATCH($A135,'Appliances References'!$N$5:$N$36,0))) ->  | K135: =IF($A135="","",INDEX('Appliances References'!$AJ$5:$AJ$36,MATCH($A135,'Appliances References'!$N$5:$N$36,0))) ->  | M135: =IF(D135="","",K135/D135) ->  | O135: =IF(B135>0,0,"") -> 0
A136: =IF('Appliances Worksheet'!E154="","",'Appliances References'!$N$23) ->  | B136: =IF('Appliances Worksheet'!E154="","",'Appliances Worksheet'!E154) ->  | C136: =IF($A136="","",INDEX('Appliances References'!$R$5:$R$36,MATCH($A136,'Appliances References'!$N$5:$N$36,0))) ->  | D136: =IF($A136="","",INDEX('Appliances References'!$S$5:$S$36,MATCH($A136,'Appliances References'!$N$5:$N$36,0))) ->  | E136: =IF($A136="","",INDEX('Appliances References'!$T$5:$T$36,MATCH($A136,'Appliances References'!$N$5:$N$36,0))) ->  | F136: =IF($A136="","",INDEX('Appliances References'!$U$5:$U$36,MATCH($A136,'Appliances References'!$N$5:$N$36,0))) ->  | G136: =IF($A136="","",INDEX('Appliances References'!$V$5:$V$36,MATCH($A136,'Appliances References'!$N$5:$N$36,0))) ->  | H136: =IF($A136="","",INDEX('Appliances References'!$W$5:$W$36,MATCH($A136,'Appliances References'!$N$5:$N$36,0))) ->  | I136: =IF($A136="","",INDEX('Appliances References'!$Y$5:$Y$36,MATCH($A136,'Appliances References'!$N$5:$N$36,0))) ->  | J136: =IF($A136="","",INDEX('Appliances References'!$Z$5:$Z$36,MATCH($A136,'Appliances References'!$N$5:$N$36,0))) ->  | K136: =IF($A136="","",INDEX('Appliances References'!$AJ$5:$AJ$36,MATCH($A136,'Appliances References'!$N$5:$N$36,0))) ->  | O136: 0
A137: =IF('Appliances Worksheet'!E155="","",'Appliances References'!$N$23) ->  | B137: =IF('Appliances Worksheet'!E155="","",'Appliances Worksheet'!E155) ->  | C137: =IF($A137="","",INDEX('Appliances References'!$R$5:$R$36,MATCH($A137,'Appliances References'!$N$5:$N$36,0))) ->  | D137: =IF($A137="","",INDEX('Appliances References'!$S$5:$S$36,MATCH($A137,'Appliances References'!$N$5:$N$36,0))) ->  | E137: =IF($A137="","",INDEX('Appliances References'!$T$5:$T$36,MATCH($A137,'Appliances References'!$N$5:$N$36,0))) ->  | F137: =IF($A137="","",INDEX('Appliances References'!$U$5:$U$36,MATCH($A137,'Appliances References'!$N$5:$N$36,0))) ->  | G137: =IF($A137="","",INDEX('Appliances References'!$V$5:$V$36,MATCH($A137,'Appliances References'!$N$5:$N$36,0))) ->  | H137: =IF($A137="","",INDEX('Appliances References'!$W$5:$W$36,MATCH($A137,'Appliances References'!$N$5:$N$36,0))) ->  | I137: =IF($A137="","",INDEX('Appliances References'!$Y$5:$Y$36,MATCH($A137,'Appliances References'!$N$5:$N$36,0))) ->  | J137: =IF($A137="","",INDEX('Appliances References'!$Z$5:$Z$36,MATCH($A137,'Appliances References'!$N$5:$N$36,0))) ->  | K137: =IF($A137="","",INDEX('Appliances References'!$AJ$5:$AJ$36,MATCH($A137,'Appliances References'!$N$5:$N$36,0))) ->  | O137: 0
A144: Battery Operated Lawn Mower 4-5aH
A145: Device | B145: Proposed Qty | C145: Gross kW per unit | D145: EE kWh per unit | E145: Winter kW saved | F145: BE kWh saved | G145: MMBTU EE | H145: MMBTU BE | I145: EE CO2 | J145: BE CO2 | K145: Rebate per unit | M145: $/kWh | N145: Total Rebate | O145: Bonus | P145: Total Rebate + Bonus
A146: =IF('Appliances Worksheet'!E164="","",'Appliances References'!$N$24) ->  | B146: =IF('Appliances Worksheet'!E164="","",'Appliances Worksheet'!E164) ->  | C146: =IF($A146="","",INDEX('Appliances References'!$R$5:$R$36,MATCH($A146,'Appliances References'!$N$5:$N$36,0))) ->  | D146: =IF($A146="","",INDEX('Appliances References'!$S$5:$S$36,MATCH($A146,'Appliances References'!$N$5:$N$36,0))) ->  | E146: =IF($A146="","",INDEX('Appliances References'!$T$5:$T$36,MATCH($A146,'Appliances References'!$N$5:$N$36,0))) ->  | F146: =IF($A146="","",INDEX('Appliances References'!$U$5:$U$36,MATCH($A146,'Appliances References'!$N$5:$N$36,0))) ->  | G146: =IF($A146="","",INDEX('Appliances References'!$V$5:$V$36,MATCH($A146,'Appliances References'!$N$5:$N$36,0))) ->  | H146: =IF($A146="","",INDEX('Appliances References'!$W$5:$W$36,MATCH($A146,'Appliances References'!$N$5:$N$36,0))) ->  | I146: =IF($A146="","",INDEX('Appliances References'!$Y$5:$Y$36,MATCH($A146,'Appliances References'!$N$5:$N$36,0))) ->  | J146: =IF($A146="","",INDEX('Appliances References'!$Z$5:$Z$36,MATCH($A146,'Appliances References'!$N$5:$N$36,0))) ->  | K146: =IF($A146="","",INDEX('Appliances References'!$AJ$5:$AJ$36,MATCH($A146,'Appliances References'!$N$5:$N$36,0))) ->  | M146: =IF(D146="","",K146/D146) ->  | O146: =IF(B146>0,0,"") -> 0
A147: =IF('Appliances Worksheet'!E165="","",'Appliances References'!$N$24) ->  | B147: =IF('Appliances Worksheet'!E165="","",'Appliances Worksheet'!E165) ->  | C147: =IF($A147="","",INDEX('Appliances References'!$R$5:$R$36,MATCH($A147,'Appliances References'!$N$5:$N$36,0))) ->  | D147: =IF($A147="","",INDEX('Appliances References'!$S$5:$S$36,MATCH($A147,'Appliances References'!$N$5:$N$36,0))) ->  | E147: =IF($A147="","",INDEX('Appliances References'!$T$5:$T$36,MATCH($A147,'Appliances References'!$N$5:$N$36,0))) ->  | F147: =IF($A147="","",INDEX('Appliances References'!$U$5:$U$36,MATCH($A147,'Appliances References'!$N$5:$N$36,0))) ->  | G147: =IF($A147="","",INDEX('Appliances References'!$V$5:$V$36,MATCH($A147,'Appliances References'!$N$5:$N$36,0))) ->  | H147: =IF($A147="","",INDEX('Appliances References'!$W$5:$W$36,MATCH($A147,'Appliances References'!$N$5:$N$36,0))) ->  | I147: =IF($A147="","",INDEX('Appliances References'!$Y$5:$Y$36,MATCH($A147,'Appliances References'!$N$5:$N$36,0))) ->  | J147: =IF($A147="","",INDEX('Appliances References'!$Z$5:$Z$36,MATCH($A147,'Appliances References'!$N$5:$N$36,0))) ->  | K147: =IF($A147="","",INDEX('Appliances References'!$AJ$5:$AJ$36,MATCH($A147,'Appliances References'!$N$5:$N$36,0))) ->  | M147: =IF(D147="","",K147/D147) ->  | O147: =IF(B147>0,0,"") -> 0
A148: =IF('Appliances Worksheet'!E166="","",'Appliances References'!$N$24) ->  | B148: =IF('Appliances Worksheet'!E166="","",'Appliances Worksheet'!E166) ->  | C148: =IF($A148="","",INDEX('Appliances References'!$R$5:$R$36,MATCH($A148,'Appliances References'!$N$5:$N$36,0))) ->  | D148: =IF($A148="","",INDEX('Appliances References'!$S$5:$S$36,MATCH($A148,'Appliances References'!$N$5:$N$36,0))) ->  | E148: =IF($A148="","",INDEX('Appliances References'!$T$5:$T$36,MATCH($A148,'Appliances References'!$N$5:$N$36,0))) ->  | F148: =IF($A148="","",INDEX('Appliances References'!$U$5:$U$36,MATCH($A148,'Appliances References'!$N$5:$N$36,0))) ->  | G148: =IF($A148="","",INDEX('Appliances References'!$V$5:$V$36,MATCH($A148,'Appliances References'!$N$5:$N$36,0))) ->  | H148: =IF($A148="","",INDEX('Appliances References'!$W$5:$W$36,MATCH($A148,'Appliances References'!$N$5:$N$36,0))) ->  | I148: =IF($A148="","",INDEX('Appliances References'!$Y$5:$Y$36,MATCH($A148,'Appliances References'!$N$5:$N$36,0))) ->  | J148: =IF($A148="","",INDEX('Appliances References'!$Z$5:$Z$36,MATCH($A148,'Appliances References'!$N$5:$N$36,0))) ->  | K148: =IF($A148="","",INDEX('Appliances References'!$AJ$5:$AJ$36,MATCH($A148,'Appliances References'!$N$5:$N$36,0))) ->  | O148: 0
A149: =IF('Appliances Worksheet'!E167="","",'Appliances References'!$N$24) ->  | B149: =IF('Appliances Worksheet'!E167="","",'Appliances Worksheet'!E167) ->  | C149: =IF($A149="","",INDEX('Appliances References'!$R$5:$R$36,MATCH($A149,'Appliances References'!$N$5:$N$36,0))) ->  | D149: =IF($A149="","",INDEX('Appliances References'!$S$5:$S$36,MATCH($A149,'Appliances References'!$N$5:$N$36,0))) ->  | E149: =IF($A149="","",INDEX('Appliances References'!$T$5:$T$36,MATCH($A149,'Appliances References'!$N$5:$N$36,0))) ->  | F149: =IF($A149="","",INDEX('Appliances References'!$U$5:$U$36,MATCH($A149,'Appliances References'!$N$5:$N$36,0))) ->  | G149: =IF($A149="","",INDEX('Appliances References'!$V$5:$V$36,MATCH($A149,'Appliances References'!$N$5:$N$36,0))) ->  | H149: =IF($A149="","",INDEX('Appliances References'!$W$5:$W$36,MATCH($A149,'Appliances References'!$N$5:$N$36,0))) ->  | I149: =IF($A149="","",INDEX('Appliances References'!$Y$5:$Y$36,MATCH($A149,'Appliances References'!$N$5:$N$36,0))) ->  | J149: =IF($A149="","",INDEX('Appliances References'!$Z$5:$Z$36,MATCH($A149,'Appliances References'!$N$5:$N$36,0))) ->  | K149: =IF($A149="","",INDEX('Appliances References'!$AJ$5:$AJ$36,MATCH($A149,'Appliances References'!$N$5:$N$36,0))) ->  | O149: 0
A156: Battery Operated Lawn Mower >5aH
A157: Device | B157: Proposed Qty | C157: Gross kW per unit | D157: EE kWh per unit | E157: Winter kW saved | F157: BE kWh saved | G157: MMBTU EE | H157: MMBTU BE | I157: EE CO2 | J157: BE CO2 | K157: Rebate per unit | M157: $/kWh | N157: Total Rebate | O157: Bonus | P157: Total Rebate + Bonus
A158: =IF('Appliances Worksheet'!E176="","",'Appliances References'!$N$25) ->  | B158: =IF('Appliances Worksheet'!E176="","",'Appliances Worksheet'!E176) ->  | C158: =IF($A158="","",INDEX('Appliances References'!$R$5:$R$36,MATCH($A158,'Appliances References'!$N$5:$N$36,0))) ->  | D158: =IF($A158="","",INDEX('Appliances References'!$S$5:$S$36,MATCH($A158,'Appliances References'!$N$5:$N$36,0))) ->  | E158: =IF($A158="","",INDEX('Appliances References'!$T$5:$T$36,MATCH($A158,'Appliances References'!$N$5:$N$36,0))) ->  | F158: =IF($A158="","",INDEX('Appliances References'!$U$5:$U$36,MATCH($A158,'Appliances References'!$N$5:$N$36,0))) ->  | G158: =IF($A158="","",INDEX('Appliances References'!$V$5:$V$36,MATCH($A158,'Appliances References'!$N$5:$N$36,0))) ->  | H158: =IF($A158="","",INDEX('Appliances References'!$W$5:$W$36,MATCH($A158,'Appliances References'!$N$5:$N$36,0))) ->  | I158: =IF($A158="","",INDEX('Appliances References'!$Y$5:$Y$36,MATCH($A158,'Appliances References'!$N$5:$N$36,0))) ->  | J158: =IF($A158="","",INDEX('Appliances References'!$Z$5:$Z$36,MATCH($A158,'Appliances References'!$N$5:$N$36,0))) ->  | K158: =IF($A158="","",INDEX('Appliances References'!$AJ$5:$AJ$36,MATCH($A158,'Appliances References'!$N$5:$N$36,0))) ->  | M158: =IF(D158="","",K158/D158) ->  | O158: =IF(B158>0,0,"") -> 0
A159: =IF('Appliances Worksheet'!E177="","",'Appliances References'!$N$25) ->  | B159: =IF('Appliances Worksheet'!E177="","",'Appliances Worksheet'!E177) ->  | C159: =IF($A159="","",INDEX('Appliances References'!$R$5:$R$36,MATCH($A159,'Appliances References'!$N$5:$N$36,0))) ->  | D159: =IF($A159="","",INDEX('Appliances References'!$S$5:$S$36,MATCH($A159,'Appliances References'!$N$5:$N$36,0))) ->  | E159: =IF($A159="","",INDEX('Appliances References'!$T$5:$T$36,MATCH($A159,'Appliances References'!$N$5:$N$36,0))) ->  | F159: =IF($A159="","",INDEX('Appliances References'!$U$5:$U$36,MATCH($A159,'Appliances References'!$N$5:$N$36,0))) ->  | G159: =IF($A159="","",INDEX('Appliances References'!$V$5:$V$36,MATCH($A159,'Appliances References'!$N$5:$N$36,0))) ->  | H159: =IF($A159="","",INDEX('Appliances References'!$W$5:$W$36,MATCH($A159,'Appliances References'!$N$5:$N$36,0))) ->  | I159: =IF($A159="","",INDEX('Appliances References'!$Y$5:$Y$36,MATCH($A159,'Appliances References'!$N$5:$N$36,0))) ->  | J159: =IF($A159="","",INDEX('Appliances References'!$Z$5:$Z$36,MATCH($A159,'Appliances References'!$N$5:$N$36,0))) ->  | K159: =IF($A159="","",INDEX('Appliances References'!$AJ$5:$AJ$36,MATCH($A159,'Appliances References'!$N$5:$N$36,0))) ->  | M159: =IF(D159="","",K159/D159) ->  | O159: =IF(B159>0,0,"") -> 0
A160: =IF('Appliances Worksheet'!E178="","",'Appliances References'!$N$25) ->  | B160: =IF('Appliances Worksheet'!E178="","",'Appliances Worksheet'!E178) ->  | C160: =IF($A160="","",INDEX('Appliances References'!$R$5:$R$36,MATCH($A160,'Appliances References'!$N$5:$N$36,0))) ->  | D160: =IF($A160="","",INDEX('Appliances References'!$S$5:$S$36,MATCH($A160,'Appliances References'!$N$5:$N$36,0))) ->  | E160: =IF($A160="","",INDEX('Appliances References'!$T$5:$T$36,MATCH($A160,'Appliances References'!$N$5:$N$36,0))) ->  | F160: =IF($A160="","",INDEX('Appliances References'!$U$5:$U$36,MATCH($A160,'Appliances References'!$N$5:$N$36,0))) ->  | G160: =IF($A160="","",INDEX('Appliances References'!$V$5:$V$36,MATCH($A160,'Appliances References'!$N$5:$N$36,0))) ->  | H160: =IF($A160="","",INDEX('Appliances References'!$W$5:$W$36,MATCH($A160,'Appliances References'!$N$5:$N$36,0))) ->  | I160: =IF($A160="","",INDEX('Appliances References'!$Y$5:$Y$36,MATCH($A160,'Appliances References'!$N$5:$N$36,0))) ->  | J160: =IF($A160="","",INDEX('Appliances References'!$Z$5:$Z$36,MATCH($A160,'Appliances References'!$N$5:$N$36,0))) ->  | K160: =IF($A160="","",INDEX('Appliances References'!$AJ$5:$AJ$36,MATCH($A160,'Appliances References'!$N$5:$N$36,0))) ->  | O160: 0
A161: =IF('Appliances Worksheet'!E179="","",'Appliances References'!$N$25) ->  | B161: =IF('Appliances Worksheet'!E179="","",'Appliances Worksheet'!E179) ->  | C161: =IF($A161="","",INDEX('Appliances References'!$R$5:$R$36,MATCH($A161,'Appliances References'!$N$5:$N$36,0))) ->  | D161: =IF($A161="","",INDEX('Appliances References'!$S$5:$S$36,MATCH($A161,'Appliances References'!$N$5:$N$36,0))) ->  | E161: =IF($A161="","",INDEX('Appliances References'!$T$5:$T$36,MATCH($A161,'Appliances References'!$N$5:$N$36,0))) ->  | F161: =IF($A161="","",INDEX('Appliances References'!$U$5:$U$36,MATCH($A161,'Appliances References'!$N$5:$N$36,0))) ->  | G161: =IF($A161="","",INDEX('Appliances References'!$V$5:$V$36,MATCH($A161,'Appliances References'!$N$5:$N$36,0))) ->  | H161: =IF($A161="","",INDEX('Appliances References'!$W$5:$W$36,MATCH($A161,'Appliances References'!$N$5:$N$36,0))) ->  | I161: =IF($A161="","",INDEX('Appliances References'!$Y$5:$Y$36,MATCH($A161,'Appliances References'!$N$5:$N$36,0))) ->  | J161: =IF($A161="","",INDEX('Appliances References'!$Z$5:$Z$36,MATCH($A161,'Appliances References'!$N$5:$N$36,0))) ->  | K161: =IF($A161="","",INDEX('Appliances References'!$AJ$5:$AJ$36,MATCH($A161,'Appliances References'!$N$5:$N$36,0))) ->  | O161: 0
A168: Battery Operated Leaf Blower
A169: Device | B169: Proposed Qty | C169: Gross kW per unit | D169: EE kWh per unit | E169: Winter kW saved | F169: BE kWh saved | G169: MMBTU EE | H169: MMBTU BE | I169: EE CO2 | J169: BE CO2 | K169: Rebate per unit | M169: $/kWh | N169: Total Rebate | O169: Bonus | P169: Total Rebate + Bonus
A170: =IF('Appliances Worksheet'!E188="","",'Appliances References'!$N$27) ->  | B170: =IF('Appliances Worksheet'!E188="","",'Appliances Worksheet'!E188) ->  | C170: =IF($A170="","",INDEX('Appliances References'!$R$5:$R$36,MATCH($A170,'Appliances References'!$N$5:$N$36,0))) ->  | D170: =IF($A170="","",INDEX('Appliances References'!$S$5:$S$36,MATCH($A170,'Appliances References'!$N$5:$N$36,0))) ->  | E170: =IF($A170="","",INDEX('Appliances References'!$T$5:$T$36,MATCH($A170,'Appliances References'!$N$5:$N$36,0))) ->  | F170: =IF($A170="","",INDEX('Appliances References'!$U$5:$U$36,MATCH($A170,'Appliances References'!$N$5:$N$36,0))) ->  | G170: =IF($A170="","",INDEX('Appliances References'!$V$5:$V$36,MATCH($A170,'Appliances References'!$N$5:$N$36,0))) ->  | H170: =IF($A170="","",INDEX('Appliances References'!$W$5:$W$36,MATCH($A170,'Appliances References'!$N$5:$N$36,0))) ->  | I170: =IF($A170="","",INDEX('Appliances References'!$Y$5:$Y$36,MATCH($A170,'Appliances References'!$N$5:$N$36,0))) ->  | J170: =IF($A170="","",INDEX('Appliances References'!$Z$5:$Z$36,MATCH($A170,'Appliances References'!$N$5:$N$36,0))) ->  | K170: =IF($A170="","",INDEX('Appliances References'!$AJ$5:$AJ$36,MATCH($A170,'Appliances References'!$N$5:$N$36,0))) ->  | M170: =IF(D170="","",K170/D170) ->  | O170: =IF(B170>0,0,"") -> 0
A171: =IF('Appliances Worksheet'!E189="","",'Appliances References'!$N$27) ->  | B171: =IF('Appliances Worksheet'!E189="","",'Appliances Worksheet'!E189) ->  | C171: =IF($A171="","",INDEX('Appliances References'!$R$5:$R$36,MATCH($A171,'Appliances References'!$N$5:$N$36,0))) ->  | D171: =IF($A171="","",INDEX('Appliances References'!$S$5:$S$36,MATCH($A171,'Appliances References'!$N$5:$N$36,0))) ->  | E171: =IF($A171="","",INDEX('Appliances References'!$T$5:$T$36,MATCH($A171,'Appliances References'!$N$5:$N$36,0))) ->  | F171: =IF($A171="","",INDEX('Appliances References'!$U$5:$U$36,MATCH($A171,'Appliances References'!$N$5:$N$36,0))) ->  | G171: =IF($A171="","",INDEX('Appliances References'!$V$5:$V$36,MATCH($A171,'Appliances References'!$N$5:$N$36,0))) ->  | H171: =IF($A171="","",INDEX('Appliances References'!$W$5:$W$36,MATCH($A171,'Appliances References'!$N$5:$N$36,0))) ->  | I171: =IF($A171="","",INDEX('Appliances References'!$Y$5:$Y$36,MATCH($A171,'Appliances References'!$N$5:$N$36,0))) ->  | J171: =IF($A171="","",INDEX('Appliances References'!$Z$5:$Z$36,MATCH($A171,'Appliances References'!$N$5:$N$36,0))) ->  | K171: =IF($A171="","",INDEX('Appliances References'!$AJ$5:$AJ$36,MATCH($A171,'Appliances References'!$N$5:$N$36,0))) ->  | M171: =IF(D171="","",K171/D171) ->  | O171: =IF(B171>0,0,"") -> 0
A172: =IF('Appliances Worksheet'!E190="","",'Appliances References'!$N$27) ->  | B172: =IF('Appliances Worksheet'!E190="","",'Appliances Worksheet'!E190) ->  | C172: =IF($A172="","",INDEX('Appliances References'!$R$5:$R$36,MATCH($A172,'Appliances References'!$N$5:$N$36,0))) ->  | D172: =IF($A172="","",INDEX('Appliances References'!$S$5:$S$36,MATCH($A172,'Appliances References'!$N$5:$N$36,0))) ->  | E172: =IF($A172="","",INDEX('Appliances References'!$T$5:$T$36,MATCH($A172,'Appliances References'!$N$5:$N$36,0))) ->  | F172: =IF($A172="","",INDEX('Appliances References'!$U$5:$U$36,MATCH($A172,'Appliances References'!$N$5:$N$36,0))) ->  | G172: =IF($A172="","",INDEX('Appliances References'!$V$5:$V$36,MATCH($A172,'Appliances References'!$N$5:$N$36,0))) ->  | H172: =IF($A172="","",INDEX('Appliances References'!$W$5:$W$36,MATCH($A172,'Appliances References'!$N$5:$N$36,0))) ->  | I172: =IF($A172="","",INDEX('Appliances References'!$Y$5:$Y$36,MATCH($A172,'Appliances References'!$N$5:$N$36,0))) ->  | J172: =IF($A172="","",INDEX('Appliances References'!$Z$5:$Z$36,MATCH($A172,'Appliances References'!$N$5:$N$36,0))) ->  | K172: =IF($A172="","",INDEX('Appliances References'!$AJ$5:$AJ$36,MATCH($A172,'Appliances References'!$N$5:$N$36,0))) ->  | O172: 0
A173: =IF('Appliances Worksheet'!E191="","",'Appliances References'!$N$27) ->  | B173: =IF('Appliances Worksheet'!E191="","",'Appliances Worksheet'!E191) ->  | C173: =IF($A173="","",INDEX('Appliances References'!$R$5:$R$36,MATCH($A173,'Appliances References'!$N$5:$N$36,0))) ->  | D173: =IF($A173="","",INDEX('Appliances References'!$S$5:$S$36,MATCH($A173,'Appliances References'!$N$5:$N$36,0))) ->  | E173: =IF($A173="","",INDEX('Appliances References'!$T$5:$T$36,MATCH($A173,'Appliances References'!$N$5:$N$36,0))) ->  | F173: =IF($A173="","",INDEX('Appliances References'!$U$5:$U$36,MATCH($A173,'Appliances References'!$N$5:$N$36,0))) ->  | G173: =IF($A173="","",INDEX('Appliances References'!$V$5:$V$36,MATCH($A173,'Appliances References'!$N$5:$N$36,0))) ->  | H173: =IF($A173="","",INDEX('Appliances References'!$W$5:$W$36,MATCH($A173,'Appliances References'!$N$5:$N$36,0))) ->  | I173: =IF($A173="","",INDEX('Appliances References'!$Y$5:$Y$36,MATCH($A173,'Appliances References'!$N$5:$N$36,0))) ->  | J173: =IF($A173="","",INDEX('Appliances References'!$Z$5:$Z$36,MATCH($A173,'Appliances References'!$N$5:$N$36,0))) ->  | K173: =IF($A173="","",INDEX('Appliances References'!$AJ$5:$AJ$36,MATCH($A173,'Appliances References'!$N$5:$N$36,0))) ->  | O173: 0
A180: Battery Operated Weed Trimmer
A181: Device | B181: Proposed Qty | C181: Gross kW per unit | D181: EE kWh per unit | E181: Winter kW saved | F181: BE kWh saved | G181: MMBTU EE | H181: MMBTU BE | I181: EE CO2 | J181: BE CO2 | K181: Rebate per unit | M181: $/kWh | N181: Total Rebate | O181: Bonus | P181: Total Rebate + Bonus
A182: =IF('Appliances Worksheet'!E200="","",'Appliances References'!$N$26) ->  | B182: =IF('Appliances Worksheet'!E200="","",'Appliances Worksheet'!E200) ->  | C182: =IF($A182="","",INDEX('Appliances References'!$R$5:$R$36,MATCH($A182,'Appliances References'!$N$5:$N$36,0))) ->  | D182: =IF($A182="","",INDEX('Appliances References'!$S$5:$S$36,MATCH($A182,'Appliances References'!$N$5:$N$36,0))) ->  | E182: =IF($A182="","",INDEX('Appliances References'!$T$5:$T$36,MATCH($A182,'Appliances References'!$N$5:$N$36,0))) ->  | F182: =IF($A182="","",INDEX('Appliances References'!$U$5:$U$36,MATCH($A182,'Appliances References'!$N$5:$N$36,0))) ->  | G182: =IF($A182="","",INDEX('Appliances References'!$V$5:$V$36,MATCH($A182,'Appliances References'!$N$5:$N$36,0))) ->  | H182: =IF($A182="","",INDEX('Appliances References'!$W$5:$W$36,MATCH($A182,'Appliances References'!$N$5:$N$36,0))) ->  | I182: =IF($A182="","",INDEX('Appliances References'!$Y$5:$Y$36,MATCH($A182,'Appliances References'!$N$5:$N$36,0))) ->  | J182: =IF($A182="","",INDEX('Appliances References'!$Z$5:$Z$36,MATCH($A182,'Appliances References'!$N$5:$N$36,0))) ->  | K182: =IF($A182="","",INDEX('Appliances References'!$AJ$5:$AJ$36,MATCH($A182,'Appliances References'!$N$5:$N$36,0))) ->  | M182: =IF(D182="","",K182/D182) ->  | O182: =IF(B182>0,0,"") -> 0
A183: =IF('Appliances Worksheet'!E201="","",'Appliances References'!$N$26) ->  | B183: =IF('Appliances Worksheet'!E201="","",'Appliances Worksheet'!E201) ->  | C183: =IF($A183="","",INDEX('Appliances References'!$R$5:$R$36,MATCH($A183,'Appliances References'!$N$5:$N$36,0))) ->  | D183: =IF($A183="","",INDEX('Appliances References'!$S$5:$S$36,MATCH($A183,'Appliances References'!$N$5:$N$36,0))) ->  | E183: =IF($A183="","",INDEX('Appliances References'!$T$5:$T$36,MATCH($A183,'Appliances References'!$N$5:$N$36,0))) ->  | F183: =IF($A183="","",INDEX('Appliances References'!$U$5:$U$36,MATCH($A183,'Appliances References'!$N$5:$N$36,0))) ->  | G183: =IF($A183="","",INDEX('Appliances References'!$V$5:$V$36,MATCH($A183,'Appliances References'!$N$5:$N$36,0))) ->  | H183: =IF($A183="","",INDEX('Appliances References'!$W$5:$W$36,MATCH($A183,'Appliances References'!$N$5:$N$36,0))) ->  | I183: =IF($A183="","",INDEX('Appliances References'!$Y$5:$Y$36,MATCH($A183,'Appliances References'!$N$5:$N$36,0))) ->  | J183: =IF($A183="","",INDEX('Appliances References'!$Z$5:$Z$36,MATCH($A183,'Appliances References'!$N$5:$N$36,0))) ->  | K183: =IF($A183="","",INDEX('Appliances References'!$AJ$5:$AJ$36,MATCH($A183,'Appliances References'!$N$5:$N$36,0))) ->  | O183: =IF(B183>0,0,"") -> 0
A184: =IF('Appliances Worksheet'!E202="","",'Appliances References'!$N$26) ->  | B184: =IF('Appliances Worksheet'!E202="","",'Appliances Worksheet'!E202) ->  | C184: =IF($A184="","",INDEX('Appliances References'!$R$5:$R$36,MATCH($A184,'Appliances References'!$N$5:$N$36,0))) ->  | D184: =IF($A184="","",INDEX('Appliances References'!$S$5:$S$36,MATCH($A184,'Appliances References'!$N$5:$N$36,0))) ->  | E184: =IF($A184="","",INDEX('Appliances References'!$T$5:$T$36,MATCH($A184,'Appliances References'!$N$5:$N$36,0))) ->  | F184: =IF($A184="","",INDEX('Appliances References'!$U$5:$U$36,MATCH($A184,'Appliances References'!$N$5:$N$36,0))) ->  | G184: =IF($A184="","",INDEX('Appliances References'!$V$5:$V$36,MATCH($A184,'Appliances References'!$N$5:$N$36,0))) ->  | H184: =IF($A184="","",INDEX('Appliances References'!$W$5:$W$36,MATCH($A184,'Appliances References'!$N$5:$N$36,0))) ->  | I184: =IF($A184="","",INDEX('Appliances References'!$Y$5:$Y$36,MATCH($A184,'Appliances References'!$N$5:$N$36,0))) ->  | J184: =IF($A184="","",INDEX('Appliances References'!$Z$5:$Z$36,MATCH($A184,'Appliances References'!$N$5:$N$36,0))) ->  | K184: =IF($A184="","",INDEX('Appliances References'!$AJ$5:$AJ$36,MATCH($A184,'Appliances References'!$N$5:$N$36,0))) ->  | O184: 0
A185: =IF('Appliances Worksheet'!E203="","",'Appliances References'!$N$26) ->  | B185: =IF('Appliances Worksheet'!E203="","",'Appliances Worksheet'!E203) ->  | C185: =IF($A185="","",INDEX('Appliances References'!$R$5:$R$36,MATCH($A185,'Appliances References'!$N$5:$N$36,0))) ->  | D185: =IF($A185="","",INDEX('Appliances References'!$S$5:$S$36,MATCH($A185,'Appliances References'!$N$5:$N$36,0))) ->  | E185: =IF($A185="","",INDEX('Appliances References'!$T$5:$T$36,MATCH($A185,'Appliances References'!$N$5:$N$36,0))) ->  | F185: =IF($A185="","",INDEX('Appliances References'!$U$5:$U$36,MATCH($A185,'Appliances References'!$N$5:$N$36,0))) ->  | G185: =IF($A185="","",INDEX('Appliances References'!$V$5:$V$36,MATCH($A185,'Appliances References'!$N$5:$N$36,0))) ->  | H185: =IF($A185="","",INDEX('Appliances References'!$W$5:$W$36,MATCH($A185,'Appliances References'!$N$5:$N$36,0))) ->  | I185: =IF($A185="","",INDEX('Appliances References'!$Y$5:$Y$36,MATCH($A185,'Appliances References'!$N$5:$N$36,0))) ->  | J185: =IF($A185="","",INDEX('Appliances References'!$Z$5:$Z$36,MATCH($A185,'Appliances References'!$N$5:$N$36,0))) ->  | K185: =IF($A185="","",INDEX('Appliances References'!$AJ$5:$AJ$36,MATCH($A185,'Appliances References'!$N$5:$N$36,0))) ->  | O185: 0
A192: ENERGY STAR Refrigerator
A193: Device | B193: Proposed Qty | C193: Gross kW per unit | D193: EE kWh per unit | E193: Winter kW saved | F193: BE kWh saved | G193: MMBTU EE | H193: MMBTU BE | I193: EE CO2 | J193: BE CO2 | K193: Rebate per unit | M193: $/kWh | N193: Total Rebate | O193: Bonus | P193: Total Rebate + Bonus
A194: =IF('Appliances Worksheet'!E212="","",'Appliances References'!$N$32) ->  | B194: =IF('Appliances Worksheet'!E212="","",'Appliances Worksheet'!E212) ->  | C194: =IF($A194="","",INDEX('Appliances References'!$R$5:$R$36,MATCH($A194,'Appliances References'!$N$5:$N$36,0))) ->  | D194: =IF($A194="","",INDEX('Appliances References'!$S$5:$S$36,MATCH($A194,'Appliances References'!$N$5:$N$36,0))) ->  | E194: =IF($A194="","",INDEX('Appliances References'!$T$5:$T$36,MATCH($A194,'Appliances References'!$N$5:$N$36,0))) ->  | F194: =IF($A194="","",INDEX('Appliances References'!$U$5:$U$36,MATCH($A194,'Appliances References'!$N$5:$N$36,0))) ->  | G194: =IF($A194="","",INDEX('Appliances References'!$V$5:$V$36,MATCH($A194,'Appliances References'!$N$5:$N$36,0))) ->  | H194: =IF($A194="","",INDEX('Appliances References'!$W$5:$W$36,MATCH($A194,'Appliances References'!$N$5:$N$36,0))) ->  | I194: =IF($A194="","",INDEX('Appliances References'!$Y$5:$Y$36,MATCH($A194,'Appliances References'!$N$5:$N$36,0))) ->  | J194: =IF($A194="","",INDEX('Appliances References'!$Z$5:$Z$36,MATCH($A194,'Appliances References'!$N$5:$N$36,0))) ->  | K194: =IF($A194="","",INDEX('Appliances References'!$AJ$5:$AJ$36,MATCH($A194,'Appliances References'!$N$5:$N$36,0))) ->  | M194: =IF(D194="","",K194/D194) ->  | N194: =IF(B194>0,B194*K194,"") ->  | O194: =IF(B194>0,0,"") -> 0 | P194: =IF(B194>0,N194+O194,"") -> 
A195: =IF('Appliances Worksheet'!E213="","",'Appliances References'!$N$32) ->  | B195: =IF('Appliances Worksheet'!E213="","",'Appliances Worksheet'!E213) ->  | C195: =IF($A195="","",INDEX('Appliances References'!$R$5:$R$36,MATCH($A195,'Appliances References'!$N$5:$N$36,0))) ->  | D195: =IF($A195="","",INDEX('Appliances References'!$S$5:$S$36,MATCH($A195,'Appliances References'!$N$5:$N$36,0))) ->  | E195: =IF($A195="","",INDEX('Appliances References'!$T$5:$T$36,MATCH($A195,'Appliances References'!$N$5:$N$36,0))) ->  | F195: =IF($A195="","",INDEX('Appliances References'!$U$5:$U$36,MATCH($A195,'Appliances References'!$N$5:$N$36,0))) ->  | G195: =IF($A195="","",INDEX('Appliances References'!$V$5:$V$36,MATCH($A195,'Appliances References'!$N$5:$N$36,0))) ->  | H195: =IF($A195="","",INDEX('Appliances References'!$W$5:$W$36,MATCH($A195,'Appliances References'!$N$5:$N$36,0))) ->  | I195: =IF($A195="","",INDEX('Appliances References'!$Y$5:$Y$36,MATCH($A195,'Appliances References'!$N$5:$N$36,0))) ->  | J195: =IF($A195="","",INDEX('Appliances References'!$Z$5:$Z$36,MATCH($A195,'Appliances References'!$N$5:$N$36,0))) ->  | K195: =IF($A195="","",INDEX('Appliances References'!$AJ$5:$AJ$36,MATCH($A195,'Appliances References'!$N$5:$N$36,0))) ->  | O195: =IF(B195>0,0,"") -> 0
A196: =IF('Appliances Worksheet'!E214="","",'Appliances References'!$N$32) ->  | B196: =IF('Appliances Worksheet'!E214="","",'Appliances Worksheet'!E214) ->  | C196: =IF($A196="","",INDEX('Appliances References'!$R$5:$R$36,MATCH($A196,'Appliances References'!$N$5:$N$36,0))) ->  | D196: =IF($A196="","",INDEX('Appliances References'!$S$5:$S$36,MATCH($A196,'Appliances References'!$N$5:$N$36,0))) ->  | E196: =IF($A196="","",INDEX('Appliances References'!$T$5:$T$36,MATCH($A196,'Appliances References'!$N$5:$N$36,0))) ->  | F196: =IF($A196="","",INDEX('Appliances References'!$U$5:$U$36,MATCH($A196,'Appliances References'!$N$5:$N$36,0))) ->  | G196: =IF($A196="","",INDEX('Appliances References'!$V$5:$V$36,MATCH($A196,'Appliances References'!$N$5:$N$36,0))) ->  | H196: =IF($A196="","",INDEX('Appliances References'!$W$5:$W$36,MATCH($A196,'Appliances References'!$N$5:$N$36,0))) ->  | I196: =IF($A196="","",INDEX('Appliances References'!$Y$5:$Y$36,MATCH($A196,'Appliances References'!$N$5:$N$36,0))) ->  | J196: =IF($A196="","",INDEX('Appliances References'!$Z$5:$Z$36,MATCH($A196,'Appliances References'!$N$5:$N$36,0))) ->  | K196: =IF($A196="","",INDEX('Appliances References'!$AJ$5:$AJ$36,MATCH($A196,'Appliances References'!$N$5:$N$36,0))) ->  | O196: 0
A197: =IF('Appliances Worksheet'!E215="","",'Appliances References'!$N$32) ->  | B197: =IF('Appliances Worksheet'!E215="","",'Appliances Worksheet'!E215) ->  | C197: =IF($A197="","",INDEX('Appliances References'!$R$5:$R$36,MATCH($A197,'Appliances References'!$N$5:$N$36,0))) ->  | D197: =IF($A197="","",INDEX('Appliances References'!$S$5:$S$36,MATCH($A197,'Appliances References'!$N$5:$N$36,0))) ->  | E197: =IF($A197="","",INDEX('Appliances References'!$T$5:$T$36,MATCH($A197,'Appliances References'!$N$5:$N$36,0))) ->  | F197: =IF($A197="","",INDEX('Appliances References'!$U$5:$U$36,MATCH($A197,'Appliances References'!$N$5:$N$36,0))) ->  | G197: =IF($A197="","",INDEX('Appliances References'!$V$5:$V$36,MATCH($A197,'Appliances References'!$N$5:$N$36,0))) ->  | H197: =IF($A197="","",INDEX('Appliances References'!$W$5:$W$36,MATCH($A197,'Appliances References'!$N$5:$N$36,0))) ->  | I197: =IF($A197="","",INDEX('Appliances References'!$Y$5:$Y$36,MATCH($A197,'Appliances References'!$N$5:$N$36,0))) ->  | J197: =IF($A197="","",INDEX('Appliances References'!$Z$5:$Z$36,MATCH($A197,'Appliances References'!$N$5:$N$36,0))) ->  | K197: =IF($A197="","",INDEX('Appliances References'!$AJ$5:$AJ$36,MATCH($A197,'Appliances References'!$N$5:$N$36,0))) ->  | O197: 0
A204: Most Efficient Refrigerator
A205: Device | B205: Proposed Qty | C205: Gross kW per unit | D205: EE kWh per unit | E205: Winter kW saved | F205: BE kWh saved | G205: MMBTU EE | H205: MMBTU BE | I205: EE CO2 | J205: BE CO2 | K205: Rebate per unit | M205: $/kWh | N205: Total Rebate | O205: Bonus | P205: Total Rebate + Bonus
A206: =IF('Appliances Worksheet'!E224="","",'Appliances References'!$N$31) ->  | B206: =IF('Appliances Worksheet'!E224="","",'Appliances Worksheet'!E224) ->  | C206: =IF($A206="","",INDEX('Appliances References'!$R$5:$R$36,MATCH($A206,'Appliances References'!$N$5:$N$36,0))) ->  | D206: =IF($A206="","",INDEX('Appliances References'!$S$5:$S$36,MATCH($A206,'Appliances References'!$N$5:$N$36,0))) ->  | E206: =IF($A206="","",INDEX('Appliances References'!$T$5:$T$36,MATCH($A206,'Appliances References'!$N$5:$N$36,0))) ->  | F206: =IF($A206="","",INDEX('Appliances References'!$U$5:$U$36,MATCH($A206,'Appliances References'!$N$5:$N$36,0))) ->  | G206: =IF($A206="","",INDEX('Appliances References'!$V$5:$V$36,MATCH($A206,'Appliances References'!$N$5:$N$36,0))) ->  | H206: =IF($A206="","",INDEX('Appliances References'!$W$5:$W$36,MATCH($A206,'Appliances References'!$N$5:$N$36,0))) ->  | I206: =IF($A206="","",INDEX('Appliances References'!$Y$5:$Y$36,MATCH($A206,'Appliances References'!$N$5:$N$36,0))) ->  | J206: =IF($A206="","",INDEX('Appliances References'!$Z$5:$Z$36,MATCH($A206,'Appliances References'!$N$5:$N$36,0))) ->  | K206: =IF($A206="","",INDEX('Appliances References'!$AJ$5:$AJ$36,MATCH($A206,'Appliances References'!$N$5:$N$36,0))) ->  | M206: =IF(D206="","",K206/D206) ->  | N206: =IF(B206>0,B206*K206,"") ->  | O206: =IF(B206>0,0,"") -> 0 | P206: =IF(B206>0,N206+O206,"") -> 
A207: =IF('Appliances Worksheet'!E225="","",'Appliances References'!$N$31) ->  | B207: =IF('Appliances Worksheet'!E225="","",'Appliances Worksheet'!E225) ->  | C207: =IF($A207="","",INDEX('Appliances References'!$R$5:$R$36,MATCH($A207,'Appliances References'!$N$5:$N$36,0))) ->  | D207: =IF($A207="","",INDEX('Appliances References'!$S$5:$S$36,MATCH($A207,'Appliances References'!$N$5:$N$36,0))) ->  | E207: =IF($A207="","",INDEX('Appliances References'!$T$5:$T$36,MATCH($A207,'Appliances References'!$N$5:$N$36,0))) ->  | F207: =IF($A207="","",INDEX('Appliances References'!$U$5:$U$36,MATCH($A207,'Appliances References'!$N$5:$N$36,0))) ->  | G207: =IF($A207="","",INDEX('Appliances References'!$V$5:$V$36,MATCH($A207,'Appliances References'!$N$5:$N$36,0))) ->  | H207: =IF($A207="","",INDEX('Appliances References'!$W$5:$W$36,MATCH($A207,'Appliances References'!$N$5:$N$36,0))) ->  | I207: =IF($A207="","",INDEX('Appliances References'!$Y$5:$Y$36,MATCH($A207,'Appliances References'!$N$5:$N$36,0))) ->  | J207: =IF($A207="","",INDEX('Appliances References'!$Z$5:$Z$36,MATCH($A207,'Appliances References'!$N$5:$N$36,0))) ->  | K207: =IF($A207="","",INDEX('Appliances References'!$AJ$5:$AJ$36,MATCH($A207,'Appliances References'!$N$5:$N$36,0))) ->  | O207: =IF(B207>0,0,"") -> 0
A208: =IF('Appliances Worksheet'!E226="","",'Appliances References'!$N$31) ->  | B208: =IF('Appliances Worksheet'!E226="","",'Appliances Worksheet'!E226) ->  | C208: =IF($A208="","",INDEX('Appliances References'!$R$5:$R$36,MATCH($A208,'Appliances References'!$N$5:$N$36,0))) ->  | D208: =IF($A208="","",INDEX('Appliances References'!$S$5:$S$36,MATCH($A208,'Appliances References'!$N$5:$N$36,0))) ->  | E208: =IF($A208="","",INDEX('Appliances References'!$T$5:$T$36,MATCH($A208,'Appliances References'!$N$5:$N$36,0))) ->  | F208: =IF($A208="","",INDEX('Appliances References'!$U$5:$U$36,MATCH($A208,'Appliances References'!$N$5:$N$36,0))) ->  | G208: =IF($A208="","",INDEX('Appliances References'!$V$5:$V$36,MATCH($A208,'Appliances References'!$N$5:$N$36,0))) ->  | H208: =IF($A208="","",INDEX('Appliances References'!$W$5:$W$36,MATCH($A208,'Appliances References'!$N$5:$N$36,0))) ->  | I208: =IF($A208="","",INDEX('Appliances References'!$Y$5:$Y$36,MATCH($A208,'Appliances References'!$N$5:$N$36,0))) ->  | J208: =IF($A208="","",INDEX('Appliances References'!$Z$5:$Z$36,MATCH($A208,'Appliances References'!$N$5:$N$36,0))) ->  | K208: =IF($A208="","",INDEX('Appliances References'!$AJ$5:$AJ$36,MATCH($A208,'Appliances References'!$N$5:$N$36,0))) ->  | O208: 0
A209: =IF('Appliances Worksheet'!E227="","",'Appliances References'!$N$31) ->  | B209: =IF('Appliances Worksheet'!E227="","",'Appliances Worksheet'!E227) ->  | C209: =IF($A209="","",INDEX('Appliances References'!$R$5:$R$36,MATCH($A209,'Appliances References'!$N$5:$N$36,0))) ->  | D209: =IF($A209="","",INDEX('Appliances References'!$S$5:$S$36,MATCH($A209,'Appliances References'!$N$5:$N$36,0))) ->  | E209: =IF($A209="","",INDEX('Appliances References'!$T$5:$T$36,MATCH($A209,'Appliances References'!$N$5:$N$36,0))) ->  | F209: =IF($A209="","",INDEX('Appliances References'!$U$5:$U$36,MATCH($A209,'Appliances References'!$N$5:$N$36,0))) ->  | G209: =IF($A209="","",INDEX('Appliances References'!$V$5:$V$36,MATCH($A209,'Appliances References'!$N$5:$N$36,0))) ->  | H209: =IF($A209="","",INDEX('Appliances References'!$W$5:$W$36,MATCH($A209,'Appliances References'!$N$5:$N$36,0))) ->  | I209: =IF($A209="","",INDEX('Appliances References'!$Y$5:$Y$36,MATCH($A209,'Appliances References'!$N$5:$N$36,0))) ->  | J209: =IF($A209="","",INDEX('Appliances References'!$Z$5:$Z$36,MATCH($A209,'Appliances References'!$N$5:$N$36,0))) ->  | K209: =IF($A209="","",INDEX('Appliances References'!$AJ$5:$AJ$36,MATCH($A209,'Appliances References'!$N$5:$N$36,0))) ->  | O209: 0
A216: ENERGY STAR Clothes Washer
A217: Device | B217: Proposed Qty | C217: Gross kW per unit | D217: EE kWh per unit | E217: Winter kW saved | F217: BE kWh saved | G217: MMBTU EE | H217: MMBTU BE | I217: EE CO2 | J217: BE CO2 | K217: Rebate per unit | M217: $/kWh | N217: Total Rebate | O217: Bonus | P217: Total Rebate + Bonus
A218: =IF('Appliances Worksheet'!E236="","",'Appliances References'!$N$33) ->  | B218: =IF('Appliances Worksheet'!E236="","",'Appliances Worksheet'!E236) ->  | C218: =IF($A218="","",INDEX('Appliances References'!$R$5:$R$36,MATCH($A218,'Appliances References'!$N$5:$N$36,0))) ->  | D218: =IF($A218="","",INDEX('Appliances References'!$S$5:$S$36,MATCH($A218,'Appliances References'!$N$5:$N$36,0))) ->  | E218: =IF($A218="","",INDEX('Appliances References'!$T$5:$T$36,MATCH($A218,'Appliances References'!$N$5:$N$36,0))) ->  | F218: =IF($A218="","",INDEX('Appliances References'!$U$5:$U$36,MATCH($A218,'Appliances References'!$N$5:$N$36,0))) ->  | G218: =IF($A218="","",INDEX('Appliances References'!$V$5:$V$36,MATCH($A218,'Appliances References'!$N$5:$N$36,0))) ->  | H218: =IF($A218="","",INDEX('Appliances References'!$W$5:$W$36,MATCH($A218,'Appliances References'!$N$5:$N$36,0))) ->  | I218: =IF($A218="","",INDEX('Appliances References'!$Y$5:$Y$36,MATCH($A218,'Appliances References'!$N$5:$N$36,0))) ->  | J218: =IF($A218="","",INDEX('Appliances References'!$Z$5:$Z$36,MATCH($A218,'Appliances References'!$N$5:$N$36,0))) ->  | K218: =IF($A218="","",INDEX('Appliances References'!$AJ$5:$AJ$36,MATCH($A218,'Appliances References'!$N$5:$N$36,0))) ->  | M218: =IF(D218="","",K218/D218) ->  | N218: =IF(B218>0,B218*K218,"") ->  | O218: =IF(B218>0,0,"") -> 0 | P218: =IF(B218>0,N218+O218,"") -> 
A219: =IF('Appliances Worksheet'!E237="","",'Appliances References'!$N$33) ->  | B219: =IF('Appliances Worksheet'!E237="","",'Appliances Worksheet'!E237) ->  | C219: =IF($A219="","",INDEX('Appliances References'!$R$5:$R$36,MATCH($A219,'Appliances References'!$N$5:$N$36,0))) ->  | D219: =IF($A219="","",INDEX('Appliances References'!$S$5:$S$36,MATCH($A219,'Appliances References'!$N$5:$N$36,0))) ->  | E219: =IF($A219="","",INDEX('Appliances References'!$T$5:$T$36,MATCH($A219,'Appliances References'!$N$5:$N$36,0))) ->  | F219: =IF($A219="","",INDEX('Appliances References'!$U$5:$U$36,MATCH($A219,'Appliances References'!$N$5:$N$36,0))) ->  | G219: =IF($A219="","",INDEX('Appliances References'!$V$5:$V$36,MATCH($A219,'Appliances References'!$N$5:$N$36,0))) ->  | H219: =IF($A219="","",INDEX('Appliances References'!$W$5:$W$36,MATCH($A219,'Appliances References'!$N$5:$N$36,0))) ->  | I219: =IF($A219="","",INDEX('Appliances References'!$Y$5:$Y$36,MATCH($A219,'Appliances References'!$N$5:$N$36,0))) ->  | J219: =IF($A219="","",INDEX('Appliances References'!$Z$5:$Z$36,MATCH($A219,'Appliances References'!$N$5:$N$36,0))) ->  | K219: =IF($A219="","",INDEX('Appliances References'!$AJ$5:$AJ$36,MATCH($A219,'Appliances References'!$N$5:$N$36,0))) ->  | O219: =IF(B219>0,0,"") -> 0
A220: =IF('Appliances Worksheet'!E238="","",'Appliances References'!$N$33) ->  | B220: =IF('Appliances Worksheet'!E238="","",'Appliances Worksheet'!E238) ->  | C220: =IF($A220="","",INDEX('Appliances References'!$R$5:$R$36,MATCH($A220,'Appliances References'!$N$5:$N$36,0))) ->  | D220: =IF($A220="","",INDEX('Appliances References'!$S$5:$S$36,MATCH($A220,'Appliances References'!$N$5:$N$36,0))) ->  | E220: =IF($A220="","",INDEX('Appliances References'!$T$5:$T$36,MATCH($A220,'Appliances References'!$N$5:$N$36,0))) ->  | F220: =IF($A220="","",INDEX('Appliances References'!$U$5:$U$36,MATCH($A220,'Appliances References'!$N$5:$N$36,0))) ->  | G220: =IF($A220="","",INDEX('Appliances References'!$V$5:$V$36,MATCH($A220,'Appliances References'!$N$5:$N$36,0))) ->  | H220: =IF($A220="","",INDEX('Appliances References'!$W$5:$W$36,MATCH($A220,'Appliances References'!$N$5:$N$36,0))) ->  | I220: =IF($A220="","",INDEX('Appliances References'!$Y$5:$Y$36,MATCH($A220,'Appliances References'!$N$5:$N$36,0))) ->  | J220: =IF($A220="","",INDEX('Appliances References'!$Z$5:$Z$36,MATCH($A220,'Appliances References'!$N$5:$N$36,0))) ->  | K220: =IF($A220="","",INDEX('Appliances References'!$AJ$5:$AJ$36,MATCH($A220,'Appliances References'!$N$5:$N$36,0))) ->  | O220: 0
A221: =IF('Appliances Worksheet'!E239="","",'Appliances References'!$N$33) ->  | B221: =IF('Appliances Worksheet'!E239="","",'Appliances Worksheet'!E239) ->  | C221: =IF($A221="","",INDEX('Appliances References'!$R$5:$R$36,MATCH($A221,'Appliances References'!$N$5:$N$36,0))) ->  | D221: =IF($A221="","",INDEX('Appliances References'!$S$5:$S$36,MATCH($A221,'Appliances References'!$N$5:$N$36,0))) ->  | E221: =IF($A221="","",INDEX('Appliances References'!$T$5:$T$36,MATCH($A221,'Appliances References'!$N$5:$N$36,0))) ->  | F221: =IF($A221="","",INDEX('Appliances References'!$U$5:$U$36,MATCH($A221,'Appliances References'!$N$5:$N$36,0))) ->  | G221: =IF($A221="","",INDEX('Appliances References'!$V$5:$V$36,MATCH($A221,'Appliances References'!$N$5:$N$36,0))) ->  | H221: =IF($A221="","",INDEX('Appliances References'!$W$5:$W$36,MATCH($A221,'Appliances References'!$N$5:$N$36,0))) ->  | I221: =IF($A221="","",INDEX('Appliances References'!$Y$5:$Y$36,MATCH($A221,'Appliances References'!$N$5:$N$36,0))) ->  | J221: =IF($A221="","",INDEX('Appliances References'!$Z$5:$Z$36,MATCH($A221,'Appliances References'!$N$5:$N$36,0))) ->  | K221: =IF($A221="","",INDEX('Appliances References'!$AJ$5:$AJ$36,MATCH($A221,'Appliances References'!$N$5:$N$36,0))) ->  | O221: 0
A228: ENERGY STAR Dishwasher
A229: Device | B229: Proposed Qty | C229: Gross kW per unit | D229: EE kWh per unit | E229: Winter kW saved | F229: BE kWh saved | G229: MMBTU EE | H229: MMBTU BE | I229: EE CO2 | J229: BE CO2 | K229: Rebate per unit | M229: $/kWh | N229: Total Rebate | O229: Bonus | P229: Total Rebate + Bonus
A230: =IF('Appliances Worksheet'!E248="","",'Appliances References'!$N$34) ->  | B230: =IF('Appliances Worksheet'!E248="","",'Appliances Worksheet'!E248) ->  | C230: =IF($A230="","",INDEX('Appliances References'!$R$5:$R$36,MATCH($A230,'Appliances References'!$N$5:$N$36,0))) ->  | D230: =IF($A230="","",INDEX('Appliances References'!$S$5:$S$36,MATCH($A230,'Appliances References'!$N$5:$N$36,0))) ->  | E230: =IF($A230="","",INDEX('Appliances References'!$T$5:$T$36,MATCH($A230,'Appliances References'!$N$5:$N$36,0))) ->  | F230: =IF($A230="","",INDEX('Appliances References'!$U$5:$U$36,MATCH($A230,'Appliances References'!$N$5:$N$36,0))) ->  | G230: =IF($A230="","",INDEX('Appliances References'!$V$5:$V$36,MATCH($A230,'Appliances References'!$N$5:$N$36,0))) ->  | H230: =IF($A230="","",INDEX('Appliances References'!$W$5:$W$36,MATCH($A230,'Appliances References'!$N$5:$N$36,0))) ->  | I230: =IF($A230="","",INDEX('Appliances References'!$Y$5:$Y$36,MATCH($A230,'Appliances References'!$N$5:$N$36,0))) ->  | J230: =IF($A230="","",INDEX('Appliances References'!$Z$5:$Z$36,MATCH($A230,'Appliances References'!$N$5:$N$36,0))) ->  | K230: =IF($A230="","",INDEX('Appliances References'!$AJ$5:$AJ$36,MATCH($A230,'Appliances References'!$N$5:$N$36,0))) ->  | M230: =IF(D230="","",K230/D230) ->  | N230: =IF(B230>0,B230*K230,"") ->  | O230: =IF(B230>0,0,"") -> 0 | P230: =IF(B230>0,N230+O230,"") -> 
A231: =IF('Appliances Worksheet'!E249="","",'Appliances References'!$N$34) ->  | B231: =IF('Appliances Worksheet'!E249="","",'Appliances Worksheet'!E249) ->  | C231: =IF($A231="","",INDEX('Appliances References'!$R$5:$R$36,MATCH($A231,'Appliances References'!$N$5:$N$36,0))) ->  | D231: =IF($A231="","",INDEX('Appliances References'!$S$5:$S$36,MATCH($A231,'Appliances References'!$N$5:$N$36,0))) ->  | E231: =IF($A231="","",INDEX('Appliances References'!$T$5:$T$36,MATCH($A231,'Appliances References'!$N$5:$N$36,0))) ->  | F231: =IF($A231="","",INDEX('Appliances References'!$U$5:$U$36,MATCH($A231,'Appliances References'!$N$5:$N$36,0))) ->  | G231: =IF($A231="","",INDEX('Appliances References'!$V$5:$V$36,MATCH($A231,'Appliances References'!$N$5:$N$36,0))) ->  | H231: =IF($A231="","",INDEX('Appliances References'!$W$5:$W$36,MATCH($A231,'Appliances References'!$N$5:$N$36,0))) ->  | I231: =IF($A231="","",INDEX('Appliances References'!$Y$5:$Y$36,MATCH($A231,'Appliances References'!$N$5:$N$36,0))) ->  | J231: =IF($A231="","",INDEX('Appliances References'!$Z$5:$Z$36,MATCH($A231,'Appliances References'!$N$5:$N$36,0))) ->  | K231: =IF($A231="","",INDEX('Appliances References'!$AJ$5:$AJ$36,MATCH($A231,'Appliances References'!$N$5:$N$36,0))) ->  | O231: =IF(B231>0,0,"") -> 0
A232: =IF('Appliances Worksheet'!E250="","",'Appliances References'!$N$34) ->  | B232: =IF('Appliances Worksheet'!E250="","",'Appliances Worksheet'!E250) ->  | C232: =IF($A232="","",INDEX('Appliances References'!$R$5:$R$36,MATCH($A232,'Appliances References'!$N$5:$N$36,0))) ->  | D232: =IF($A232="","",INDEX('Appliances References'!$S$5:$S$36,MATCH($A232,'Appliances References'!$N$5:$N$36,0))) ->  | E232: =IF($A232="","",INDEX('Appliances References'!$T$5:$T$36,MATCH($A232,'Appliances References'!$N$5:$N$36,0))) ->  | F232: =IF($A232="","",INDEX('Appliances References'!$U$5:$U$36,MATCH($A232,'Appliances References'!$N$5:$N$36,0))) ->  | G232: =IF($A232="","",INDEX('Appliances References'!$V$5:$V$36,MATCH($A232,'Appliances References'!$N$5:$N$36,0))) ->  | H232: =IF($A232="","",INDEX('Appliances References'!$W$5:$W$36,MATCH($A232,'Appliances References'!$N$5:$N$36,0))) ->  | I232: =IF($A232="","",INDEX('Appliances References'!$Y$5:$Y$36,MATCH($A232,'Appliances References'!$N$5:$N$36,0))) ->  | J232: =IF($A232="","",INDEX('Appliances References'!$Z$5:$Z$36,MATCH($A232,'Appliances References'!$N$5:$N$36,0))) ->  | K232: =IF($A232="","",INDEX('Appliances References'!$AJ$5:$AJ$36,MATCH($A232,'Appliances References'!$N$5:$N$36,0))) ->  | O232: 0
A233: =IF('Appliances Worksheet'!E251="","",'Appliances References'!$N$34) ->  | B233: =IF('Appliances Worksheet'!E251="","",'Appliances Worksheet'!E251) ->  | C233: =IF($A233="","",INDEX('Appliances References'!$R$5:$R$36,MATCH($A233,'Appliances References'!$N$5:$N$36,0))) ->  | D233: =IF($A233="","",INDEX('Appliances References'!$S$5:$S$36,MATCH($A233,'Appliances References'!$N$5:$N$36,0))) ->  | E233: =IF($A233="","",INDEX('Appliances References'!$T$5:$T$36,MATCH($A233,'Appliances References'!$N$5:$N$36,0))) ->  | F233: =IF($A233="","",INDEX('Appliances References'!$U$5:$U$36,MATCH($A233,'Appliances References'!$N$5:$N$36,0))) ->  | G233: =IF($A233="","",INDEX('Appliances References'!$V$5:$V$36,MATCH($A233,'Appliances References'!$N$5:$N$36,0))) ->  | H233: =IF($A233="","",INDEX('Appliances References'!$W$5:$W$36,MATCH($A233,'Appliances References'!$N$5:$N$36,0))) ->  | I233: =IF($A233="","",INDEX('Appliances References'!$Y$5:$Y$36,MATCH($A233,'Appliances References'!$N$5:$N$36,0))) ->  | J233: =IF($A233="","",INDEX('Appliances References'!$Z$5:$Z$36,MATCH($A233,'Appliances References'!$N$5:$N$36,0))) ->  | K233: =IF($A233="","",INDEX('Appliances References'!$AJ$5:$AJ$36,MATCH($A233,'Appliances References'!$N$5:$N$36,0))) ->  | O233: 0
A240: Most Efficient Dishwasher
A241: Device | B241: Proposed Qty | C241: Gross kW per unit | D241: EE kWh per unit | E241: Winter kW saved | F241: BE kWh saved | G241: MMBTU EE | H241: MMBTU BE | I241: EE CO2 | J241: BE CO2 | K241: Rebate per unit | M241: $/kWh | N241: Total Rebate | O241: Bonus | P241: Total Rebate + Bonus
A242: =IF('Appliances Worksheet'!E260="","",'Appliances References'!$N$10) ->  | B242: =IF('Appliances Worksheet'!E260="","",'Appliances Worksheet'!E260) ->  | C242: =IF($A242="","",INDEX('Appliances References'!$R$5:$R$36,MATCH($A242,'Appliances References'!$N$5:$N$36,0))) ->  | D242: =IF($A242="","",INDEX('Appliances References'!$S$5:$S$36,MATCH($A242,'Appliances References'!$N$5:$N$36,0))) ->  | E242: =IF($A242="","",INDEX('Appliances References'!$T$5:$T$36,MATCH($A242,'Appliances References'!$N$5:$N$36,0))) ->  | F242: =IF($A242="","",INDEX('Appliances References'!$U$5:$U$36,MATCH($A242,'Appliances References'!$N$5:$N$36,0))) ->  | G242: =IF($A242="","",INDEX('Appliances References'!$V$5:$V$36,MATCH($A242,'Appliances References'!$N$5:$N$36,0))) ->  | H242: =IF($A242="","",INDEX('Appliances References'!$W$5:$W$36,MATCH($A242,'Appliances References'!$N$5:$N$36,0))) ->  | I242: =IF($A242="","",INDEX('Appliances References'!$Y$5:$Y$36,MATCH($A242,'Appliances References'!$N$5:$N$36,0))) ->  | J242: =IF($A242="","",INDEX('Appliances References'!$Z$5:$Z$36,MATCH($A242,'Appliances References'!$N$5:$N$36,0))) ->  | K242: =IF($A242="","",INDEX('Appliances References'!$AJ$5:$AJ$36,MATCH($A242,'Appliances References'!$N$5:$N$36,0))) ->  | M242: =IF(D242="","",K242/D242) ->  | N242: =IF(B242>0,B242*K242,"") ->  | O242: =IF(B242>0,0,"") -> 0 | P242: =IF(B242>0,N242+O242,"") -> 
A243: =IF('Appliances Worksheet'!E261="","",'Appliances References'!$N$10) ->  | B243: =IF('Appliances Worksheet'!E261="","",'Appliances Worksheet'!E261) ->  | C243: =IF($A243="","",INDEX('Appliances References'!$R$5:$R$36,MATCH($A243,'Appliances References'!$N$5:$N$36,0))) ->  | D243: =IF($A243="","",INDEX('Appliances References'!$S$5:$S$36,MATCH($A243,'Appliances References'!$N$5:$N$36,0))) ->  | E243: =IF($A243="","",INDEX('Appliances References'!$T$5:$T$36,MATCH($A243,'Appliances References'!$N$5:$N$36,0))) ->  | F243: =IF($A243="","",INDEX('Appliances References'!$U$5:$U$36,MATCH($A243,'Appliances References'!$N$5:$N$36,0))) ->  | G243: =IF($A243="","",INDEX('Appliances References'!$V$5:$V$36,MATCH($A243,'Appliances References'!$N$5:$N$36,0))) ->  | H243: =IF($A243="","",INDEX('Appliances References'!$W$5:$W$36,MATCH($A243,'Appliances References'!$N$5:$N$36,0))) ->  | I243: =IF($A243="","",INDEX('Appliances References'!$Y$5:$Y$36,MATCH($A243,'Appliances References'!$N$5:$N$36,0))) ->  | J243: =IF($A243="","",INDEX('Appliances References'!$Z$5:$Z$36,MATCH($A243,'Appliances References'!$N$5:$N$36,0))) ->  | K243: =IF($A243="","",INDEX('Appliances References'!$AJ$5:$AJ$36,MATCH($A243,'Appliances References'!$N$5:$N$36,0))) ->  | O243: =IF(B243>0,0,"") -> 0
A244: =IF('Appliances Worksheet'!E262="","",'Appliances References'!$N$10) ->  | B244: =IF('Appliances Worksheet'!E262="","",'Appliances Worksheet'!E262) ->  | C244: =IF($A244="","",INDEX('Appliances References'!$R$5:$R$36,MATCH($A244,'Appliances References'!$N$5:$N$36,0))) ->  | D244: =IF($A244="","",INDEX('Appliances References'!$S$5:$S$36,MATCH($A244,'Appliances References'!$N$5:$N$36,0))) ->  | E244: =IF($A244="","",INDEX('Appliances References'!$T$5:$T$36,MATCH($A244,'Appliances References'!$N$5:$N$36,0))) ->  | F244: =IF($A244="","",INDEX('Appliances References'!$U$5:$U$36,MATCH($A244,'Appliances References'!$N$5:$N$36,0))) ->  | G244: =IF($A244="","",INDEX('Appliances References'!$V$5:$V$36,MATCH($A244,'Appliances References'!$N$5:$N$36,0))) ->  | H244: =IF($A244="","",INDEX('Appliances References'!$W$5:$W$36,MATCH($A244,'Appliances References'!$N$5:$N$36,0))) ->  | I244: =IF($A244="","",INDEX('Appliances References'!$Y$5:$Y$36,MATCH($A244,'Appliances References'!$N$5:$N$36,0))) ->  | J244: =IF($A244="","",INDEX('Appliances References'!$Z$5:$Z$36,MATCH($A244,'Appliances References'!$N$5:$N$36,0))) ->  | K244: =IF($A244="","",INDEX('Appliances References'!$AJ$5:$AJ$36,MATCH($A244,'Appliances References'!$N$5:$N$36,0))) ->  | O244: 0
A245: =IF('Appliances Worksheet'!E263="","",'Appliances References'!$N$10) ->  | B245: =IF('Appliances Worksheet'!E263="","",'Appliances Worksheet'!E263) ->  | C245: =IF($A245="","",INDEX('Appliances References'!$R$5:$R$36,MATCH($A245,'Appliances References'!$N$5:$N$36,0))) ->  | D245: =IF($A245="","",INDEX('Appliances References'!$S$5:$S$36,MATCH($A245,'Appliances References'!$N$5:$N$36,0))) ->  | E245: =IF($A245="","",INDEX('Appliances References'!$T$5:$T$36,MATCH($A245,'Appliances References'!$N$5:$N$36,0))) ->  | F245: =IF($A245="","",INDEX('Appliances References'!$U$5:$U$36,MATCH($A245,'Appliances References'!$N$5:$N$36,0))) ->  | G245: =IF($A245="","",INDEX('Appliances References'!$V$5:$V$36,MATCH($A245,'Appliances References'!$N$5:$N$36,0))) ->  | H245: =IF($A245="","",INDEX('Appliances References'!$W$5:$W$36,MATCH($A245,'Appliances References'!$N$5:$N$36,0))) ->  | I245: =IF($A245="","",INDEX('Appliances References'!$Y$5:$Y$36,MATCH($A245,'Appliances References'!$N$5:$N$36,0))) ->  | J245: =IF($A245="","",INDEX('Appliances References'!$Z$5:$Z$36,MATCH($A245,'Appliances References'!$N$5:$N$36,0))) ->  | K245: =IF($A245="","",INDEX('Appliances References'!$AJ$5:$AJ$36,MATCH($A245,'Appliances References'!$N$5:$N$36,0))) ->  | O245: 0
A252: Standard Electric Range Oven
A253: Device | B253: Proposed Qty | C253: Gross kW per unit | D253: EE kWh per unit | E253: Winter kW saved | F253: BE kWh saved | G253: MMBTU EE | H253: MMBTU BE | I253: EE CO2 | J253: BE CO2 | K253: Rebate per unit | M253: $/kWh | N253: Total Rebate | O253: Bonus | P253: Total Rebate + Bonus
A254: =IF('Appliances Worksheet'!E272="","",'Appliances References'!$N$35) ->  | B254: =IF('Appliances Worksheet'!E272="","",'Appliances Worksheet'!E272) ->  | C254: =IF($A254="","",INDEX('Appliances References'!$R$5:$R$36,MATCH($A254,'Appliances References'!$N$5:$N$36,0))) ->  | D254: =IF($A254="","",INDEX('Appliances References'!$S$5:$S$36,MATCH($A254,'Appliances References'!$N$5:$N$36,0))) ->  | E254: =IF($A254="","",INDEX('Appliances References'!$T$5:$T$36,MATCH($A254,'Appliances References'!$N$5:$N$36,0))) ->  | F254: =IF($A254="","",INDEX('Appliances References'!$U$5:$U$36,MATCH($A254,'Appliances References'!$N$5:$N$36,0))) ->  | G254: =IF($A254="","",INDEX('Appliances References'!$V$5:$V$36,MATCH($A254,'Appliances References'!$N$5:$N$36,0))) ->  | H254: =IF($A254="","",INDEX('Appliances References'!$W$5:$W$36,MATCH($A254,'Appliances References'!$N$5:$N$36,0))) ->  | I254: =IF($A254="","",INDEX('Appliances References'!$Y$5:$Y$36,MATCH($A254,'Appliances References'!$N$5:$N$36,0))) ->  | J254: =IF($A254="","",INDEX('Appliances References'!$Z$5:$Z$36,MATCH($A254,'Appliances References'!$N$5:$N$36,0))) ->  | K254: =IF($A254="","",INDEX('Appliances References'!$AJ$5:$AJ$36,MATCH($A254,'Appliances References'!$N$5:$N$36,0))) ->  | M254: =IF(D254="","",K254/D254) ->  | N254: =IF(B254>0,B254*K254,"") ->  | O254: =IF(B254>0,0,"") -> 0 | P254: =IF(B254>0,N254+O254,"") -> 
A255: =IF('Appliances Worksheet'!E273="","",'Appliances References'!$N$35) ->  | B255: =IF('Appliances Worksheet'!E273="","",'Appliances Worksheet'!E273) ->  | C255: =IF($A255="","",INDEX('Appliances References'!$R$5:$R$36,MATCH($A255,'Appliances References'!$N$5:$N$36,0))) ->  | D255: =IF($A255="","",INDEX('Appliances References'!$S$5:$S$36,MATCH($A255,'Appliances References'!$N$5:$N$36,0))) ->  | E255: =IF($A255="","",INDEX('Appliances References'!$T$5:$T$36,MATCH($A255,'Appliances References'!$N$5:$N$36,0))) ->  | F255: =IF($A255="","",INDEX('Appliances References'!$U$5:$U$36,MATCH($A255,'Appliances References'!$N$5:$N$36,0))) ->  | G255: =IF($A255="","",INDEX('Appliances References'!$V$5:$V$36,MATCH($A255,'Appliances References'!$N$5:$N$36,0))) ->  | H255: =IF($A255="","",INDEX('Appliances References'!$W$5:$W$36,MATCH($A255,'Appliances References'!$N$5:$N$36,0))) ->  | I255: =IF($A255="","",INDEX('Appliances References'!$Y$5:$Y$36,MATCH($A255,'Appliances References'!$N$5:$N$36,0))) ->  | J255: =IF($A255="","",INDEX('Appliances References'!$Z$5:$Z$36,MATCH($A255,'Appliances References'!$N$5:$N$36,0))) ->  | K255: =IF($A255="","",INDEX('Appliances References'!$AJ$5:$AJ$36,MATCH($A255,'Appliances References'!$N$5:$N$36,0))) ->  | O255: =IF(B255>0,0,"") -> 0
A256: =IF('Appliances Worksheet'!E274="","",'Appliances References'!$N$35) ->  | B256: =IF('Appliances Worksheet'!E274="","",'Appliances Worksheet'!E274) ->  | C256: =IF($A256="","",INDEX('Appliances References'!$R$5:$R$36,MATCH($A256,'Appliances References'!$N$5:$N$36,0))) ->  | D256: =IF($A256="","",INDEX('Appliances References'!$S$5:$S$36,MATCH($A256,'Appliances References'!$N$5:$N$36,0))) ->  | E256: =IF($A256="","",INDEX('Appliances References'!$T$5:$T$36,MATCH($A256,'Appliances References'!$N$5:$N$36,0))) ->  | F256: =IF($A256="","",INDEX('Appliances References'!$U$5:$U$36,MATCH($A256,'Appliances References'!$N$5:$N$36,0))) ->  | G256: =IF($A256="","",INDEX('Appliances References'!$V$5:$V$36,MATCH($A256,'Appliances References'!$N$5:$N$36,0))) ->  | H256: =IF($A256="","",INDEX('Appliances References'!$W$5:$W$36,MATCH($A256,'Appliances References'!$N$5:$N$36,0))) ->  | I256: =IF($A256="","",INDEX('Appliances References'!$Y$5:$Y$36,MATCH($A256,'Appliances References'!$N$5:$N$36,0))) ->  | J256: =IF($A256="","",INDEX('Appliances References'!$Z$5:$Z$36,MATCH($A256,'Appliances References'!$N$5:$N$36,0))) ->  | K256: =IF($A256="","",INDEX('Appliances References'!$AJ$5:$AJ$36,MATCH($A256,'Appliances References'!$N$5:$N$36,0))) ->  | O256: 0
A257: =IF('Appliances Worksheet'!E275="","",'Appliances References'!$N$35) ->  | B257: =IF('Appliances Worksheet'!E275="","",'Appliances Worksheet'!E275) ->  | C257: =IF($A257="","",INDEX('Appliances References'!$R$5:$R$36,MATCH($A257,'Appliances References'!$N$5:$N$36,0))) ->  | D257: =IF($A257="","",INDEX('Appliances References'!$S$5:$S$36,MATCH($A257,'Appliances References'!$N$5:$N$36,0))) ->  | E257: =IF($A257="","",INDEX('Appliances References'!$T$5:$T$36,MATCH($A257,'Appliances References'!$N$5:$N$36,0))) ->  | F257: =IF($A257="","",INDEX('Appliances References'!$U$5:$U$36,MATCH($A257,'Appliances References'!$N$5:$N$36,0))) ->  | G257: =IF($A257="","",INDEX('Appliances References'!$V$5:$V$36,MATCH($A257,'Appliances References'!$N$5:$N$36,0))) ->  | H257: =IF($A257="","",INDEX('Appliances References'!$W$5:$W$36,MATCH($A257,'Appliances References'!$N$5:$N$36,0))) ->  | I257: =IF($A257="","",INDEX('Appliances References'!$Y$5:$Y$36,MATCH($A257,'Appliances References'!$N$5:$N$36,0))) ->  | J257: =IF($A257="","",INDEX('Appliances References'!$Z$5:$Z$36,MATCH($A257,'Appliances References'!$N$5:$N$36,0))) ->  | K257: =IF($A257="","",INDEX('Appliances References'!$AJ$5:$AJ$36,MATCH($A257,'Appliances References'!$N$5:$N$36,0))) ->  | O257: 0
A264: Induction Cooktop Convection Oven
A265: Device | B265: Proposed Qty | C265: Gross kW per unit | D265: EE kWh per unit | E265: Winter kW saved | F265: BE kWh saved | G265: MMBTU EE | H265: MMBTU BE | I265: EE CO2 | J265: BE CO2 | K265: Rebate per unit | M265: $/kWh | N265: Total Rebate | O265: Bonus | P265: Total Rebate + Bonus
A266: =IF('Appliances Worksheet'!E284="","",'Appliances References'!$N$36) ->  | B266: =IF('Appliances Worksheet'!E284="","",'Appliances Worksheet'!E284) ->  | C266: =IF($A266="","",INDEX('Appliances References'!$R$5:$R$36,MATCH($A266,'Appliances References'!$N$5:$N$36,0))) ->  | D266: =IF($A266="","",INDEX('Appliances References'!$S$5:$S$36,MATCH($A266,'Appliances References'!$N$5:$N$36,0))) ->  | E266: =IF($A266="","",INDEX('Appliances References'!$T$5:$T$36,MATCH($A266,'Appliances References'!$N$5:$N$36,0))) ->  | F266: =IF($A266="","",INDEX('Appliances References'!$U$5:$U$36,MATCH($A266,'Appliances References'!$N$5:$N$36,0))) ->  | G266: =IF($A266="","",INDEX('Appliances References'!$V$5:$V$36,MATCH($A266,'Appliances References'!$N$5:$N$36,0))) ->  | H266: =IF($A266="","",INDEX('Appliances References'!$W$5:$W$36,MATCH($A266,'Appliances References'!$N$5:$N$36,0))) ->  | I266: =IF($A266="","",INDEX('Appliances References'!$Y$5:$Y$36,MATCH($A266,'Appliances References'!$N$5:$N$36,0))) ->  | J266: =IF($A266="","",INDEX('Appliances References'!$Z$5:$Z$36,MATCH($A266,'Appliances References'!$N$5:$N$36,0))) ->  | K266: =IF($A266="","",INDEX('Appliances References'!$AJ$5:$AJ$36,MATCH($A266,'Appliances References'!$N$5:$N$36,0))) ->  | M266: =IF(D266="","",K266/D266) ->  | N266: =IF(B266>0,B266*K266,"") ->  | O266: =IF(B266>0,0,"") -> 0 | P266: =IF(B266>0,N266+O266,"") -> 
A267: =IF('Appliances Worksheet'!E285="","",'Appliances References'!$N$36) ->  | B267: =IF('Appliances Worksheet'!E285="","",'Appliances Worksheet'!E285) ->  | C267: =IF($A267="","",INDEX('Appliances References'!$R$5:$R$36,MATCH($A267,'Appliances References'!$N$5:$N$36,0))) ->  | D267: =IF($A267="","",INDEX('Appliances References'!$S$5:$S$36,MATCH($A267,'Appliances References'!$N$5:$N$36,0))) ->  | E267: =IF($A267="","",INDEX('Appliances References'!$T$5:$T$36,MATCH($A267,'Appliances References'!$N$5:$N$36,0))) ->  | F267: =IF($A267="","",INDEX('Appliances References'!$U$5:$U$36,MATCH($A267,'Appliances References'!$N$5:$N$36,0))) ->  | G267: =IF($A267="","",INDEX('Appliances References'!$V$5:$V$36,MATCH($A267,'Appliances References'!$N$5:$N$36,0))) ->  | H267: =IF($A267="","",INDEX('Appliances References'!$W$5:$W$36,MATCH($A267,'Appliances References'!$N$5:$N$36,0))) ->  | I267: =IF($A267="","",INDEX('Appliances References'!$Y$5:$Y$36,MATCH($A267,'Appliances References'!$N$5:$N$36,0))) ->  | J267: =IF($A267="","",INDEX('Appliances References'!$Z$5:$Z$36,MATCH($A267,'Appliances References'!$N$5:$N$36,0))) ->  | K267: =IF($A267="","",INDEX('Appliances References'!$AJ$5:$AJ$36,MATCH($A267,'Appliances References'!$N$5:$N$36,0))) ->  | O267: =IF(B267>0,0,"") -> 0
A268: =IF('Appliances Worksheet'!E286="","",'Appliances References'!$N$36) ->  | B268: =IF('Appliances Worksheet'!E286="","",'Appliances Worksheet'!E286) ->  | C268: =IF($A268="","",INDEX('Appliances References'!$R$5:$R$36,MATCH($A268,'Appliances References'!$N$5:$N$36,0))) ->  | D268: =IF($A268="","",INDEX('Appliances References'!$S$5:$S$36,MATCH($A268,'Appliances References'!$N$5:$N$36,0))) ->  | E268: =IF($A268="","",INDEX('Appliances References'!$T$5:$T$36,MATCH($A268,'Appliances References'!$N$5:$N$36,0))) ->  | F268: =IF($A268="","",INDEX('Appliances References'!$U$5:$U$36,MATCH($A268,'Appliances References'!$N$5:$N$36,0))) ->  | G268: =IF($A268="","",INDEX('Appliances References'!$V$5:$V$36,MATCH($A268,'Appliances References'!$N$5:$N$36,0))) ->  | H268: =IF($A268="","",INDEX('Appliances References'!$W$5:$W$36,MATCH($A268,'Appliances References'!$N$5:$N$36,0))) ->  | I268: =IF($A268="","",INDEX('Appliances References'!$Y$5:$Y$36,MATCH($A268,'Appliances References'!$N$5:$N$36,0))) ->  | J268: =IF($A268="","",INDEX('Appliances References'!$Z$5:$Z$36,MATCH($A268,'Appliances References'!$N$5:$N$36,0))) ->  | K268: =IF($A268="","",INDEX('Appliances References'!$AJ$5:$AJ$36,MATCH($A268,'Appliances References'!$N$5:$N$36,0))) ->  | O268: 0
A269: =IF('Appliances Worksheet'!E287="","",'Appliances References'!$N$36) ->  | B269: =IF('Appliances Worksheet'!E291="","",'Appliances Worksheet'!E291) ->  | C269: =IF($A269="","",INDEX('Appliances References'!$R$5:$R$36,MATCH($A269,'Appliances References'!$N$5:$N$36,0))) ->  | D269: =IF($A269="","",INDEX('Appliances References'!$S$5:$S$36,MATCH($A269,'Appliances References'!$N$5:$N$36,0))) ->  | E269: =IF($A269="","",INDEX('Appliances References'!$T$5:$T$36,MATCH($A269,'Appliances References'!$N$5:$N$36,0))) ->  | F269: =IF($A269="","",INDEX('Appliances References'!$U$5:$U$36,MATCH($A269,'Appliances References'!$N$5:$N$36,0))) ->  | G269: =IF($A269="","",INDEX('Appliances References'!$V$5:$V$36,MATCH($A269,'Appliances References'!$N$5:$N$36,0))) ->  | H269: =IF($A269="","",INDEX('Appliances References'!$W$5:$W$36,MATCH($A269,'Appliances References'!$N$5:$N$36,0))) ->  | I269: =IF($A269="","",INDEX('Appliances References'!$Y$5:$Y$36,MATCH($A269,'Appliances References'!$N$5:$N$36,0))) ->  | J269: =IF($A269="","",INDEX('Appliances References'!$Z$5:$Z$36,MATCH($A269,'Appliances References'!$N$5:$N$36,0))) ->  | K269: =IF($A269="","",INDEX('Appliances References'!$AJ$5:$AJ$36,MATCH($A269,'Appliances References'!$N$5:$N$36,0))) ->  | O269: 0
A276: Propane Stove
A277: Device | B277: Proposed Qty | C277: Gross kW per unit | D277: EE kWh per unit | E277: Winter kW saved | F277: BE kWh saved | G277: MMBTU EE | H277: MMBTU BE | I277: EE CO2 | J277: BE CO2 | K277: Rebate per unit | M277: $/kWh | N277: Total Rebate | O277: Bonus | P277: Total Rebate + Bonus
A278: =IF('Appliances Worksheet'!E296="","",'Appliances References'!$N$37) ->  | B278: =IF('Appliances Worksheet'!E300="","",'Appliances Worksheet'!E300) ->  | C278: =IF($A278="","",INDEX('Appliances References'!$R$5:$R$37,MATCH($A278,'Appliances References'!$N$5:$N$37,0))) ->  | D278: =IF($A278="","",INDEX('Appliances References'!$S$5:$S$37,MATCH($A278,'Appliances References'!$N$5:$N$37,0))) ->  | E278: =IF($A278="","",INDEX('Appliances References'!$T$5:$T$37,MATCH($A278,'Appliances References'!$N$5:$N$37,0))) ->  | F278: =IF($A278="","",INDEX('Appliances References'!$U$5:$U$37,MATCH($A278,'Appliances References'!$N$5:$N$37,0))) ->  | G278: =IF($A278="","",INDEX('Appliances References'!$V$5:$V$37,MATCH($A278,'Appliances References'!$N$5:$N$37,0))) ->  | H278: =IF($A278="","",INDEX('Appliances References'!$W$5:$W$37,MATCH($A278,'Appliances References'!$N$5:$N$37,0))) ->  | I278: =IF($A278="","",INDEX('Appliances References'!$Y$5:$Y$37,MATCH($A278,'Appliances References'!$N$5:$N$37,0))) ->  | J278: =IF($A278="","",INDEX('Appliances References'!$Z$5:$Z$37,MATCH($A278,'Appliances References'!$N$5:$N$37,0))) ->  | K278: =IF($A278="","",INDEX('Appliances References'!$AJ$5:$AJ$37,MATCH($A278,'Appliances References'!$N$5:$N$37,0))) ->  | M278: =IF(D278="","",K278/D278) ->  | N278: =IF(B278>0,B278*K278,"") ->  | O278: =IF(B278>0,0,"") -> 0 | P278: =IF(B278>0,N278+O278,"") -> 
A279: =IF('Appliances Worksheet'!E297="","",'Appliances References'!$N$37) ->  | B279: =IF('Appliances Worksheet'!E301="","",'Appliances Worksheet'!E301) ->  | C279: =IF($A279="","",INDEX('Appliances References'!$R$5:$R$37,MATCH($A279,'Appliances References'!$N$5:$N$37,0))) ->  | D279: =IF($A279="","",INDEX('Appliances References'!$S$5:$S$37,MATCH($A279,'Appliances References'!$N$5:$N$37,0))) ->  | E279: =IF($A279="","",INDEX('Appliances References'!$T$5:$T$37,MATCH($A279,'Appliances References'!$N$5:$N$37,0))) ->  | F279: =IF($A279="","",INDEX('Appliances References'!$U$5:$U$37,MATCH($A279,'Appliances References'!$N$5:$N$37,0))) ->  | G279: =IF($A279="","",INDEX('Appliances References'!$V$5:$V$37,MATCH($A279,'Appliances References'!$N$5:$N$37,0))) ->  | H279: =IF($A279="","",INDEX('Appliances References'!$W$5:$W$37,MATCH($A279,'Appliances References'!$N$5:$N$37,0))) ->  | I279: =IF($A279="","",INDEX('Appliances References'!$Y$5:$Y$37,MATCH($A279,'Appliances References'!$N$5:$N$37,0))) ->  | J279: =IF($A279="","",INDEX('Appliances References'!$Z$5:$Z$37,MATCH($A279,'Appliances References'!$N$5:$N$37,0))) ->  | K279: =IF($A279="","",INDEX('Appliances References'!$AJ$5:$AJ$37,MATCH($A279,'Appliances References'!$N$5:$N$37,0))) ->  | O279: =IF(B279>0,0,"") -> 0
A280: =IF('Appliances Worksheet'!E298="","",'Appliances References'!$N$37) ->  | B280: =IF('Appliances Worksheet'!E302="","",'Appliances Worksheet'!E302) ->  | C280: =IF($A280="","",INDEX('Appliances References'!$R$5:$R$37,MATCH($A280,'Appliances References'!$N$5:$N$37,0))) ->  | D280: =IF($A280="","",INDEX('Appliances References'!$S$5:$S$37,MATCH($A280,'Appliances References'!$N$5:$N$37,0))) ->  | E280: =IF($A280="","",INDEX('Appliances References'!$T$5:$T$37,MATCH($A280,'Appliances References'!$N$5:$N$37,0))) ->  | F280: =IF($A280="","",INDEX('Appliances References'!$U$5:$U$37,MATCH($A280,'Appliances References'!$N$5:$N$37,0))) ->  | G280: =IF($A280="","",INDEX('Appliances References'!$V$5:$V$37,MATCH($A280,'Appliances References'!$N$5:$N$37,0))) ->  | H280: =IF($A280="","",INDEX('Appliances References'!$W$5:$W$37,MATCH($A280,'Appliances References'!$N$5:$N$37,0))) ->  | I280: =IF($A280="","",INDEX('Appliances References'!$Y$5:$Y$37,MATCH($A280,'Appliances References'!$N$5:$N$37,0))) ->  | J280: =IF($A280="","",INDEX('Appliances References'!$Z$5:$Z$37,MATCH($A280,'Appliances References'!$N$5:$N$37,0))) ->  | K280: =IF($A280="","",INDEX('Appliances References'!$AJ$5:$AJ$37,MATCH($A280,'Appliances References'!$N$5:$N$37,0))) ->  | O280: 0
A281: =IF('Appliances Worksheet'!E299="","",'Appliances References'!$N$37) ->  | B281: =IF('Appliances Worksheet'!E303="","",'Appliances Worksheet'!E303) ->  | C281: =IF($A281="","",INDEX('Appliances References'!$R$5:$R$37,MATCH($A281,'Appliances References'!$N$5:$N$37,0))) ->  | D281: =IF($A281="","",INDEX('Appliances References'!$S$5:$S$37,MATCH($A281,'Appliances References'!$N$5:$N$37,0))) ->  | E281: =IF($A281="","",INDEX('Appliances References'!$T$5:$T$37,MATCH($A281,'Appliances References'!$N$5:$N$37,0))) ->  | F281: =IF($A281="","",INDEX('Appliances References'!$U$5:$U$37,MATCH($A281,'Appliances References'!$N$5:$N$37,0))) ->  | G281: =IF($A281="","",INDEX('Appliances References'!$V$5:$V$37,MATCH($A281,'Appliances References'!$N$5:$N$37,0))) ->  | H281: =IF($A281="","",INDEX('Appliances References'!$W$5:$W$37,MATCH($A281,'Appliances References'!$N$5:$N$37,0))) ->  | I281: =IF($A281="","",INDEX('Appliances References'!$Y$5:$Y$37,MATCH($A281,'Appliances References'!$N$5:$N$37,0))) ->  | J281: =IF($A281="","",INDEX('Appliances References'!$Z$5:$Z$37,MATCH($A281,'Appliances References'!$N$5:$N$37,0))) ->  | K281: =IF($A281="","",INDEX('Appliances References'!$AJ$5:$AJ$37,MATCH($A281,'Appliances References'!$N$5:$N$37,0))) ->  | O281: 0
A288: ENERGY STAR Standard Bulbs
A289: Device | B289: Proposed Qty | C289: Gross kW per unit | D289: EE kWh per unit | E289: Winter kW saved | F289: BE kWh saved | G289: MMBTU EE | H289: MMBTU BE | I289: EE CO2 | J289: BE CO2 | K289: Rebate per unit | M289: $/kWh | N289: Total Rebate | O289: Bonus | P289: Total Rebate + Bonus
A290: =IF('Appliances Worksheet'!E308="","",'Appliances References'!$N$18) ->  | B290: =IF('Appliances Worksheet'!E308="","",'Appliances Worksheet'!E308) ->  | C290: =IF($A290="","",INDEX('Appliances References'!$R$5:$R$36,MATCH($A290,'Appliances References'!$N$5:$N$36,0))) ->  | D290: =IF($A290="","",INDEX('Appliances References'!$S$5:$S$36,MATCH($A290,'Appliances References'!$N$5:$N$36,0))) ->  | E290: =IF($A290="","",INDEX('Appliances References'!$T$5:$T$36,MATCH($A290,'Appliances References'!$N$5:$N$36,0))) ->  | F290: =IF($A290="","",INDEX('Appliances References'!$U$5:$U$36,MATCH($A290,'Appliances References'!$N$5:$N$36,0))) ->  | G290: =IF($A290="","",INDEX('Appliances References'!$V$5:$V$36,MATCH($A290,'Appliances References'!$N$5:$N$36,0))) ->  | H290: =IF($A290="","",INDEX('Appliances References'!$W$5:$W$36,MATCH($A290,'Appliances References'!$N$5:$N$36,0))) ->  | I290: =IF($A290="","",INDEX('Appliances References'!$Y$5:$Y$36,MATCH($A290,'Appliances References'!$N$5:$N$36,0))) ->  | J290: =IF($A290="","",INDEX('Appliances References'!$Z$5:$Z$36,MATCH($A290,'Appliances References'!$N$5:$N$36,0))) ->  | K290: =IF($A290="","",INDEX('Appliances References'!$AJ$5:$AJ$36,MATCH($A290,'Appliances References'!$N$5:$N$36,0))) ->  | M290: =IF(D290="","",K290/D290) ->  | N290: =IF(B290>0,B290*K290,"") ->  | O290: =IF(B290>0,0,"") -> 0 | P290: =IF(B290>0,N290+O290,"") -> 
A291: =IF('Appliances Worksheet'!E309="","",'Appliances References'!$N$18) ->  | B291: =IF('Appliances Worksheet'!E309="","",'Appliances Worksheet'!E309) ->  | C291: =IF($A291="","",INDEX('Appliances References'!$R$5:$R$36,MATCH($A291,'Appliances References'!$N$5:$N$36,0))) ->  | D291: =IF($A291="","",INDEX('Appliances References'!$S$5:$S$36,MATCH($A291,'Appliances References'!$N$5:$N$36,0))) ->  | E291: =IF($A291="","",INDEX('Appliances References'!$T$5:$T$36,MATCH($A291,'Appliances References'!$N$5:$N$36,0))) ->  | F291: =IF($A291="","",INDEX('Appliances References'!$U$5:$U$36,MATCH($A291,'Appliances References'!$N$5:$N$36,0))) ->  | G291: =IF($A291="","",INDEX('Appliances References'!$V$5:$V$36,MATCH($A291,'Appliances References'!$N$5:$N$36,0))) ->  | H291: =IF($A291="","",INDEX('Appliances References'!$W$5:$W$36,MATCH($A291,'Appliances References'!$N$5:$N$36,0))) ->  | I291: =IF($A291="","",INDEX('Appliances References'!$Y$5:$Y$36,MATCH($A291,'Appliances References'!$N$5:$N$36,0))) ->  | J291: =IF($A291="","",INDEX('Appliances References'!$Z$5:$Z$36,MATCH($A291,'Appliances References'!$N$5:$N$36,0))) ->  | K291: =IF($A291="","",INDEX('Appliances References'!$AJ$5:$AJ$36,MATCH($A291,'Appliances References'!$N$5:$N$36,0))) ->  | O291: =IF(B291>0,0,"") -> 0
A292: =IF('Appliances Worksheet'!E310="","",'Appliances References'!$N$18) ->  | B292: =IF('Appliances Worksheet'!E310="","",'Appliances Worksheet'!E310) ->  | C292: =IF($A292="","",INDEX('Appliances References'!$R$5:$R$36,MATCH($A292,'Appliances References'!$N$5:$N$36,0))) ->  | D292: =IF($A292="","",INDEX('Appliances References'!$S$5:$S$36,MATCH($A292,'Appliances References'!$N$5:$N$36,0))) ->  | E292: =IF($A292="","",INDEX('Appliances References'!$T$5:$T$36,MATCH($A292,'Appliances References'!$N$5:$N$36,0))) ->  | F292: =IF($A292="","",INDEX('Appliances References'!$U$5:$U$36,MATCH($A292,'Appliances References'!$N$5:$N$36,0))) ->  | G292: =IF($A292="","",INDEX('Appliances References'!$V$5:$V$36,MATCH($A292,'Appliances References'!$N$5:$N$36,0))) ->  | H292: =IF($A292="","",INDEX('Appliances References'!$W$5:$W$36,MATCH($A292,'Appliances References'!$N$5:$N$36,0))) ->  | I292: =IF($A292="","",INDEX('Appliances References'!$Y$5:$Y$36,MATCH($A292,'Appliances References'!$N$5:$N$36,0))) ->  | J292: =IF($A292="","",INDEX('Appliances References'!$Z$5:$Z$36,MATCH($A292,'Appliances References'!$N$5:$N$36,0))) ->  | K292: =IF($A292="","",INDEX('Appliances References'!$AJ$5:$AJ$36,MATCH($A292,'Appliances References'!$N$5:$N$36,0))) ->  | O292: 0
A293: =IF('Appliances Worksheet'!E311="","",'Appliances References'!$N$18) ->  | B293: =IF('Appliances Worksheet'!E311="","",'Appliances Worksheet'!E311) ->  | C293: =IF($A293="","",INDEX('Appliances References'!$R$5:$R$36,MATCH($A293,'Appliances References'!$N$5:$N$36,0))) ->  | D293: =IF($A293="","",INDEX('Appliances References'!$S$5:$S$36,MATCH($A293,'Appliances References'!$N$5:$N$36,0))) ->  | E293: =IF($A293="","",INDEX('Appliances References'!$T$5:$T$36,MATCH($A293,'Appliances References'!$N$5:$N$36,0))) ->  | F293: =IF($A293="","",INDEX('Appliances References'!$U$5:$U$36,MATCH($A293,'Appliances References'!$N$5:$N$36,0))) ->  | G293: =IF($A293="","",INDEX('Appliances References'!$V$5:$V$36,MATCH($A293,'Appliances References'!$N$5:$N$36,0))) ->  | H293: =IF($A293="","",INDEX('Appliances References'!$W$5:$W$36,MATCH($A293,'Appliances References'!$N$5:$N$36,0))) ->  | I293: =IF($A293="","",INDEX('Appliances References'!$Y$5:$Y$36,MATCH($A293,'Appliances References'!$N$5:$N$36,0))) ->  | J293: =IF($A293="","",INDEX('Appliances References'!$Z$5:$Z$36,MATCH($A293,'Appliances References'!$N$5:$N$36,0))) ->  | K293: =IF($A293="","",INDEX('Appliances References'!$AJ$5:$AJ$36,MATCH($A293,'Appliances References'!$N$5:$N$36,0))) ->  | O293: 0
A301: Device | B301: Proposed Qty | C301: Gross kW per unit | D301: EE kWh per unit | E301: Winter kW saved | F301: BE kWh saved | G301: MMBTU EE | H301: MMBTU BE | I301: EE CO2 | J301: BE CO2 | K301: Rebate per unit | M301: $/kWh | N301: Total Rebate | O301: Bonus | P301: Total Rebate + Bonus
A302: =IF('Appliances Worksheet'!E320="","",'Appliances References'!$N$17) ->  | B302: =IF('Appliances Worksheet'!E320="","",'Appliances Worksheet'!E320) ->  | C302: =IF($A302="","",INDEX('Appliances References'!$R$5:$R$36,MATCH($A302,'Appliances References'!$N$5:$N$36,0))) ->  | D302: =IF($A302="","",INDEX('Appliances References'!$S$5:$S$36,MATCH($A302,'Appliances References'!$N$5:$N$36,0))) ->  | E302: =IF($A302="","",INDEX('Appliances References'!$T$5:$T$36,MATCH($A302,'Appliances References'!$N$5:$N$36,0))) ->  | F302: =IF($A302="","",INDEX('Appliances References'!$U$5:$U$36,MATCH($A302,'Appliances References'!$N$5:$N$36,0))) ->  | G302: =IF($A302="","",INDEX('Appliances References'!$V$5:$V$36,MATCH($A302,'Appliances References'!$N$5:$N$36,0))) ->  | H302: =IF($A302="","",INDEX('Appliances References'!$W$5:$W$36,MATCH($A302,'Appliances References'!$N$5:$N$36,0))) ->  | I302: =IF($A302="","",INDEX('Appliances References'!$Y$5:$Y$36,MATCH($A302,'Appliances References'!$N$5:$N$36,0))) ->  | J302: =IF($A302="","",INDEX('Appliances References'!$Z$5:$Z$36,MATCH($A302,'Appliances References'!$N$5:$N$36,0))) ->  | K302: =IF($A302="","",INDEX('Appliances References'!$AJ$5:$AJ$36,MATCH($A302,'Appliances References'!$N$5:$N$36,0))) ->  | M302: =IF(D302="","",K302/D302) ->  | N302: =IF(B302>0,B302*K302,"") ->  | O302: =IF(B302>0,0,"") -> 0 | P302: =IF(B302>0,N302+O302,"") -> 
A303: =IF('Appliances Worksheet'!E321="","",'Appliances References'!$N$17) ->  | B303: =IF('Appliances Worksheet'!E321="","",'Appliances Worksheet'!E321) ->  | C303: =IF($A303="","",INDEX('Appliances References'!$R$5:$R$36,MATCH($A303,'Appliances References'!$N$5:$N$36,0))) ->  | D303: =IF($A303="","",INDEX('Appliances References'!$S$5:$S$36,MATCH($A303,'Appliances References'!$N$5:$N$36,0))) ->  | E303: =IF($A303="","",INDEX('Appliances References'!$T$5:$T$36,MATCH($A303,'Appliances References'!$N$5:$N$36,0))) ->  | F303: =IF($A303="","",INDEX('Appliances References'!$U$5:$U$36,MATCH($A303,'Appliances References'!$N$5:$N$36,0))) ->  | G303: =IF($A303="","",INDEX('Appliances References'!$V$5:$V$36,MATCH($A303,'Appliances References'!$N$5:$N$36,0))) ->  | H303: =IF($A303="","",INDEX('Appliances References'!$W$5:$W$36,MATCH($A303,'Appliances References'!$N$5:$N$36,0))) ->  | I303: =IF($A303="","",INDEX('Appliances References'!$Y$5:$Y$36,MATCH($A303,'Appliances References'!$N$5:$N$36,0))) ->  | J303: =IF($A303="","",INDEX('Appliances References'!$Z$5:$Z$36,MATCH($A303,'Appliances References'!$N$5:$N$36,0))) ->  | K303: =IF($A303="","",INDEX('Appliances References'!$AJ$5:$AJ$36,MATCH($A303,'Appliances References'!$N$5:$N$36,0))) ->  | O303: =IF(B303>0,0,"") -> 0
A304: =IF('Appliances Worksheet'!E322="","",'Appliances References'!$N$17) ->  | B304: =IF('Appliances Worksheet'!E322="","",'Appliances Worksheet'!E322) ->  | C304: =IF($A304="","",INDEX('Appliances References'!$R$5:$R$36,MATCH($A304,'Appliances References'!$N$5:$N$36,0))) ->  | D304: =IF($A304="","",INDEX('Appliances References'!$S$5:$S$36,MATCH($A304,'Appliances References'!$N$5:$N$36,0))) ->  | E304: =IF($A304="","",INDEX('Appliances References'!$T$5:$T$36,MATCH($A304,'Appliances References'!$N$5:$N$36,0))) ->  | F304: =IF($A304="","",INDEX('Appliances References'!$U$5:$U$36,MATCH($A304,'Appliances References'!$N$5:$N$36,0))) ->  | G304: =IF($A304="","",INDEX('Appliances References'!$V$5:$V$36,MATCH($A304,'Appliances References'!$N$5:$N$36,0))) ->  | H304: =IF($A304="","",INDEX('Appliances References'!$W$5:$W$36,MATCH($A304,'Appliances References'!$N$5:$N$36,0))) ->  | I304: =IF($A304="","",INDEX('Appliances References'!$Y$5:$Y$36,MATCH($A304,'Appliances References'!$N$5:$N$36,0))) ->  | J304: =IF($A304="","",INDEX('Appliances References'!$Z$5:$Z$36,MATCH($A304,'Appliances References'!$N$5:$N$36,0))) ->  | K304: =IF($A304="","",INDEX('Appliances References'!$AJ$5:$AJ$36,MATCH($A304,'Appliances References'!$N$5:$N$36,0))) ->  | O304: 0
A305: =IF('Appliances Worksheet'!E323="","",'Appliances References'!$N$17) ->  | B305: =IF('Appliances Worksheet'!E323="","",'Appliances Worksheet'!E323) ->  | C305: =IF($A305="","",INDEX('Appliances References'!$R$5:$R$36,MATCH($A305,'Appliances References'!$N$5:$N$36,0))) ->  | D305: =IF($A305="","",INDEX('Appliances References'!$S$5:$S$36,MATCH($A305,'Appliances References'!$N$5:$N$36,0))) ->  | E305: =IF($A305="","",INDEX('Appliances References'!$T$5:$T$36,MATCH($A305,'Appliances References'!$N$5:$N$36,0))) ->  | F305: =IF($A305="","",INDEX('Appliances References'!$U$5:$U$36,MATCH($A305,'Appliances References'!$N$5:$N$36,0))) ->  | G305: =IF($A305="","",INDEX('Appliances References'!$V$5:$V$36,MATCH($A305,'Appliances References'!$N$5:$N$36,0))) ->  | H305: =IF($A305="","",INDEX('Appliances References'!$W$5:$W$36,MATCH($A305,'Appliances References'!$N$5:$N$36,0))) ->  | I305: =IF($A305="","",INDEX('Appliances References'!$Y$5:$Y$36,MATCH($A305,'Appliances References'!$N$5:$N$36,0))) ->  | J305: =IF($A305="","",INDEX('Appliances References'!$Z$5:$Z$36,MATCH($A305,'Appliances References'!$N$5:$N$36,0))) ->  | K305: =IF($A305="","",INDEX('Appliances References'!$AJ$5:$AJ$36,MATCH($A305,'Appliances References'!$N$5:$N$36,0))) ->  | O305: 0

Sheet Appliances References (hidden)
A2: Appliances
M4: Product | N4: Measure Code | O4: Product Name | P4: Product Class | Q4: EER | R4: Summer kW saved | S4: EE kWh saved | T4: Winter kW saved | U4: BE kWh saved | V4: MMBTU EE | W4: MMBTU BE | X4: Coincidence Factor | Y4: EE CO2 | Z4: BE CO2 | AA4: Free Ridership | AB4: Spillover | AC4: Line Loss kW Summer | AD4: Line Loss Energy | AE4: HVAC Interactivity Factor Demand | AF4: HVAC Interactivity Factor Energy | AG4: HVAC Interactivity Factor Fossil Fuel | AH4: Fossil Fuel MMBTU | AI4: In Service Rate | AJ4: Rebate | AK4: Incentive
B5: Heat Pump Water Heater | C5: Tankless Water Heater | M5: Heat Pump Water Heater | N5: AEH-600 | O5: Heat Pump Water Heater < 55 Gallons | P5: Heat Pump Water Heaters | R5: =C14 -> -0.04951754397 | S5: =C13 -> 265.2034165 | T5: =C18 -> -0.11968 | U5: =C17 -> 698.9771017 | V5: =C16 -> 0.9048740572 | W5: =C19 -> 10.85751196 | X5: 1 | Y5: =H37 -> 317.2363269 | Z5: =H38 -> 1037.869565 | AA5: 0 | AB5: 0 | AC5: 0.0719 | AD5: 0.0567 | AH5: =W5+U5*0.003412 -> 13.24242183 | AI5: 1 | AJ5: 1000
B6: Equipment Size | M6: Heat Pump Water Heater | N6: AEH-610 | O6: Heat Pump Water Heater > 55 Gallons | P6: Heat Pump Water Heaters | R6: =F14 -> -0.04804222017 | S6: =F13 -> 262.2086492 | T6: =F18 -> -0.11968 | U6: =F17 -> 683.0584979 | V6: =F16 -> 0.894655911 | W6: =F19 -> 7.292457237 | X6: 1 | Y6: =I37 -> 313.6539861 | Z6: =I38 -> 544.7205903 | AA6: 0 | AB6: 0 | AC6: 0.0719 | AD6: 0.0567 | AH6: =W6+U6*0.003412 -> 9.623052832 | AI6: 1 | AJ6: 1000
B7: Select… | C7: Select… | M7: Clothes Washer | N7: AEH-400 | O7: Most Efficient Clothes Washer | P7: Clothes Washers | R7: =C61 -> 0.8031627545 | S7: =C60 -> 236.9330126 | T7: =C65 -> 0.8031627545 | U7: =C64 -> 0 | V7: =C63 -> 0.8084154389 | W7: =C66 -> 0 | X7: =C80 -> 0.029 | Y7: =(S7*L62)+(C73*(C74*$L$60+C75*$L$61+C76*$L$64))+((C77*C78)*$L$60) -> 283.4192697 | Z7: 0 | AA7: 0.2 | AB7: 0.1 | AC7: 0.0719 | AD7: 0.0567 | AH7: 0 | AI7: 1 | AJ7: 50
B8: ≤ 55 Gallons | C8: < 12kW | M8: Clothes Dryer | N8: AEH-300 | O8: ENERGY STAR Clothes Dryer - Electric Resistance | P8: Clothes Dryers | R8: =C89 -> 0.07201921794 | S8: =C88 -> 20.8855732 | T8: =C93 -> 0.07201921794 | U8: =C92 -> 203.1014961 | V8: =C91 -> 0.07126157577 | W8: =C94 -> 0.1404548384 | X8: =C106 -> 0.029 | Y8: =S8*$L$62 -> 24.98332266 | Z8: =(C96*C97*C104/C99*C102*0.003412)*$L$60-C92*$L$63 -> -145.4578031 | AA8: 0.2 | AB8: 0.1 | AC8: 0.0719 | AD8: 0.0567 | AH8: 0.8334371432 | AI8: 1 | AJ8: 50
B9: > 55 Gallons | C9: ≥ 12 kW | M9: Clothes Dryer | N9: AEH-310 | O9: Most Efficient Dryer - Heat Pump | P9: Clothes Dryers | R9: =C115 -> 0.3717043087 | S9: =C114 -> 107.7942495 | T9: =C119 -> 0.3717043087 | U9: =C118 -> 77.78938736 | V9: =C117 -> 0.3677939794 | W9: =C120 -> 0.2204463369 | X9: =C132 -> 0.029 | Y9: =S9*L62 -> 128.9434813 | Z9: =(C122*C123*C130/C125*C128*0.003412)*$L$60-C118*$L$63 -> -36.21723295 | AA9: 0.2 | AB9: 0.1 | AC9: 0.0719 | AD9: 0.0567 | AH9: 0.4858637266 | AI9: 1 | AJ9: 300
M10: Dishwasher | N10: AEH-1500 | O10: Most Efficient Dishwasher | P10: Dishwashers | R10: =C141 -> 0.2292358804 | S10: =C140 -> 69 | T10: =C145 -> 0.2292358804 | U10: =C144 -> 0 | V10: =C143 -> 0.235428 | W10: =C146 -> 0 | X10: =C159 -> 0.029 | Y10: =(S10*$L$63)+((C148-C149)*C152*(C154*$L$60+C155*$L$61+C156*L64)*C157/C158*3412/1000000) -> 82.5378 | Z10: 0 | AA10: 0.2 | AB10: 0.1 | AC10: 0.0719 | AD10: 0.0567 | AH10: 0 | AI10: 1 | AJ10: 0
B11: HPWH < 55 gallons | E11: HPWH > 55 gallons | M11: Freezer | N11: AEH-1800 | O11: ENERGY STAR Freezer | P11: Freezers | R11: =C168 -> 0.004744434361 | S11: =C167 -> 40.01584 | T11: =C171 -> 0.004372146119 | U11: =C170 -> 0 | V11: =C169 -> 0.05170046528 | W11: =C172 -> 0 | X11: =C185 -> 1 | Y11: 47.86694781 | Z11: 0 | AA11: 0.2 | AB11: 0.1 | AC11: 0.0719 | AD11: 0.0567 | AH11: 0 | AI11: 1 | AJ11: 0
B12: Units/Measure | C12: 1 | E12: Units/Measure | F12: 1 | M12: Air Purifier | N12: AEH-120 | O12: ENERGY STAR Air Purifier <150 CADR | P12: Room Air Purifier | R12: =C194 -> 0.07263830729 | S12: =C193 -> 424.2077146 | T12: =C198 -> 0.07263830729 | U12: =C197 -> 0 | V12: =C196 -> 1.447396722 | W12: =C199 -> 0 | X12: =C207 -> 0.67 | Y12: =S12*L62 -> 507.4372682 | Z12: 0 | AA12: 0.3 | AB12: 0 | AC12: 0.0719 | AD12: 0.0567 | AH12: 0 | AI12: 1 | AJ12: 60
B13: Gross_EE kWh/Unit | C13: 265.2034165 | E13: Gross_EE kWh/Unit | F13: =(I31*F41)+(I33*F31)+(I34*F28) -> 262.2086492 | M13: Air Purifier | N13: AEH-125 | O13: ENERGY STAR Air Purifier >150 CADR | P13: Room Air Purifier | R13: =F194 -> 0.2179012219 | S13: =F193 -> 1272.543136 | T13: =F198 -> 0.2179012219 | U13: =F197 -> 0 | V13: =F196 -> 4.34191718 | W13: =F199 -> 0 | X13: =F207 -> 0.67 | Y13: =S13*L62 -> 1522.216099 | Z13: 0 | AA13: 0.3 | AB13: 0.15 | AC13: 0.0719 | AD13: 0.0567 | AH13: 0 | AI13: 1 | AJ13: 80
B14: Summer Peak kW/Unit | C14: -0.04951754397 | E14: Summer Peak kW/Unit | F14: =(F13-F17)/8760 -> -0.04804222017 | G14: ODC TRM | M14: Dehumidifier | N14: AEH-500 | O14: ENERGY STAR Dehumidifier | P14: Dehumidifier | R14: =C216 -> 0.06562675314 | S14: =C215 -> 110.1873185 | T14: =C220 -> 0.3522612485 | U14: =C219 -> 0 | V14: =C218 -> 0.3759591308 | W14: =C221 -> 0 | X14: =C227 -> 0.3 | Y14: =S14*$L$62 -> 131.8060704 | Z14: 0 | AA14: 0.3 | AB14: 0.15 | AC14: 0.0719 | AD14: 0.0567 | AH14: 0 | AI14: 1 | AJ14: 30
B15: therm/Unit | C15: 0 | E15: therm/Unit | F15: 0 | M15: Advanced Power Strips | N15: AEH-200 | O15: Advanced Power Strips Tier I | P15: Advanced Power Strip | R15: =D236 -> 0.008188828338 | S15: =D235 -> 60.106 | T15: =D240 -> 0.008188828338 | U15: =D239 -> 0 | V15: =D238 -> 0 | W15: =D241 -> 0 | X15: 0.8 | Y15: =S15*$L$62 -> 71.8987972 | Z15: 0 | AA15: 0 | AB15: 0 | AC15: 0.0719 | AD15: 0.0567 | AH15: 0 | AI15: 1 | AJ15: 15
B16: MMBTU/Unit_EE | C16: =(C13*[7]References!$D$12) -> 0.9048740572 | E16: MMBTU/Unit_EE | F16: =(F13*[7]References!$D$12) -> 0.894655911 | M16: Advanced Power Strips | N16: AEH-210 | O16: Advanced Power Strips Tier II | P16: Advanced Power Strip | R16: =C236 -> 0.01974403579 | S16: =C235 -> 158.9 | T16: =C240 -> 0.01974403579 | U16: =C239 -> 0 | V16: =C238 -> 0 | W16: =C241 -> 0 | X16: 0.8 | Y16: 190.07618 | Z16: 0 | AA16: 0 | AB16: 0 | AC16: 0.0719 | AD16: 0.0567 | AH16: 0 | AI16: 1 | AJ16: 25
B17: Gross_BE kWh/Unit | C17: =H30/C39*(1/C23/C27)*C42 -> 698.9771017 | E17: Gross_BE kWh/Unit | F17: =I30/F39*(1/F23/F27)*F42 -> 683.0584979 | M17: Lamps | N17: AEH-1250 | O17: Specialty Lamps | P17: LED Specialty | R17: =D271 -> 0.04620476113 | S17: =D272 -> 42.63286919 | T17: =D274 -> 0.04044888482 | U17: =D275 -> 0 | V17: =D273 -> 0.1454633497 | W17: =D276 -> 0 | X17: =D264 -> 0.23 | Y17: =S17*$K$75 -> 50.99743812 | Z17: 0 | AA17: 0.45 | AB17: 0 | AC17: 0.0719 | AD17: 0.0567 | AH17: 0 | AI17: =D268 -> 0.89 | AJ17: 0
B18: Gross_Winter kW/Unit | C18: =(0.17*C41)-(0.17*C42) -> -0.11968 | E18: Gross_Winter kW/Unit | F18: =(0.17*F41)-(0.17*F42) -> -0.11968 | M18: Lamps | N18: AEH-1200 | O18: Standard Lamps | P18: LED Standard | R18: =C271 -> 0.03730459834 | S18: =C272 -> 34.42073981 | T18: =C274 -> 0.03265744405 | U18: =C275 -> 0 | V18: =C273 -> 0.1174435642 | W18: =C276 -> 0 | X18: 0.23 | Y18: =S18*$K$75 -> 41.17408896 | Z18: 0 | AA18: 0.45 | AB18: 0 | AC18: 0.0719 | AD18: 0.0567 | AH18: 0 | AI18: 0.89 | AJ18: 0
B19: MMBTU/Unit_BE | C19: =(H30/1000000*((1/C21*C42)+((1-(1/C23))*C29*C32*(C43+C44+C45)/C40)))-(C17*[7]References!$D$12) -> 10.85751196 | E19: MMBTU/Unit_BE | F19: =(I30/1000000*((1/F21*F42)+((1-(1/F23))*F29*F32*(F43+F44+F45)/F40)))-(F17*[7]References!$D$12) -> 7.292457237 | M19: Smart Thermostat | N19: AEH-1415 | O19: Smart Thermostat Connected | P19: Smart Thermostat | R19: =D301 -> 1 | S19: =D300 -> 629.4032032 | T19: =C305 -> 0 | U19: =C304 -> 0 | V19: =D303 -> 2.147523729 | W19: =C306 -> 0 | X19: 0 | Y19: =(S19*$L$63) -> 752.8921117 | Z19: 0 | AA19: 0.1 | AB19: 0 | AC19: 0.0719 | AD19: 0.0567 | AH19: 0 | AI19: 1 | AJ19: 70
B20: Lifetime | C20: 10 | E20: Lifetime | F20: 10 | M20: Smart Thermostat | N20: AEH-1420 | O20: Smart Thermostat Learning | P20: Smart Thermostat | R20: =C301 -> 0 | S20: =C300 -> 716.4661297 | T20: =D305 -> 0 | U20: =D304 -> 0 | V20: =C303 -> 2.444582435 | W20: =D306 -> 0 | X20: 0 | Y20: =(S20*$L$63) -> 857.0367844 | Z20: 0 | AA20: 0.1 | AB20: 0 | AC20: 0.0719 | AD20: 0.0567 | AH20: 0 | AI20: 1 | AJ20: 100
B21: UEFbase: Baseline Uniform Energy Factor | C21: 0.5723016393 | E21: UEFbase: Baseline Uniform Energy Factor | F21: 0.7875525424 | G21: UEFbase = 0.9307 - (0.0002 * Volume) for <= 50 gallons | M21: Tankless Water Heater | N21: AEH-650 | O21: Tankless Water Heater < 12 kW | P21: Tankless Water Heater | R21: =H62 -> 0.01872772567 | S21: =H61 -> 24.44969984 | T21: =H66 -> -0.11968 | U21: =H65 -> 1960.030744 | V21: =H64 -> 0.08342237584 | W21: =H67 -> 6.372274674 | X21: 0.8 | Y21: =1.1962*H61 -> 29.24673094 | Z21: =(H30/1000000*((1/H69*(C54*L60+C55*L61+C56*L64)))-(H65*1.1962)) -> -496.4322285 | AA21: 0 | AB21: 0 | AC21: 0.0719 | AD21: 0.0567 | AH21: 13.05989957 | AI21: 1 | AJ21: 100
B22: UEFcode: Code Uniform Energy Factor | C22: 0.9217590164 | E22: UEFcode: Code Uniform Energy Factor | F22: 2.169759322 | M22: Tankless Water Heater | N22: AEH-655 | O22: Tankless Water Heater ≥ 12 kW | P22: Tankless Water Heater | R22: =I62 -> 0.01872772567 | S22: =I61 -> -203.5601989 | T22: =I66 -> -0.11968 | U22: =I65 -> 1960.030744 | V22: =I64 -> -0.6945473987 | W22: =I67 -> 3.314565575 | X22: 0.8 | Y22: =1.1962*H61 -> 29.24673094 | Z22: =(H30/1000000*((1/H69*(C54*L60+C55*L61+C56*L64)))-(H65*1.1962)) -> -496.4322285 | AA22: 0 | AB22: 0 | AC22: 0.0719 | AD22: 0.0567 | AH22: 10.00219048 | AI22: 1 | AJ22: 300
B23: UEFee: Efficient Uniform Energy Factor | C23: 3.583934426 | E23: UEFee: Efficient Uniform Energy Factor | F23: 3.667457627 | H23: =0.9307-(0.0002*C24) -> 0.9207 | M23: Electric Lawn Mower (All Sizes) | N23: AEH-1950 | O23: Electric Lawn Mower (All Sizes) | P23: Electric Lawn Mower | R23: =C360 -> 0 | S23: =C361 -> 0 | T23: =C363 -> 0 | U23: =C364 -> 25.74 | V23: =C362 -> 0 | W23: =C365 -> 0.3957859625 | X23: 0.8 | Y23: =S23*1.1962 -> 0 | Z23: =-U23*1.1962+$C$368*$L$67 -> 47.94897134 | AA23: 0.1 | AB23: 0 | AC23: 0.0719 | AD23: 0.0567 | AH23: 0.4836108425 | AI23: 1 | AJ23: 30
B24: Avg Storage Capacity - Tank Size (gallons) | C24: 50 | E24: Avg Storage Capacity - Tank Size (gallons) | F24: 80 | G24: UEFee = 2.2418 - (0.0011 * Volume) for >= 50 gallons | M24: Electric Lawn Mower 4-5aH | N24: AEH-1905 | O24: Electric Lawn Mower 4-4aH | P24: Electric Lawn Mower | R24: =D360 -> 0 | S24: =D361 -> 0 | T24: =D363 -> 0 | U24: =D364 -> 19.575906 | V24: =D362 -> 0 | W24: =D365 -> 0.4110513084 | X24: 0.8 | Y24: 0 | Z24: =-U24*1.1962+$D$368*$L$67 -> 54.3809931 | AA24: 0.1 | AB24: 0 | AC24: 0.0719 | AD24: 0.0567 | AH24: 0.4778442997 | AI24: 1 | AJ24: 30
B25: Days/Year | C25: 365 | E25: Days/Year | F25: 365 | H25: =2.2418-(0.0011*F24) -> 2.1538 | M25: Electric Lawn Mower >5aH | N25: AEH-1910 | O25: Electric Lawn Mower >5aH | P25: Electric Lawn Mower | R25: =E360 -> 0 | S25: =E361 -> 0 | T25: =E363 -> 0 | U25: =E364 -> 29.647894 | V25: =E362 -> 0 | W25: =E365 -> 0.3766856853 | X25: 0.8 | Y25: 0 | Z25: =-U25*1.1962+$E$368*$L$67 -> 42.33288105 | AA25: 0.1 | AB25: 0 | AC25: 0.0719 | AD25: 0.0567 | AH25: 0.4778442997 | AI25: 1 | AJ25: 40
B26: Gallons/Day (GPD) | C26: 46 | E26: Gallons/Day (GPD) | F26: 46 | G26: kWhCooling = ((GPD * 365 * 8.33 * (Setpoint-Inlet)/3412) * (1-(1/UEFee)) * FL * Fcool*/3.412/SEER)) | M26: Electric Weed Trimmer | N26: AEH-1920 | O26: Electric Weed Trimmer | P26: Electric Weed Trimmer | R26: =C417 -> 0 | S26: =C418 -> 0 | T26: =C420 -> 0 | U26: =C421 -> 4.725 | V26: =C419 -> 0 | W26: =C422 -> 0.1158169671 | X26: 0.8 | Y26: =S26*1.1962 -> 0 | Z26: =-U26*1.1962+C425*$L$67 -> -2.163209235 | AA26: 0.1 | AB26: 0 | AC26: 0.0719 | AD26: 0.0567 | AH26: =W26+U26*0.003412 -> 0.1319386671 | AI26: 1 | AJ26: 20
B27: FD: Derate Factor | C27: 0.8866666667 | E27: FD: Derate Factor | F27: 0.8866666667 | H27: =((C26*C25*C36*(C38-C37)/3412)*(1-(1/C23))*C29*C30/3.412/C33) -> 7.203802049 | M27: Electric Leaf Blower | N27: AEH-1930 | O27: Electric Leaf Blower | P27: Electric Leaf Blower | R27: =C390 -> 0 | S27: =C391 -> 0 | T27: =C393 -> 0 | U27: =C394 -> 10.8 | V27: =C392 -> 0 | W27: =C395 -> 0.1145226907 | X27: 0.8 | Y27: =S27*1.1962 -> 0 | Z27: =-U27*1.1962+C397*$L$67 -> 11.72591875 | AA27: 0.1 | AB27: 0 | AC27: 0.0719 | AD27: 0.0567 | AH27: =W27+U27*0.003412 -> 0.1513722907 | AI27: 1 | AJ27: 20
B28: FEH: Electric Heating Factor | C28: 1 | E28: FEH: Electric Heating Factor | F28: 1 | G28: kWhHeating = ((GPD * 365 * 8.33 * (Setpoint_Inlet)/3412) * (1-(1/UEFee)) * FL * (Fheat/3.412/HSPF)) | M28: Pool Pump - Variable Speed | N28: AEH-711 | O28: Pool Pump - Variable Speed | P28: Pool Pump | R28: =D335 -> 1.65205036 | S28: =D334 -> 2418.601727 | T28: =D339 -> 0 | U28: =D338 -> 0 | V28: =D337 -> 8.252269091 | W28: =D340 -> 0 | X28: 0.36 | Y28: =S28*1.1962 -> 2893.131385 | Z28: 0 | AA28: 0.1 | AB28: 0 | AC28: 0.0719 | AD28: 0.0567 | AH28: =W28+U28*0.003412 -> 0 | AI28: 1 | AJ28: 325
B29: FL: Location Factor | C29: 0.3333333333 | E29: FL: Location Factor | F29: 0.3333333333 | H29: =((C26*C25*C36*(C38-C37)/3412)*(1-(1/C23))*C29*C32/3.412/C34) -> 16.11964008 | M29: Heat Pump Pool Heater | N29: AEH-720 | O29: Heat Pump Pool Heater | P29: Pool Heater | R29: =H335 -> 0 | S29: =H334 -> 7304.168392 | T29: =H339 -> 0 | U29: =H338 -> 0 | V29: =H337 -> 24.92182255 | W29: =H340 -> 0 | X29: 0.8 | Y29: =S29*1.1962 -> 8737.246231 | Z29: =H347*H350*L60 -> 0 | AA29: 0.2 | AB29: 0.1 | AC29: 0.0719 | AD29: 0.0567 | AH29: =W29+U29*0.003412 -> 0 | AI29: 1 | AJ29: 1000
B30: FCool: Cooling Factor | C30: 0.51 | E30: FCool: Cooling Factor | F30: 0.51 | G30: MTC | H30: =C26*C25*C36*(C38-C37) -> 8895140.52 | I30: =F26*F25*F36*(F38-F37) -> 8895140.52 | J30: ODC TRM | M30: Solar Pool Cover | N30: AEH-750 | O30: Solar Pool Cover | P30: Pool Equipment | R30: =N335 -> 0 | S30: =N334 -> 870.1192564 | T30: =N339 -> 0 | U30: =N338 -> 0 | V30: =N337 -> 2.968846903 | W30: =N340 -> 0 | X30: 0.8 | Y30: =S30*L63 -> 1040.836655 | Z30: 0 | AA30: 0.1 | AB30: 0 | AC30: 0.0719 | AD30: 0.0567 | AJ30: 75
B31: FAC: Air Conditioning Factor | C31: 1 | E31: FAC: Air Conditioning Factor | F31: 1 | G31: kWhWHe | H31: =(H30/C39)*((1/C22)-(1/(C23*C27))) -> 2007.91035 | I31: =(I30/F39)*((1/F22)-(1/(F23*F27))) -> 399.8115329 | J31: ODC TRM | M31: Refrigerator | N31: AEH-1000 | O31: Most Efficient Refrigerator | P31: Refrigerator | R31: =C447 -> 0.007628373288 | S31: =C446 -> 47.034 | T31: =C451 -> 0.006678082192 | U31: =C450 -> 0 | V31: =C449 -> 0.160480008 | W31: =C452 -> 0 | X31: =E446 -> 1 | Y31: =S31*$K$75 -> 56.2620708 | Z31: 0 | AA31: 0.2 | AB31: 0.1 | AC31: 0.0719 | AD31: 0.0567 | AH31: =W31+U31*0.003412 -> 0 | AI31: 1 | AJ31: 0
B32: FHeat: Heating Factor | C32: 0.49 | E32: FHeat: Heating Factor | F32: 0.49 | G32: kWhWHff | H32: =(H30/C39)*((1/C21)-(1/C23/C27)) -> 3734.9234 | I32: =(I30/F39)*((1/F21)-(1/F23/F27)) -> 2508.56451 | J32: ODC TRM | M32: Refrigerator | N32: AEH-1005 | O32: ENERGY STAR Refrigerator | P32: Refrigerator | R32: =C466 -> 0.007628373288 | S32: =C465 -> 47.034 | T32: =C470 -> 0 | U32: =C469 -> 0.160480008 | V32: =C468 -> 14 | W32: =C471 -> 0 | X32: =E465 -> 1 | Y32: =S32*$K$75 -> 56.2620708 | Z32: 0 | AA32: 0.2 | AB32: 0.1 | AC32: 0.0719 | AD32: 0.0567 | AH32: 0.0005475577873 | AI32: 1 | AJ32: 0
B33: SEER | C33: 13 | E33: SEER | F33: 13 | G33: kWhC | H33: =H30/3412*(1-1/C22)*C29*C30*3.412/C33 -> -9.87359455 | I33: =I30/3412*(1-1/F22)*F29*F30*3.412/F33 -> 62.7109434 | J33: ODC TRM | M33: Clothes Washer | N33: AEH-405 | O33: ENERGY STAR Clothes Washer | P33: Clothes Washers | R33: =C480 -> 0.7896084507 | S33: =C479 -> 232.934493 | T33: =C484 -> 0.7896084507 | U33: =C483 -> 0 | V33: =C482 -> 0.79477249 | W33: =C481 -> 0 | X33: =C500 -> 0.029 | Y33: =(S33*1.1962)+(C493*(C494*$L$60+C495*$L$61+C496*$L$64))+((C497*C498)*$L$60) -> 278.6362405 | Z33: 0 | AA33: 0.2 | AB33: 0.1 | AC33: 0.0719 | AD33: 0.0567 | AH33: 0 | AI33: 1 | AJ33: 0
B34: HSPF | C34: 5.581818182 | E34: HSPF | F34: 5.581818182 | G34: kWhH | H34: =H30/3412*(1-1/C22)*C29*C32*3.412/C34 -> -22.0937207 | I34: =I30/3412*(1-1/F22)*F29*F32*3.412/F34 -> 140.3255989 | J34: ODC TRM | M34: Dishwasher | N34: AEH-1505 | O34: ENERGY STAR Dishwasher | P34: Dishwashers | R34: =C506 -> 0.122923588 | S34: =C505 -> 37 | T34: =C510 -> 0.122923588 | U34: =C509 -> 0 | V34: =C508 -> 0.126244 | W34: =C511 -> 0 | X34: =C524 -> 0.029 | Y34: =(S34*$L$63)+((C513-C514)*C517*(C519*$L$60+C520*$L$61+C521*L64)*C522/C523*3412/1000000) -> 44.2594 | Z34: 0 | AA34: 0.2 | AB34: 0.1 | AC34: 0.0719 | AD34: 0.0567 | AH34: 0 | AI34: 1 | AJ34: 0
B35: Standby Hours/Year | C35: 6570 | E35: Standby Hours/Year | F35: 6570 | M35: Standard Electric Range Oven | N35: AEH-4000 | O35: Standard Electric Range Oven | P35: Oven | R35: 0 | S35: 0 | T35: 0 | U35: 0 | V35: 0 | W35: 0 | X35: 0 | Y35: 0 | Z35: 0 | AA35: 0 | AB35: 0 | AC35: 0 | AD35: 0 | AE35: 0 | AF35: 0 | AH35: 0 | AI35: 0 | AJ35: 0
B36: Btu/gal-°F | C36: 8.33 | E36: Btu/gal-°F | F36: 8.33 | H36: <55 gal HPWH | I36: >55gal HPWH | M36: Induction Cook Top Convection Over | N36: AEH-4005 | O36: Induction Cook Top Convection Over | P36: Oven | R36: 0 | S36: 0 | T36: 0 | U36: 0 | V36: 0 | W36: 0 | X36: 0 | Y36: 0 | Z36: 0 | AA36: 0 | AB36: 0 | AC36: 0 | AD36: 0 | AE36: 0 | AF36: 0 | AH36: 0 | AI36: 0 | AJ36: 0
B37: TI: Inlet Temp (Tank-In Temperature) | C37: 61.4 | E37: TI: Inlet Temp (Tank-In Temperature) | F37: 61.4 | G37: EE CO2 | H37: =C13*L62 -> 317.2363269 | I37: =F13*L62 -> 313.6539861 | M37: Propane Stove | N37: AEH-4010 | O37: Propane Stove | P37: Oven | R37: 0 | S37: 0 | T37: 0 | U37: 0 | V37: 0 | W37: 0 | X37: 0 | Y37: 0 | Z37: 0 | AA37: 0 | AB37: 0 | AC37: 0 | AD37: 0 | AE37: 0 | AF37: 0 | AH37: =W37+U37*0.003412 -> 0 | AI37: 0 | AJ37: 0
B38: THW: Hot Water Temp (Tank Setpoint) | C38: 125 | E38: THW: Hot Water Temp (Tank Setpoint) | F38: 125 | G38: BE CO2 | H38: =(H30/1000000*((1/C21*(C54*L60+C55*L61+C56*L64))+((1-(1/C23))*C29*C32*(C43*L60+C44*L61+C45*L64)/C40)))-(C17*L62) -> 1037.869565 | I38: =(I30/1000000*((1/F21*(F54*L60+F55*L61+F56*L64))+((1-(1/F23))*F29*F32*(F43*L60+F44*L61+F45*L64)/F40)))-(F17*L62) -> 544.7205903
B39: Btu/kW | C39: 3412 | E39: Btu/kW | F39: 3412
B40: AFEff | C40: 0.8 | E40: AFEff | F40: 0.8
B41: FWH,E: Electric water heating factor | C41: 0.148 | E41: FWH,E: Electric water heating factor | F41: 0.148
B42: FWH,FF: Fossil fuel water heating factor | C42: 0.852 | E42: FWH,FF: Fossil fuel water heating factor | F42: 0.852 | G42: ODC TRM
B43: FGH: Natural gas heating factor | C43: 0 | E43: FGH: Natural gas heating factor | F43: 0 | G43: ODC TRM
B44: FOH: Fuel oil heating factor | C44: 0 | E44: FOH: Fuel oil heating factor | F44: 0 | G44: ODC TRM
B45: FPH: Propane heating factor | C45: 0 | E45: FPH: Propane heating factor | F45: 0 | G45: ODC TRM
B46: kWh Cooling | C46: 13.12227637 | E46: kWh Heating | F46: 29.38272489
B47: MTC | C47: 10993051.02 | E47: MTC | F47: 10993051.02
B48: kWhWHe | C48: 2519.522732 | E48: kWhWHe | F48: 2619.085514
B49: kWhWHff | C49: 2481.03875 | E49: kWhWHff | F49: 407.3869928
B50: kWhC | C50: 13.12227637 | E50: kWhC | F50: 12.787904
B51: kWhH | C51: 29.37272489 | E51: kWhH | F51: 28.62427033
B53: Source: 2022 Program Planning Tool | E53: Source: 2022 Program Planning Tool
B54: Gas Water Heating: | C54: =53%/101%*100% -> 0.5247524752 | F54: 0.5247524752
B55: Oil Water Heating: | C55: =35%/101%*100% -> 0.3465346535 | F55: 0.3465346535
B56: Propane Water Heating: | C56: =2%/101%*100% -> 0.0198019802 | F56: 0.0198019802
B59: ME Clothes Washers | G59: Tankless Water Heater | H59: <12kW | I59: >12kW | K59: Heating Source | L59: CO2 (tons / MMBTU)
B60: Gross_EE kWh/Unit | C60: =C68+(C69*C71)+(C70*C72) -> 236.9330126 | G60: Incremental Cost | K60: Gas | L60: =0.05306*K72 -> 116.976076
B61: Gross_Summer Peak kW/Unit | C61: =C60/C79 -> 0.8031627545 | G61: Gross_EE kWh/Unit | H61: =(H76*H75*H77*(H78/H80)*((1/H70)-(1/H71))*H81) -> 24.44969984 | I61: =(I76*I75*I77*(I78/I80)*((1/I70)-(1/I71))*I81) -> -203.5601989 | K61: Oil | L61: =0.07396*K72 -> 163.052216
B62: therm/Unit | G62: Summer Peak kW/Unit | H62: =(H73-H74)*H86/3412*H81 -> 0.01872772567 | I62: =(I73-I74)*I86/3412*I81 -> 0.01872772567 | K62: Electric Resistance | L62: =K75 -> 1.1962
B63: MMBTU/Unit_EE | C63: =(C73*(C74+C75+C76))+(C77*C78)+(C60*[7]References!$D$12) -> 0.8084154389 | G63: therm/Unit | H63: 0 | I63: 0 | K63: Electric Heat Pump | L63: =K75 -> 1.1962
B64: Gross_BE kWh/Unit | C64: 0 | G64: MMBTU/Unit_EE | H64: =(H61*[7]References!$D$12) -> 0.08342237584 | I64: =(I61*[7]References!$D$12) -> -0.6945473987 | K64: Propane | L64: =0.06146*K72 -> 135.494716
B65: Gross_Winter kW/Unit | C65: =C60/C79 -> 0.8031627545 | G65: Gross_BE kWh/Unit | H65: =H76*H75*H77*55/H80*(1/H71)*H82 -> 1960.030744 | I65: =I76*I75*I77*55/I80*(1/I71)*I82 -> 1960.030744 | K65: Wood | L65: =0.0938*K72 -> 206.79148
B66: MMBTU/Unit_BE | C66: 0 | G66: Gross_Winter kW/Unit | H66: =(0.17*H81)-(0.17*H82) -> -0.11968 | I66: =(0.17*I81)-(0.17*I82) -> -0.11968 | K66: Other | L66: =0.05306*K72 -> 116.976076
B67: Lifetime | C67: 11 | G67: MMBTU/Unit_BE | H67: =H76*H75*H77*H78/1000000*(1/H69)*H82-H65*[7]References!$D$12 -> 6.372274674 | I67: =I76*I75*I77*I78/1000000*(1/I69)*I82-I65*[7]References!$D$12 -> 3.314565575 | K67: Gasoline | L67: 162.80971
B68: kWh Svgs_Washer | C68: 9.998519615 | G68: Lifetime | H68: 20 | I68: 20
B69: kWh Svgs_Elec Wtr Ht | C69: 38.99370836 | G69: UEFbase: Baseline Uniform Energy Factor | H69: =0.6483-(0.0017*H72) -> 0.5803 | I69: 0.7577
B70: kWh Svgs_Elec Drying | C70: 187.9407846 | G70: UEFcode: Code Uniform Energy Factor | H70: =0.9307-(0.0002*H72) -> 0.9227 | I70: 2.0291
B71: Elec Wtr Htr Factor | C71: 1 | G71: UEFee: Efficient Uniform Energy Factor | H71: 0.98 | I71: 0.98 | K71: ConversionFactors
B72: Elec Dryer Factor | C72: 1 | G72: Avg Storage Capacity - Tank Size (gallons) | H72: 40 | I72: 80 | K72: 2204.6 | L72: lbs/metric ton
B73: MMBTU Svgs_FF Wtr Ht | C73: 0.18 | G73: UAbaseline: Baseline Overall Heat Loss Coefficient: | H73: 7.85 | I73: 7.85
B74: Gas Wtr Htr Factor | C74: 0 | G74: Uaee: Energy Efficient Overall Heat Loss Coefficient: | H74: 0 | I74: 0 | K74: Emission Factor (lb CO2 / kWh)
B75: Oil Wtr Htr Factor | C75: 0 | G75: Days/Year | H75: 365 | I75: 365 | K75: 1.1962
B76: Prop Wtr Htr Factor | C76: 0 | G76: Gallons/Day (GPD) | H76: 46 | I76: 46
B77: MMBTU Svgs_Gas Drying | C77: 0.7197742413 | G77: Btu/gal-°F | H77: 8.33 | I77: 8.33
B78: Gas Dryer Factor | C78: 0 | G78: TI: Inlet Temp (Tank-In Temperature) | H78: 63.6 | I78: 63.6
B79: Hours of Operation | C79: 295 | G79: THW: Hot Water Temp (Tank Setpoint) | H79: 140 | I79: 140
B80: CF: Coincidence Factor | C80: 0.029 | G80: Btu/kW | H80: 3412 | I80: 3412
B81: Source: 2022 Program Planning Tool | G81: FWH,E: Electric water heating factor | H81: 0.148 | I81: 0.148
G82: FWH,FF: Fossil fuel water heating factor | H82: 0.852 | I82: 0.852
G83: FGH: Natural gas heating factor | H83: -0.52 | I83: -0.52
G84: FOH: Fuel oil heating factor | H84: -0.39 | I84: -0.39
G85: FPH: Propane heating factor | H85: -0.01 | I85: -0.01
G86: Source: 2020 Program Planning Tool | H86: 55 | I86: 55
B87: ENERGY STAR Dryer - Electric Resistance | C87: ES Dryer - Electric Resistance | H87: 0.8 | I87: 0.8
B88: EE kWh/Unit | C88: =((1/C98)-(1/C100))*C96*C97*C101 -> 20.8855732
B89: Summer Peak kW/Unit | C89: =C88/C105 -> 0.07201921794
B90: therm/Unit
B91: MMBTU/Unit_EE | C91: =C88*[7]References!$D$12 -> 0.07126157577
B92: Gross_BE kWh/Unit | C92: =C96*C97*(1/C100-C103/C99)*C102 -> 203.1014961
B93: Gross_Winter kW/Unit | C93: =C88/C105 -> 0.07201921794
B94: MMBTU/Unit_BE | C94: =(C96*C97*C104/C99*C102-C92)*[7]References!$D$12 -> 0.1404548384
B95: Lifetime | C95: 14
B96: Loads per year | C96: 283
B97: Weighted Avg Load | C97: 8.426389892
B98: CEF_Elec_Baseline | C98: 3.729097473
B99: CEF_Gas_Baseline | C99: 3.3
B100: CEF_Efficient | C100: 3.929032491
B101: %home w/ elec dryers | C101: 0.6418283592
B102: %home w/ gas dryers | C102: 0.3558165773
B103: % elec consumed by gas dryer | C103: 0.05
B104: % gas consumed by gas dryer | C104: 0.95
B105: Annual Hours | C105: 290
B106: CF | C106: 0.029
B107: Source: 2022 Program Planning Tool
B113: Most Efficient Dryer - Heat Pump | C113: Super Efficient Dryer - Heat Pumps
B114: EE kWh/Unit | C114: =((1/C124)-(1/C126))*C122*C123*C127 -> 107.7942495
B115: Summer Peak kW/Unit | C115: =C114/C131 -> 0.3717043087
B116: therm/Unit
B117: MMBTU/Unit_EE | C117: =C114*[7]References!$D$12 -> 0.3677939794
B118: Gross_BE kWh/Unit | C118: =C122*C123*(1/C126-C129/C125)*C128 -> 77.78938736
B119: Gross_Winter kW/Unit | C119: =C114/C131 -> 0.3717043087
B120: MMBTU/Unit_BE | C120: =(C122*C123*C130/C125*C128-C118)*[7]References!$D$12 -> 0.2204463369
B121: Lifetime | C121: 14
B122: Loads per year | C122: 283
B123: Weighted Avg Load | C123: 4.912280702
B124: CEF_Elec_Baseline | C124: 3.410350877
B125: CEF_Gas_Baseline | C125: 3.3
B126: CEF_Efficient | C126: 5.8
B127: %home w/ elec dryers | C127: 0.6418283592
B128: %home w/ gas dryers | C128: 0.3558165773
B129: % elec consumed by gas dryer | C129: 0.05
B130: % gas consumed by gas dryer | C130: 0.95
B131: Annual Hours | C131: 290
B132: CF | C132: 0.029
B133: Source: 2022 Program Planning Tool
B139: Most Efficient Dishwasher | C139: ME Dishwashers
B140: Gross_EE_kWh/Unit | C140: =((C148-C149)*(1-C152))+((C148-C149)*C152*C151) -> 69
B141: Summer Peak kW/Unit | C141: =C140/C153 -> 0.2292358804
B142: therm/Unit
B143: MMBTU/Unit_EE | C143: =((C148-C149)*C152*(C154+C155+C156)*C157/C158*3412/1000000)+(C140*[7]References!$D$12) -> 0.235428
B144: Gross_BE kWh/Unit | C144: 0
B145: Gross_Winter kW/Unit | C145: =C140/C153 -> 0.2292358804
B146: MMBTU/Unit_BE | C146: 0
B147: EUL | C147: 11
B148: Conventional Unit | C148: 307
B149: Most Efficient Unit | C149: 238
B151: ElecSF | C151: 1
B152: % of Energy Used | C152: 0.56
B153: Annual Hours | C153: 301
B154: % of homes w/ Gas | C154: 0
B155: % of homes w/ Oil | C155: 0
B156: % of homes w/ Propane | C156: 0
B157: Recovery efficiency | C157: 0.98
B158: Recovery efficiency | C158: 0.75
B159: CF | C159: 0.029
B160: Source: 2022 Program Planning Tool
B166: ENERGY STAR Freezer | C166: ES Freezers
B167: Gross_EE kWh/Unit | C167: =(C175-C177)*C178*C184 -> 40.01584
B168: Gross_Summer Peak kW/Unit | C168: =((C175-C177)/C183)*C179 -> 0.004744434361
B169: MMBTU/Unit_EE | C169: =(C167*[7]References!$D$12)+(C167*(C180+C181+C182)) -> 0.05170046528
B170: Gross_BE kWh/Unit | C170: 0
B171: Gross_Winter kW/Unit | C171: =((C175-C177)/C183) -> 0.004372146119
B172: MMBTU/Unit_BE | C172: 0
B173: EUL | C173: 14
B174: Average Size (cf) | C174: 19.4
B175: kWh_Baseline | C175: 347.6
B177: kWh_Efficient | C177: 309.3
B178: HVACEnergy | C178: 1.0448
B179: HVACDemand | C179: 1.08515
B180: HVACg | C180: -0.00107
B181: HVACo | C181: -0.00102
B182: HVACp | C182: -3e-05
B183: Annual Hours | C183: 8760
B184: Occupancy Factor | C184: 1
B185: Summer CF | C185: 1
B186: Source: 2022 Program Planning Tool
B192: ENERGY STAR Air Purifier <150 CADR | E192: ENERGY STAR Air Purifier >150 CADR | H192: Air Purifier CADR
B193: Gross_EE kWh/Unit | C193: =(((8760-C206)*(C201-C202))+(C206*C205*((1/C203)-(1/C204))))/1000 -> 424.2077146 | E193: Gross_EE kWh/Unit | F193: =(((8760-F206)*(F201-F202))+(F206*F205*((1/F203)-(1/F204))))/1000 -> 1272.543136 | H193: Select…
B194: Gross_Summer Peak kW/Unit | C194: =C193/C206 -> 0.07263830729 | E194: Gross_Summer Peak kW/Unit | F194: =F193/F206 -> 0.2179012219 | H194: < 150
B195: therm/Unit | E195: therm/Unit | H195: > 150
B196: MMBTU/Unit_EE | C196: =C193*[7]References!$D$12 -> 1.447396722 | E196: MMBTU/Unit_EE | F196: =F193*[7]References!$D$12 -> 4.34191718
B197: Gross_BE kWh/Unit | C197: 0 | E197: Gross_BE kWh/Unit | F197: 0
B198: Gross_Winter kW/Unit | C198: =C193/C206 -> 0.07263830729 | E198: Gross_Winter kW/Unit | F198: =F193/F206 -> 0.2179012219
B199: MMBTU/Unit_BE | C199: 0 | E199: MMBTU/Unit_BE | F199: 0
B200: Lifetime | C200: 9 | E200: Lifetime
B201: Baseline Standby Power | C201: 1 | E201: Baseline Standby Power | F201: 1
B202: Efficient Standby Power (<150) | C202: 0.3886956522 | E202: Efficient Standby Power (>150) | F202: 0.6270866142
B203: Efficiency_Baseline Unit | C203: 1 | E203: Efficiency_Baseline Unit | F203: 1
B204: Efficiency_Efficient Unit (<150) | C204: 3.417373913 | E204: Efficiency_Efficient Unit (>150) | F204: 5.005748031
B205: Clean Air Delivery Rate (<150 CADR) | C205: 102.2546522 | E205: Clean Air Delivery Rate (>150 CADR) | F205: 272.0653543
B206: Annual Hours | C206: 5840 | E206: Annual Hours | F206: 5840
B207: CF | C207: 0.67 | E207: CF | F207: 0.67
B208: Source: 2022 Program Planning Tool | E208: Source: 2022 Program Planning Tool
B214: ENERGY STAR Dehumidifier | C214: ES Dehumidifiers
B215: EE kWh/Unit | C215: =C228*C229*(C225/24)*((1/C223)-(1/C224)) -> 110.1873185
B216: Summer Peak kW/Unit | C216: =C215/C226 -> 0.06562675314
B217: therm/Unit
B218: MMBTU/Unit_EE | C218: =C215*[7]References!$D$12 -> 0.3759591308
B219: Gross_BE kWh/Unit | C219: 0
B220: Gross_Winter kW/Unit | C220: =C215/C230 -> 0.3522612485
B221: MMBTU/Unit_BE | C221: 0
B222: Lifetime | C222: 12
B223: Conventional (L/kWh) | C223: 1.573403084
B224: Efficient (L/kWh) | C224: 1.785669118
B225: Average Annual Usage | C225: 1679
B226: Operating Hours (TRM) | C226: 1679
B227: Summer CF | C227: 0.3
B228: Average pints/day | C228: 44.0749165
B229: L/pint conversion factor | C229: 0.473
B230: Operating Hours 2018 | C230: =4.6*68 -> 312.8
B231: Source: 2022 Program Planning Tool
B234: Advanced Power Strips | C234: Tier 2 | D234: Tier 1
... 259 more rows

Sheet Appliances Inspection Form (hidden)
B1: =Development!A3&" All Electric Homes" -> 2023 All Electric Homes
B2: =Development!A1&", "&Development!A3&" version - "&Development!A2 -> All Electric Homes, 2023 version - 1.0
B4: Project ID : | C4: =IF('Customer Information'!L48="","",'Customer Information'!L48) ->  | K4: Confirmation and Screening Questions
B6: Customer Name : | C6: =IF('Customer Information'!C6="","",'Customer Information'!C6) ->  | M6: Inspector Name: | R6: Signature :
B7: Installation Address : | C7: =IF('Customer Information'!C7="","",'Customer Information'!C7) -> 
B8: City, Zip : | C8: =IF('Customer Information'!I7="","",'Customer Information'!I7) ->  | M8: Inspector Company Name: | R8: Date:
B9: Alternate Contact : | C9: =IF('Customer Information'!C10="","",'Customer Information'!C10) -> 
B10: Phone : | C10: =IF('Customer Information'!K10="","",'Customer Information'!K10) ->  | M10: Customer Name: | R10: Customer Signature:
B11: Building Type: | C11: =IF('Site Information'!C6="","",'Site Information'!C6) -> Select…
K12: Was the selected Building Type appropriate for this facility?
K14: 1. Have you or any family member traveled to a country for which the CDC has issued a Level 2 or 3 travel designation within the last 14 days?
K17: 2. Have you or any family member traveled or had contact with any Persons Under Investigation (PUIs) for COVID-19 within the last 14 days, OR with anyone with known COVID-19?
K20: 3. Do you or any family member have any symptoms of a fever or respiratory infection (e.g., cough, sore throat, fever, or shortness of breath)?
K23: IF ANY QUESTION IS RESPONDED TO WITH A YES, YOU CANNOT PROCEED AND WILL NEED TO RESCHEDULE THE APPOINTMENT
B38: Location/Designation | C38: Proposed/Installed Product Description | D38: Proposed/Installed Product Description | J38: Manufacturer | N38: Model Number | P38: Quantity | R38: Verified | U38: Notes
D39: =IF('Appliances Worksheet'!E20="",NA(),INDEX('Appliances References'!$O$5:$O$35,MATCH(RIGHT('Appliance Calculations'!A2,8),'Appliances References'!$N$5:$N$35,0))) ->  | J39: =IF('Appliances Worksheet'!L20="","",'Appliances Worksheet'!L20) ->  | N39: =IF('Appliances Worksheet'!O20="","",'Appliances Worksheet'!O20) ->  | P39: =IF('Appliances Worksheet'!E20="","",'Appliances Worksheet'!E20) -> 
D40: =IF('Appliances Worksheet'!E21="",NA(),INDEX('Appliances References'!$O$5:$O$35,MATCH(RIGHT('Appliance Calculations'!A3,8),'Appliances References'!$N$5:$N$35,0))) ->  | J40: =IF('Appliances Worksheet'!L21="","",'Appliances Worksheet'!L21) ->  | N40: =IF('Appliances Worksheet'!O21="","",'Appliances Worksheet'!O21) ->  | P40: =IF('Appliances Worksheet'!E21="","",'Appliances Worksheet'!E21) -> 
D41: =IF('Appliances Worksheet'!E22="",NA(),INDEX('Appliances References'!$O$5:$O$35,MATCH(RIGHT('Appliance Calculations'!A4,8),'Appliances References'!$N$5:$N$35,0))) ->  | J41: =IF('Appliances Worksheet'!L22="","",'Appliances Worksheet'!L22) ->  | N41: =IF('Appliances Worksheet'!O22="","",'Appliances Worksheet'!O22) ->  | P41: =IF('Appliances Worksheet'!E22="","",'Appliances Worksheet'!E22) -> 
D42: =IF('Appliances Worksheet'!E23="",NA(),INDEX('Appliances References'!$O$5:$O$35,MATCH(RIGHT('Appliance Calculations'!A5,8),'Appliances References'!$N$5:$N$35,0))) ->  | J42: =IF('Appliances Worksheet'!L23="","",'Appliances Worksheet'!L23) ->  | N42: =IF('Appliances Worksheet'!O23="","",'Appliances Worksheet'!O23) ->  | P42: =IF('Appliances Worksheet'!E23="","",'Appliances Worksheet'!E23) -> 
D43: =IF('Appliances Worksheet'!E24="",NA(),INDEX('Appliances References'!$O$5:$O$35,MATCH(RIGHT('Appliance Calculations'!A6,8),'Appliances References'!$N$5:$N$35,0))) ->  | J43: =IF('Appliances Worksheet'!J24="","",'Appliances Worksheet'!J24) ->  | N43: =IF('Appliances Worksheet'!M24="","",'Appliances Worksheet'!M24) ->  | P43: =IF('Appliances Worksheet'!E24="","",'Appliances Worksheet'!E24) -> 
D44: =IF('Appliances Worksheet'!E25="",NA(),INDEX('Appliances References'!$O$5:$O$35,MATCH(RIGHT('Appliance Calculations'!A7,8),'Appliances References'!$N$5:$N$35,0))) ->  | J44: =IF('Appliances Worksheet'!J25="","",'Appliances Worksheet'!J25) ->  | N44: =IF('Appliances Worksheet'!M25="","",'Appliances Worksheet'!M25) ->  | P44: =IF('Appliances Worksheet'!E25="","",'Appliances Worksheet'!E25) -> 
D45: =IF('Appliances Worksheet'!E26="",NA(),INDEX('Appliances References'!$O$5:$O$35,MATCH(RIGHT('Appliance Calculations'!A8,8),'Appliances References'!$N$5:$N$35,0))) ->  | J45: =IF('Appliances Worksheet'!J26="","",'Appliances Worksheet'!J26) ->  | N45: =IF('Appliances Worksheet'!M26="","",'Appliances Worksheet'!M26) ->  | P45: =IF('Appliances Worksheet'!E26="","",'Appliances Worksheet'!E26) -> 
D46: =IF('Appliances Worksheet'!E27="",NA(),INDEX('Appliances References'!$O$5:$O$35,MATCH(RIGHT('Appliance Calculations'!A9,8),'Appliances References'!$N$5:$N$35,0))) ->  | J46: =IF('Appliances Worksheet'!J27="","",'Appliances Worksheet'!J27) ->  | N46: =IF('Appliances Worksheet'!M27="","",'Appliances Worksheet'!M27) ->  | P46: =IF('Appliances Worksheet'!E27="","",'Appliances Worksheet'!E27) -> 
D47: =IF('Appliances Worksheet'!E28="",NA(),INDEX('Appliances References'!$O$5:$O$35,MATCH(RIGHT('Appliance Calculations'!A10,8),'Appliances References'!$N$5:$N$35,0))) ->  | J47: =IF('Appliances Worksheet'!J28="","",'Appliances Worksheet'!J28) ->  | N47: =IF('Appliances Worksheet'!M28="","",'Appliances Worksheet'!M28) ->  | P47: =IF('Appliances Worksheet'!E28="","",'Appliances Worksheet'!E28) -> 
D48: =IF('Appliances Worksheet'!E29="",NA(),INDEX('Appliances References'!$O$5:$O$35,MATCH(RIGHT('Appliance Calculations'!A11,8),'Appliances References'!$N$5:$N$35,0))) ->  | J48: =IF('Appliances Worksheet'!J29="","",'Appliances Worksheet'!J29) ->  | N48: =IF('Appliances Worksheet'!M29="","",'Appliances Worksheet'!M29) ->  | P48: =IF('Appliances Worksheet'!E29="","",'Appliances Worksheet'!E29) -> 
D49: =IF('Appliances Worksheet'!E30="",NA(),INDEX('Appliances References'!$O$5:$O$35,MATCH(RIGHT('Appliance Calculations'!A12,8),'Appliances References'!$N$5:$N$35,0))) ->  | J49: =IF('Appliances Worksheet'!J30="","",'Appliances Worksheet'!J30) ->  | N49: =IF('Appliances Worksheet'!M30="","",'Appliances Worksheet'!M30) ->  | P49: =IF('Appliances Worksheet'!E30="","",'Appliances Worksheet'!E30) -> 
D50: =IF('Appliances Worksheet'!E31="",NA(),INDEX('Appliances References'!$O$5:$O$35,MATCH(RIGHT('Appliance Calculations'!A13,8),'Appliances References'!$N$5:$N$35,0))) ->  | J50: =IF('Appliances Worksheet'!J31="","",'Appliances Worksheet'!J31) -> Manufacturer | N50: =IF('Appliances Worksheet'!M31="","",'Appliances Worksheet'!M31) -> Model Number | P50: =IF('Appliances Worksheet'!E31="","",'Appliances Worksheet'!E31) -> Proposed Quantity
D51: =IF('Appliances Worksheet'!E32="",NA(),INDEX('Appliances References'!$O$5:$O$35,MATCH(RIGHT('Appliance Calculations'!A14,8),'Appliances References'!$N$5:$N$35,0))) ->  | J51: =IF('Appliances Worksheet'!J32="","",'Appliances Worksheet'!J32) ->  | N51: =IF('Appliances Worksheet'!M32="","",'Appliances Worksheet'!M32) ->  | P51: =IF('Appliances Worksheet'!E32="","",'Appliances Worksheet'!E32) -> 
D52: =IF('Appliances Worksheet'!E33="",NA(),INDEX('Appliances References'!$O$5:$O$35,MATCH(RIGHT('Appliance Calculations'!A15,8),'Appliances References'!$N$5:$N$35,0))) ->  | J52: =IF('Appliances Worksheet'!J33="","",'Appliances Worksheet'!J33) ->  | N52: =IF('Appliances Worksheet'!M33="","",'Appliances Worksheet'!M33) ->  | P52: =IF('Appliances Worksheet'!E33="","",'Appliances Worksheet'!E33) -> 
D53: =IF('Appliances Worksheet'!E34="",NA(),INDEX('Appliances References'!$O$5:$O$35,MATCH(RIGHT('Appliance Calculations'!A16,8),'Appliances References'!$N$5:$N$35,0))) ->  | J53: =IF('Appliances Worksheet'!J34="","",'Appliances Worksheet'!J34) ->  | N53: =IF('Appliances Worksheet'!M34="","",'Appliances Worksheet'!M34) ->  | P53: =IF('Appliances Worksheet'!E34="","",'Appliances Worksheet'!E34) -> 
D54: =IF('Appliances Worksheet'!E35="",NA(),INDEX('Appliances References'!$O$5:$O$35,MATCH(RIGHT('Appliance Calculations'!A17,8),'Appliances References'!$N$5:$N$35,0))) ->  | J54: =IF('Appliances Worksheet'!J35="","",'Appliances Worksheet'!J35) ->  | N54: =IF('Appliances Worksheet'!M35="","",'Appliances Worksheet'!M35) ->  | P54: =IF('Appliances Worksheet'!E35="","",'Appliances Worksheet'!E35) -> 
D55: =IF('Appliances Worksheet'!E36="",NA(),INDEX('Appliances References'!$O$5:$O$35,MATCH(RIGHT('Appliance Calculations'!A18,8),'Appliances References'!$N$5:$N$35,0))) ->  | J55: =IF('Appliances Worksheet'!J36="","",'Appliances Worksheet'!J36) ->  | N55: =IF('Appliances Worksheet'!M36="","",'Appliances Worksheet'!M36) ->  | P55: =IF('Appliances Worksheet'!E36="","",'Appliances Worksheet'!E36) -> 
D56: =IF('Appliances Worksheet'!E37="",NA(),INDEX('Appliances References'!$O$5:$O$35,MATCH(RIGHT('Appliance Calculations'!A19,8),'Appliances References'!$N$5:$N$35,0))) ->  | J56: =IF('Appliances Worksheet'!J37="","",'Appliances Worksheet'!J37) ->  | N56: =IF('Appliances Worksheet'!M37="","",'Appliances Worksheet'!M37) ->  | P56: =IF('Appliances Worksheet'!E37="","",'Appliances Worksheet'!E37) -> 
D57: =IF('Appliances Worksheet'!E38="",NA(),INDEX('Appliances References'!$O$5:$O$35,MATCH(RIGHT('Appliance Calculations'!A20,8),'Appliances References'!$N$5:$N$35,0))) ->  | J57: =IF('Appliances Worksheet'!J38="","",'Appliances Worksheet'!J38) ->  | N57: =IF('Appliances Worksheet'!M38="","",'Appliances Worksheet'!M38) ->  | P57: =IF('Appliances Worksheet'!E38="","",'Appliances Worksheet'!E38) -> 
D58: =IF('Appliances Worksheet'!E39="",NA(),INDEX('Appliances References'!$O$5:$O$35,MATCH(RIGHT('Appliance Calculations'!A21,8),'Appliances References'!$N$5:$N$35,0))) ->  | J58: =IF('Appliances Worksheet'!J39="","",'Appliances Worksheet'!J39) ->  | N58: =IF('Appliances Worksheet'!M39="","",'Appliances Worksheet'!M39) ->  | P58: =IF('Appliances Worksheet'!E39="","",'Appliances Worksheet'!E39) -> 
D59: =IF('Appliances Worksheet'!E40="",NA(),INDEX('Appliances References'!$O$5:$O$35,MATCH(RIGHT('Appliance Calculations'!A22,8),'Appliances References'!$N$5:$N$35,0))) ->  | J59: =IF('Appliances Worksheet'!J40="","",'Appliances Worksheet'!J40) ->  | N59: =IF('Appliances Worksheet'!M40="","",'Appliances Worksheet'!M40) ->  | P59: =IF('Appliances Worksheet'!E40="","",'Appliances Worksheet'!E40) -> 
D60: =IF('Appliances Worksheet'!E41="",NA(),INDEX('Appliances References'!$O$5:$O$35,MATCH(RIGHT('Appliance Calculations'!A23,8),'Appliances References'!$N$5:$N$35,0))) ->  | J60: =IF('Appliances Worksheet'!J41="","",'Appliances Worksheet'!J41) ->  | N60: =IF('Appliances Worksheet'!M41="","",'Appliances Worksheet'!M41) ->  | P60: =IF('Appliances Worksheet'!E41="","",'Appliances Worksheet'!E41) -> 
D61: =IF('Appliances Worksheet'!E42="",NA(),INDEX('Appliances References'!$O$5:$O$35,MATCH(RIGHT('Appliance Calculations'!A24,8),'Appliances References'!$N$5:$N$35,0))) ->  | J61: =IF('Appliances Worksheet'!J42="","",'Appliances Worksheet'!J42) ->  | N61: =IF('Appliances Worksheet'!M42="","",'Appliances Worksheet'!M42) ->  | P61: =IF('Appliances Worksheet'!E42="","",'Appliances Worksheet'!E42) -> 
D62: =IF('Appliances Worksheet'!E43="",NA(),INDEX('Appliances References'!$O$5:$O$35,MATCH(RIGHT('Appliance Calculations'!A25,8),'Appliances References'!$N$5:$N$35,0))) ->  | J62: =IF('Appliances Worksheet'!G43="","",'Appliances Worksheet'!G43) -> Manufacturer | N62: =IF('Appliances Worksheet'!J43="","",'Appliances Worksheet'!J43) -> Qualified Model | P62: =IF('Appliances Worksheet'!E43="","",'Appliances Worksheet'!E43) -> Proposed Quantity
D63: =IF('Appliances Worksheet'!E44="",NA(),INDEX('Appliances References'!$O$5:$O$35,MATCH(RIGHT('Appliance Calculations'!A26,8),'Appliances References'!$N$5:$N$35,0))) ->  | J63: =IF('Appliances Worksheet'!G44="","",'Appliances Worksheet'!G44) ->  | N63: =IF('Appliances Worksheet'!J44="","",'Appliances Worksheet'!J44) ->  | P63: =IF('Appliances Worksheet'!E44="","",'Appliances Worksheet'!E44) -> 
D64: =IF('Appliances Worksheet'!E45="",NA(),INDEX('Appliances References'!$O$5:$O$35,MATCH(RIGHT('Appliance Calculations'!A27,8),'Appliances References'!$N$5:$N$35,0))) ->  | J64: =IF('Appliances Worksheet'!G45="","",'Appliances Worksheet'!G45) ->  | N64: =IF('Appliances Worksheet'!J45="","",'Appliances Worksheet'!J45) ->  | P64: =IF('Appliances Worksheet'!E45="","",'Appliances Worksheet'!E45) -> 
D65: =IF('Appliances Worksheet'!E46="",NA(),INDEX('Appliances References'!$O$5:$O$35,MATCH(RIGHT('Appliance Calculations'!A28,8),'Appliances References'!$N$5:$N$35,0))) ->  | J65: =IF('Appliances Worksheet'!G46="","",'Appliances Worksheet'!G46) ->  | N65: =IF('Appliances Worksheet'!J46="","",'Appliances Worksheet'!J46) ->  | P65: =IF('Appliances Worksheet'!E46="","",'Appliances Worksheet'!E46) -> 
D66: =IF('Appliances Worksheet'!E47="",NA(),INDEX('Appliances References'!$O$5:$O$35,MATCH(RIGHT('Appliance Calculations'!A29,8),'Appliances References'!$N$5:$N$35,0))) ->  | J66: =IF('Appliances Worksheet'!G47="","",'Appliances Worksheet'!G47) ->  | N66: =IF('Appliances Worksheet'!J47="","",'Appliances Worksheet'!J47) ->  | P66: =IF('Appliances Worksheet'!E47="","",'Appliances Worksheet'!E47) -> 
D67: =IF('Appliances Worksheet'!E48="",NA(),INDEX('Appliances References'!$O$5:$O$35,MATCH(RIGHT('Appliance Calculations'!A30,8),'Appliances References'!$N$5:$N$35,0))) ->  | J67: =IF('Appliances Worksheet'!G48="","",'Appliances Worksheet'!G48) ->  | N67: =IF('Appliances Worksheet'!J48="","",'Appliances Worksheet'!J48) ->  | P67: =IF('Appliances Worksheet'!E48="","",'Appliances Worksheet'!E48) -> 
D68: =IF('Appliances Worksheet'!E49="",NA(),INDEX('Appliances References'!$O$5:$O$35,MATCH(RIGHT('Appliance Calculations'!A31,8),'Appliances References'!$N$5:$N$35,0))) ->  | J68: =IF('Appliances Worksheet'!G49="","",'Appliances Worksheet'!G49) ->  | N68: =IF('Appliances Worksheet'!J49="","",'Appliances Worksheet'!J49) ->  | P68: =IF('Appliances Worksheet'!E49="","",'Appliances Worksheet'!E49) -> 
D69: =IF('Appliances Worksheet'!E50="",NA(),INDEX('Appliances References'!$O$5:$O$35,MATCH(RIGHT('Appliance Calculations'!A32,8),'Appliances References'!$N$5:$N$35,0))) ->  | J69: =IF('Appliances Worksheet'!G50="","",'Appliances Worksheet'!G50) ->  | N69: =IF('Appliances Worksheet'!J50="","",'Appliances Worksheet'!J50) ->  | P69: =IF('Appliances Worksheet'!E50="","",'Appliances Worksheet'!E50) -> 
D70: =IF('Appliances Worksheet'!E51="",NA(),INDEX('Appliances References'!$O$5:$O$35,MATCH(RIGHT('Appliance Calculations'!A33,8),'Appliances References'!$N$5:$N$35,0))) ->  | J70: =IF('Appliances Worksheet'!G51="","",'Appliances Worksheet'!G51) ->  | N70: =IF('Appliances Worksheet'!J51="","",'Appliances Worksheet'!J51) ->  | P70: =IF('Appliances Worksheet'!E51="","",'Appliances Worksheet'!E51) -> 
D71: =IF('Appliances Worksheet'!E52="",NA(),INDEX('Appliances References'!$O$5:$O$35,MATCH(RIGHT('Appliance Calculations'!A34,8),'Appliances References'!$N$5:$N$35,0))) ->  | J71: =IF('Appliances Worksheet'!G52="","",'Appliances Worksheet'!G52) ->  | N71: =IF('Appliances Worksheet'!J52="","",'Appliances Worksheet'!J52) ->  | P71: =IF('Appliances Worksheet'!E52="","",'Appliances Worksheet'!E52) -> 
D72: =IF('Appliances Worksheet'!E53="",NA(),INDEX('Appliances References'!$O$5:$O$35,MATCH(RIGHT('Appliance Calculations'!A35,8),'Appliances References'!$N$5:$N$35,0))) ->  | J72: =IF('Appliances Worksheet'!G53="","",'Appliances Worksheet'!G53) ->  | N72: =IF('Appliances Worksheet'!J53="","",'Appliances Worksheet'!J53) ->  | P72: =IF('Appliances Worksheet'!E53="","",'Appliances Worksheet'!E53) -> 
D73: =IF('Appliances Worksheet'!E54="",NA(),INDEX('Appliances References'!$O$5:$O$35,MATCH(RIGHT('Appliance Calculations'!A36,8),'Appliances References'!$N$5:$N$35,0))) ->  | J73: =IF('Appliances Worksheet'!G54="","",'Appliances Worksheet'!G54) ->  | N73: =IF('Appliances Worksheet'!J54="","",'Appliances Worksheet'!J54) ->  | P73: =IF('Appliances Worksheet'!E54="","",'Appliances Worksheet'!E54) -> 
D74: =IF('Appliances Worksheet'!E55="",NA(),INDEX('Appliances References'!$O$5:$O$35,MATCH(RIGHT('Appliance Calculations'!A37,8),'Appliances References'!$N$5:$N$35,0))) ->  | J74: =IF('Appliances Worksheet'!O55="","",'Appliances Worksheet'!O55) -> Manufacturer | N74: =IF('Appliances Worksheet'!R55="","",'Appliances Worksheet'!R55) -> Model Number | P74: =IF('Appliances Worksheet'!E55="","",'Appliances Worksheet'!E55) -> Proposed Quantity
D75: =IF('Appliances Worksheet'!E56="",NA(),INDEX('Appliances References'!$O$5:$O$35,MATCH(RIGHT('Appliance Calculations'!A38,8),'Appliances References'!$N$5:$N$35,0))) ->  | J75: =IF('Appliances Worksheet'!O56="","",'Appliances Worksheet'!O56) ->  | N75: =IF('Appliances Worksheet'!R56="","",'Appliances Worksheet'!R56) ->  | P75: =IF('Appliances Worksheet'!E56="","",'Appliances Worksheet'!E56) -> 
D76: =IF('Appliances Worksheet'!E57="",NA(),INDEX('Appliances References'!$O$5:$O$35,MATCH(RIGHT('Appliance Calculations'!A39,8),'Appliances References'!$N$5:$N$35,0))) ->  | J76: =IF('Appliances Worksheet'!O57="","",'Appliances Worksheet'!O57) ->  | N76: =IF('Appliances Worksheet'!R57="","",'Appliances Worksheet'!R57) ->  | P76: =IF('Appliances Worksheet'!E57="","",'Appliances Worksheet'!E57) -> 
D77: =IF('Appliances Worksheet'!E58="",NA(),INDEX('Appliances References'!$O$5:$O$35,MATCH(RIGHT('Appliance Calculations'!A40,8),'Appliances References'!$N$5:$N$35,0))) ->  | J77: =IF('Appliances Worksheet'!O58="","",'Appliances Worksheet'!O58) ->  | N77: =IF('Appliances Worksheet'!R58="","",'Appliances Worksheet'!R58) ->  | P77: =IF('Appliances Worksheet'!E58="","",'Appliances Worksheet'!E58) -> 
D78: =IF('Appliances Worksheet'!E59="",NA(),INDEX('Appliances References'!$O$5:$O$35,MATCH(RIGHT('Appliance Calculations'!A41,8),'Appliances References'!$N$5:$N$35,0))) ->  | J78: =IF('Appliances Worksheet'!O59="","",'Appliances Worksheet'!O59) ->  | N78: =IF('Appliances Worksheet'!R59="","",'Appliances Worksheet'!R59) ->  | P78: =IF('Appliances Worksheet'!E59="","",'Appliances Worksheet'!E59) -> 
D79: =IF('Appliances Worksheet'!E60="",NA(),INDEX('Appliances References'!$O$5:$O$35,MATCH(RIGHT('Appliance Calculations'!A42,8),'Appliances References'!$N$5:$N$35,0))) ->  | J79: =IF('Appliances Worksheet'!O60="","",'Appliances Worksheet'!O60) ->  | N79: =IF('Appliances Worksheet'!R60="","",'Appliances Worksheet'!R60) ->  | P79: =IF('Appliances Worksheet'!E60="","",'Appliances Worksheet'!E60) -> 
D80: =IF('Appliances Worksheet'!E61="",NA(),INDEX('Appliances References'!$O$5:$O$35,MATCH(RIGHT('Appliance Calculations'!A43,8),'Appliances References'!$N$5:$N$35,0))) ->  | J80: =IF('Appliances Worksheet'!O61="","",'Appliances Worksheet'!O61) ->  | N80: =IF('Appliances Worksheet'!R61="","",'Appliances Worksheet'!R61) ->  | P80: =IF('Appliances Worksheet'!E61="","",'Appliances Worksheet'!E61) -> 
D81: =IF('Appliances Worksheet'!E62="",NA(),INDEX('Appliances References'!$O$5:$O$35,MATCH(RIGHT('Appliance Calculations'!A44,8),'Appliances References'!$N$5:$N$35,0))) ->  | J81: =IF('Appliances Worksheet'!O62="","",'Appliances Worksheet'!O62) ->  | N81: =IF('Appliances Worksheet'!R62="","",'Appliances Worksheet'!R62) ->  | P81: =IF('Appliances Worksheet'!E62="","",'Appliances Worksheet'!E62) -> 
D82: =IF('Appliances Worksheet'!E63="",NA(),INDEX('Appliances References'!$O$5:$O$35,MATCH(RIGHT('Appliance Calculations'!A45,8),'Appliances References'!$N$5:$N$35,0))) ->  | J82: =IF('Appliances Worksheet'!M63="","",'Appliances Worksheet'!M63) ->  | N82: =IF('Appliances Worksheet'!P63="","",'Appliances Worksheet'!P63) ->  | P82: =IF('Appliances Worksheet'!E63="","",'Appliances Worksheet'!E63) -> 
D83: =IF('Appliances Worksheet'!E64="",NA(),INDEX('Appliances References'!$O$5:$O$35,MATCH(RIGHT('Appliance Calculations'!A46,8),'Appliances References'!$N$5:$N$35,0))) ->  | J83: =IF('Appliances Worksheet'!M64="","",'Appliances Worksheet'!M64) ->  | N83: =IF('Appliances Worksheet'!P64="","",'Appliances Worksheet'!P64) ->  | P83: =IF('Appliances Worksheet'!E64="","",'Appliances Worksheet'!E64) -> 
D84: =IF('Appliances Worksheet'!E65="",NA(),INDEX('Appliances References'!$O$5:$O$35,MATCH(RIGHT('Appliance Calculations'!A47,8),'Appliances References'!$N$5:$N$35,0))) ->  | J84: =IF('Appliances Worksheet'!M65="","",'Appliances Worksheet'!M65) ->  | N84: =IF('Appliances Worksheet'!P65="","",'Appliances Worksheet'!P65) ->  | P84: =IF('Appliances Worksheet'!E65="","",'Appliances Worksheet'!E65) -> 
D85: =IF('Appliances Worksheet'!E66="",NA(),INDEX('Appliances References'!$O$5:$O$35,MATCH(RIGHT('Appliance Calculations'!A48,8),'Appliances References'!$N$5:$N$35,0))) ->  | J85: =IF('Appliances Worksheet'!M66="","",'Appliances Worksheet'!M66) ->  | N85: =IF('Appliances Worksheet'!P66="","",'Appliances Worksheet'!P66) ->  | P85: =IF('Appliances Worksheet'!E66="","",'Appliances Worksheet'!E66) -> 
D86: =IF('Appliances Worksheet'!E67="",NA(),INDEX('Appliances References'!$O$5:$O$35,MATCH(RIGHT('Appliance Calculations'!A49,8),'Appliances References'!$N$5:$N$35,0))) ->  | J86: =IF('Appliances Worksheet'!J67="","",'Appliances Worksheet'!J67) -> Manufacturer | N86: =IF('Appliances Worksheet'!M67="","",'Appliances Worksheet'!M67) -> Model Number | P86: =IF('Appliances Worksheet'!E67="","",'Appliances Worksheet'!E67) -> Proposed Quantity
D87: =IF('Appliances Worksheet'!E68="",NA(),INDEX('Appliances References'!$O$5:$O$35,MATCH(RIGHT('Appliance Calculations'!A50,8),'Appliances References'!$N$5:$N$35,0))) ->  | J87: =IF('Appliances Worksheet'!J68="","",'Appliances Worksheet'!J68) ->  | N87: =IF('Appliances Worksheet'!M68="","",'Appliances Worksheet'!M68) ->  | P87: =IF('Appliances Worksheet'!E68="","",'Appliances Worksheet'!E68) -> 
D88: =IF('Appliances Worksheet'!E69="",NA(),INDEX('Appliances References'!$O$5:$O$35,MATCH(RIGHT('Appliance Calculations'!A51,8),'Appliances References'!$N$5:$N$35,0))) ->  | J88: =IF('Appliances Worksheet'!J69="","",'Appliances Worksheet'!J69) ->  | N88: =IF('Appliances Worksheet'!M69="","",'Appliances Worksheet'!M69) ->  | P88: =IF('Appliances Worksheet'!E69="","",'Appliances Worksheet'!E69) -> 
D89: =IF('Appliances Worksheet'!E70="",NA(),INDEX('Appliances References'!$O$5:$O$35,MATCH(RIGHT('Appliance Calculations'!A52,8),'Appliances References'!$N$5:$N$35,0))) ->  | J89: =IF('Appliances Worksheet'!J70="","",'Appliances Worksheet'!J70) ->  | N89: =IF('Appliances Worksheet'!M70="","",'Appliances Worksheet'!M70) ->  | P89: =IF('Appliances Worksheet'!E70="","",'Appliances Worksheet'!E70) -> 
D90: =IF('Appliances Worksheet'!E71="",NA(),INDEX('Appliances References'!$O$5:$O$35,MATCH(RIGHT('Appliance Calculations'!A53,8),'Appliances References'!$N$5:$N$35,0))) ->  | J90: =IF('Appliances Worksheet'!J71="","",'Appliances Worksheet'!J71) ->  | N90: =IF('Appliances Worksheet'!M71="","",'Appliances Worksheet'!M71) ->  | P90: =IF('Appliances Worksheet'!E71="","",'Appliances Worksheet'!E71) -> 
D91: =IF('Appliances Worksheet'!E72="",NA(),INDEX('Appliances References'!$O$5:$O$35,MATCH(RIGHT('Appliance Calculations'!A54,8),'Appliances References'!$N$5:$N$35,0))) ->  | J91: =IF('Appliances Worksheet'!J72="","",'Appliances Worksheet'!J72) ->  | N91: =IF('Appliances Worksheet'!M72="","",'Appliances Worksheet'!M72) ->  | P91: =IF('Appliances Worksheet'!E72="","",'Appliances Worksheet'!E72) -> 
D92: =IF('Appliances Worksheet'!E73="",NA(),INDEX('Appliances References'!$O$5:$O$35,MATCH(RIGHT('Appliance Calculations'!A55,8),'Appliances References'!$N$5:$N$35,0))) ->  | J92: =IF('Appliances Worksheet'!J73="","",'Appliances Worksheet'!J73) ->  | N92: =IF('Appliances Worksheet'!M73="","",'Appliances Worksheet'!M73) ->  | P92: =IF('Appliances Worksheet'!E73="","",'Appliances Worksheet'!E73) -> 
D93: =IF('Appliances Worksheet'!E74="",NA(),INDEX('Appliances References'!$O$5:$O$35,MATCH(RIGHT('Appliance Calculations'!A56,8),'Appliances References'!$N$5:$N$35,0))) ->  | J93: =IF('Appliances Worksheet'!J74="","",'Appliances Worksheet'!J74) ->  | N93: =IF('Appliances Worksheet'!M74="","",'Appliances Worksheet'!M74) ->  | P93: =IF('Appliances Worksheet'!E74="","",'Appliances Worksheet'!E74) -> 
D94: =IF('Appliances Worksheet'!E75="",NA(),INDEX('Appliances References'!$O$5:$O$35,MATCH(RIGHT('Appliance Calculations'!A57,8),'Appliances References'!$N$5:$N$35,0))) ->  | J94: =IF('Appliances Worksheet'!J75="","",'Appliances Worksheet'!J75) ->  | N94: =IF('Appliances Worksheet'!M75="","",'Appliances Worksheet'!M75) ->  | P94: =IF('Appliances Worksheet'!E75="","",'Appliances Worksheet'!E75) -> 
D95: =IF('Appliances Worksheet'!E76="",NA(),INDEX('Appliances References'!$O$5:$O$35,MATCH(RIGHT('Appliance Calculations'!A58,8),'Appliances References'!$N$5:$N$35,0))) ->  | J95: =IF('Appliances Worksheet'!J76="","",'Appliances Worksheet'!J76) ->  | N95: =IF('Appliances Worksheet'!M76="","",'Appliances Worksheet'!M76) ->  | P95: =IF('Appliances Worksheet'!E76="","",'Appliances Worksheet'!E76) -> 
D96: =IF('Appliances Worksheet'!E77="",NA(),INDEX('Appliances References'!$O$5:$O$35,MATCH(RIGHT('Appliance Calculations'!A59,8),'Appliances References'!$N$5:$N$35,0))) ->  | J96: =IF('Appliances Worksheet'!J77="","",'Appliances Worksheet'!J77) ->  | N96: =IF('Appliances Worksheet'!M77="","",'Appliances Worksheet'!M77) ->  | P96: =IF('Appliances Worksheet'!E77="","",'Appliances Worksheet'!E77) -> 
D97: =IF('Appliances Worksheet'!E78="",NA(),INDEX('Appliances References'!$O$5:$O$35,MATCH(RIGHT('Appliance Calculations'!A60,8),'Appliances References'!$N$5:$N$35,0))) ->  | J97: =IF('Appliances Worksheet'!J78="","",'Appliances Worksheet'!J78) ->  | N97: =IF('Appliances Worksheet'!M78="","",'Appliances Worksheet'!M78) ->  | P97: =IF('Appliances Worksheet'!E78="","",'Appliances Worksheet'!E78) -> 
D98: =IF('Appliances Worksheet'!E79="",NA(),INDEX('Appliances References'!$O$5:$O$35,MATCH(RIGHT('Appliance Calculations'!A61,8),'Appliances References'!$N$5:$N$35,0))) ->  | J98: =IF('Appliances Worksheet'!J79="","",'Appliances Worksheet'!J79) -> Manufacturer | N98: =IF('Appliances Worksheet'!M79="","",'Appliances Worksheet'!M79) -> Model Number | P98: =IF('Appliances Worksheet'!E79="","",'Appliances Worksheet'!E79) -> Proposed Quantity
D99: =IF('Appliances Worksheet'!E80="",NA(),INDEX('Appliances References'!$O$5:$O$35,MATCH(RIGHT('Appliance Calculations'!A62,8),'Appliances References'!$N$5:$N$35,0))) ->  | J99: =IF('Appliances Worksheet'!J80="","",'Appliances Worksheet'!J80) ->  | N99: =IF('Appliances Worksheet'!M80="","",'Appliances Worksheet'!M80) ->  | P99: =IF('Appliances Worksheet'!E80="","",'Appliances Worksheet'!E80) -> 
D100: =IF('Appliances Worksheet'!E81="",NA(),INDEX('Appliances References'!$O$5:$O$35,MATCH(RIGHT('Appliance Calculations'!A63,8),'Appliances References'!$N$5:$N$35,0))) ->  | J100: =IF('Appliances Worksheet'!J81="","",'Appliances Worksheet'!J81) ->  | N100: =IF('Appliances Worksheet'!M81="","",'Appliances Worksheet'!M81) ->  | P100: =IF('Appliances Worksheet'!E81="","",'Appliances Worksheet'!E81) -> 
D101: =IF('Appliances Worksheet'!E82="",NA(),INDEX('Appliances References'!$O$5:$O$35,MATCH(RIGHT('Appliance Calculations'!A64,8),'Appliances References'!$N$5:$N$35,0))) ->  | J101: =IF('Appliances Worksheet'!J82="","",'Appliances Worksheet'!J82) ->  | N101: =IF('Appliances Worksheet'!M82="","",'Appliances Worksheet'!M82) ->  | P101: =IF('Appliances Worksheet'!E82="","",'Appliances Worksheet'!E82) -> 
D102: =IF('Appliances Worksheet'!E83="",NA(),INDEX('Appliances References'!$O$5:$O$35,MATCH(RIGHT('Appliance Calculations'!A65,8),'Appliances References'!$N$5:$N$35,0))) ->  | J102: =IF('Appliances Worksheet'!J83="","",'Appliances Worksheet'!J83) ->  | N102: =IF('Appliances Worksheet'!M83="","",'Appliances Worksheet'!M83) ->  | P102: =IF('Appliances Worksheet'!E83="","",'Appliances Worksheet'!E83) -> 
D103: =IF('Appliances Worksheet'!E84="",NA(),INDEX('Appliances References'!$O$5:$O$35,MATCH(RIGHT('Appliance Calculations'!A66,8),'Appliances References'!$N$5:$N$35,0))) ->  | J103: =IF('Appliances Worksheet'!J84="","",'Appliances Worksheet'!J84) ->  | N103: =IF('Appliances Worksheet'!M84="","",'Appliances Worksheet'!M84) ->  | P103: =IF('Appliances Worksheet'!E84="","",'Appliances Worksheet'!E84) -> 
D104: =IF('Appliances Worksheet'!E85="",NA(),INDEX('Appliances References'!$O$5:$O$35,MATCH(RIGHT('Appliance Calculations'!A67,8),'Appliances References'!$N$5:$N$35,0))) ->  | J104: =IF('Appliances Worksheet'!J85="","",'Appliances Worksheet'!J85) ->  | N104: =IF('Appliances Worksheet'!M85="","",'Appliances Worksheet'!M85) ->  | P104: =IF('Appliances Worksheet'!E85="","",'Appliances Worksheet'!E85) -> 
D105: =IF('Appliances Worksheet'!E86="",NA(),INDEX('Appliances References'!$O$5:$O$35,MATCH(RIGHT('Appliance Calculations'!A68,8),'Appliances References'!$N$5:$N$35,0))) ->  | J105: =IF('Appliances Worksheet'!J86="","",'Appliances Worksheet'!J86) ->  | N105: =IF('Appliances Worksheet'!M86="","",'Appliances Worksheet'!M86) ->  | P105: =IF('Appliances Worksheet'!E86="","",'Appliances Worksheet'!E86) -> 
D106: =IF('Appliances Worksheet'!E87="",NA(),INDEX('Appliances References'!$O$5:$O$35,MATCH(RIGHT('Appliance Calculations'!A69,8),'Appliances References'!$N$5:$N$35,0))) ->  | J106: =IF('Appliances Worksheet'!J87="","",'Appliances Worksheet'!J87) ->  | N106: =IF('Appliances Worksheet'!M87="","",'Appliances Worksheet'!M87) ->  | P106: =IF('Appliances Worksheet'!E87="","",'Appliances Worksheet'!E87) -> 
D107: =IF('Appliances Worksheet'!E88="",NA(),INDEX('Appliances References'!$O$5:$O$35,MATCH(RIGHT('Appliance Calculations'!A70,8),'Appliances References'!$N$5:$N$35,0))) ->  | J107: =IF('Appliances Worksheet'!J88="","",'Appliances Worksheet'!J88) ->  | N107: =IF('Appliances Worksheet'!M88="","",'Appliances Worksheet'!M88) ->  | P107: =IF('Appliances Worksheet'!E88="","",'Appliances Worksheet'!E88) -> 
D108: =IF('Appliances Worksheet'!E89="",NA(),INDEX('Appliances References'!$O$5:$O$35,MATCH(RIGHT('Appliance Calculations'!A71,8),'Appliances References'!$N$5:$N$35,0))) ->  | J108: =IF('Appliances Worksheet'!J89="","",'Appliances Worksheet'!J89) ->  | N108: =IF('Appliances Worksheet'!M89="","",'Appliances Worksheet'!M89) ->  | P108: =IF('Appliances Worksheet'!E89="","",'Appliances Worksheet'!E89) -> 
D109: =IF('Appliances Worksheet'!E90="",NA(),INDEX('Appliances References'!$O$5:$O$35,MATCH(RIGHT('Appliance Calculations'!A72,8),'Appliances References'!$N$5:$N$35,0))) ->  | J109: =IF('Appliances Worksheet'!J90="","",'Appliances Worksheet'!J90) ->  | N109: =IF('Appliances Worksheet'!M90="","",'Appliances Worksheet'!M90) ->  | P109: =IF('Appliances Worksheet'!E90="","",'Appliances Worksheet'!E90) -> 
D110: =IF('Appliances Worksheet'!E91="",NA(),INDEX('Appliances References'!$O$5:$O$35,MATCH(RIGHT('Appliance Calculations'!A73,8),'Appliances References'!$N$5:$N$35,0))) ->  | J110: =IF('Appliances Worksheet'!G91="","",'Appliances Worksheet'!G91) -> Manufacturer | N110: =IF('Appliances Worksheet'!J91="","",'Appliances Worksheet'!J91) -> Qualified Model | P110: =IF('Appliances Worksheet'!E91="","",'Appliances Worksheet'!E91) -> Proposed Quantity
D111: =IF('Appliances Worksheet'!E92="",NA(),INDEX('Appliances References'!$O$5:$O$35,MATCH(RIGHT('Appliance Calculations'!A74,8),'Appliances References'!$N$5:$N$35,0))) ->  | J111: =IF('Appliances Worksheet'!G92="","",'Appliances Worksheet'!G92) ->  | N111: =IF('Appliances Worksheet'!J92="","",'Appliances Worksheet'!J92) ->  | P111: =IF('Appliances Worksheet'!E92="","",'Appliances Worksheet'!E92) -> 
D112: =IF('Appliances Worksheet'!E93="",NA(),INDEX('Appliances References'!$O$5:$O$35,MATCH(RIGHT('Appliance Calculations'!A75,8),'Appliances References'!$N$5:$N$35,0))) ->  | J112: =IF('Appliances Worksheet'!G93="","",'Appliances Worksheet'!G93) ->  | N112: =IF('Appliances Worksheet'!J93="","",'Appliances Worksheet'!J93) ->  | P112: =IF('Appliances Worksheet'!E93="","",'Appliances Worksheet'!E93) -> 
D113: =IF('Appliances Worksheet'!E94="",NA(),INDEX('Appliances References'!$O$5:$O$35,MATCH(RIGHT('Appliance Calculations'!A76,8),'Appliances References'!$N$5:$N$35,0))) ->  | J113: =IF('Appliances Worksheet'!G94="","",'Appliances Worksheet'!G94) ->  | N113: =IF('Appliances Worksheet'!J94="","",'Appliances Worksheet'!J94) ->  | P113: =IF('Appliances Worksheet'!E94="","",'Appliances Worksheet'!E94) -> 
D114: =IF('Appliances Worksheet'!E95="",NA(),INDEX('Appliances References'!$O$5:$O$35,MATCH(RIGHT('Appliance Calculations'!A77,8),'Appliances References'!$N$5:$N$35,0))) ->  | J114: =IF('Appliances Worksheet'!G95="","",'Appliances Worksheet'!G95) ->  | N114: =IF('Appliances Worksheet'!J95="","",'Appliances Worksheet'!J95) ->  | P114: =IF('Appliances Worksheet'!E95="","",'Appliances Worksheet'!E95) -> 
D115: =IF('Appliances Worksheet'!E96="",NA(),INDEX('Appliances References'!$O$5:$O$35,MATCH(RIGHT('Appliance Calculations'!A78,8),'Appliances References'!$N$5:$N$35,0))) ->  | J115: =IF('Appliances Worksheet'!G96="","",'Appliances Worksheet'!G96) ->  | N115: =IF('Appliances Worksheet'!J96="","",'Appliances Worksheet'!J96) ->  | P115: =IF('Appliances Worksheet'!E96="","",'Appliances Worksheet'!E96) -> 
D116: =IF('Appliances Worksheet'!E97="",NA(),INDEX('Appliances References'!$O$5:$O$35,MATCH(RIGHT('Appliance Calculations'!A79,8),'Appliances References'!$N$5:$N$35,0))) ->  | J116: =IF('Appliances Worksheet'!G97="","",'Appliances Worksheet'!G97) ->  | N116: =IF('Appliances Worksheet'!J97="","",'Appliances Worksheet'!J97) ->  | P116: =IF('Appliances Worksheet'!E97="","",'Appliances Worksheet'!E97) -> 
D117: =IF('Appliances Worksheet'!E98="",NA(),INDEX('Appliances References'!$O$5:$O$35,MATCH(RIGHT('Appliance Calculations'!A80,8),'Appliances References'!$N$5:$N$35,0))) ->  | J117: =IF('Appliances Worksheet'!G98="","",'Appliances Worksheet'!G98) ->  | N117: =IF('Appliances Worksheet'!J98="","",'Appliances Worksheet'!J98) ->  | P117: =IF('Appliances Worksheet'!E98="","",'Appliances Worksheet'!E98) -> 
D118: =IF('Appliances Worksheet'!E99="",NA(),INDEX('Appliances References'!$O$5:$O$35,MATCH(RIGHT('Appliance Calculations'!A81,8),'Appliances References'!$N$5:$N$35,0))) ->  | J118: =IF('Appliances Worksheet'!G99="","",'Appliances Worksheet'!G99) ->  | N118: =IF('Appliances Worksheet'!J99="","",'Appliances Worksheet'!J99) ->  | P118: =IF('Appliances Worksheet'!E99="","",'Appliances Worksheet'!E99) -> 
D119: =IF('Appliances Worksheet'!E100="",NA(),INDEX('Appliances References'!$O$5:$O$35,MATCH(RIGHT('Appliance Calculations'!A82,8),'Appliances References'!$N$5:$N$35,0))) ->  | J119: =IF('Appliances Worksheet'!G100="","",'Appliances Worksheet'!G100) ->  | N119: =IF('Appliances Worksheet'!J100="","",'Appliances Worksheet'!J100) ->  | P119: =IF('Appliances Worksheet'!E100="","",'Appliances Worksheet'!E100) -> 
D120: =IF('Appliances Worksheet'!E101="",NA(),INDEX('Appliances References'!$O$5:$O$35,MATCH(RIGHT('Appliance Calculations'!A83,8),'Appliances References'!$N$5:$N$35,0))) ->  | J120: =IF('Appliances Worksheet'!G101="","",'Appliances Worksheet'!G101) ->  | N120: =IF('Appliances Worksheet'!J101="","",'Appliances Worksheet'!J101) ->  | P120: =IF('Appliances Worksheet'!E101="","",'Appliances Worksheet'!E101) -> 
D121: =IF('Appliances Worksheet'!E102="",NA(),INDEX('Appliances References'!$O$5:$O$35,MATCH(RIGHT('Appliance Calculations'!A84,8),'Appliances References'!$N$5:$N$35,0))) ->  | J121: =IF('Appliances Worksheet'!G102="","",'Appliances Worksheet'!G102) ->  | N121: =IF('Appliances Worksheet'!J102="","",'Appliances Worksheet'!J102) ->  | P121: =IF('Appliances Worksheet'!E102="","",'Appliances Worksheet'!E102) -> 
D122: =IF('Appliances Worksheet'!E103="",NA(),INDEX('Appliances References'!$O$5:$O$35,MATCH(RIGHT('Appliance Calculations'!A85,8),'Appliances References'!$N$5:$N$35,0))) ->  | J122: =IF('Appliances Worksheet'!J103="","",'Appliances Worksheet'!J103) -> Manufacturer | N122: =IF('Appliances Worksheet'!M103="","",'Appliances Worksheet'!M103) -> Model Number | P122: =IF('Appliances Worksheet'!E103="","",'Appliances Worksheet'!E103) -> Proposed Quantity
D123: =IF('Appliances Worksheet'!E104="",NA(),INDEX('Appliances References'!$O$5:$O$35,MATCH(RIGHT('Appliance Calculations'!A86,8),'Appliances References'!$N$5:$N$35,0))) ->  | J123: =IF('Appliances Worksheet'!J104="","",'Appliances Worksheet'!J104) ->  | N123: =IF('Appliances Worksheet'!M104="","",'Appliances Worksheet'!M104) ->  | P123: =IF('Appliances Worksheet'!E104="","",'Appliances Worksheet'!E104) -> 
D124: =IF('Appliances Worksheet'!E105="",NA(),INDEX('Appliances References'!$O$5:$O$35,MATCH(RIGHT('Appliance Calculations'!A87,8),'Appliances References'!$N$5:$N$35,0))) ->  | J124: =IF('Appliances Worksheet'!J105="","",'Appliances Worksheet'!J105) ->  | N124: =IF('Appliances Worksheet'!M105="","",'Appliances Worksheet'!M105) ->  | P124: =IF('Appliances Worksheet'!E105="","",'Appliances Worksheet'!E105) -> 
D125: =IF('Appliances Worksheet'!E106="",NA(),INDEX('Appliances References'!$O$5:$O$35,MATCH(RIGHT('Appliance Calculations'!A88,8),'Appliances References'!$N$5:$N$35,0))) ->  | J125: =IF('Appliances Worksheet'!J106="","",'Appliances Worksheet'!J106) ->  | N125: =IF('Appliances Worksheet'!M106="","",'Appliances Worksheet'!M106) ->  | P125: =IF('Appliances Worksheet'!E106="","",'Appliances Worksheet'!E106) -> 
D126: =IF('Appliances Worksheet'!E107="",NA(),INDEX('Appliances References'!$O$5:$O$35,MATCH(RIGHT('Appliance Calculations'!A89,8),'Appliances References'!$N$5:$N$35,0))) ->  | J126: =IF('Appliances Worksheet'!J107="","",'Appliances Worksheet'!J107) ->  | N126: =IF('Appliances Worksheet'!M107="","",'Appliances Worksheet'!M107) ->  | P126: =IF('Appliances Worksheet'!E107="","",'Appliances Worksheet'!E107) -> 
D127: =IF('Appliances Worksheet'!E108="",NA(),INDEX('Appliances References'!$O$5:$O$35,MATCH(RIGHT('Appliance Calculations'!A90,8),'Appliances References'!$N$5:$N$35,0))) ->  | J127: =IF('Appliances Worksheet'!J108="","",'Appliances Worksheet'!J108) ->  | N127: =IF('Appliances Worksheet'!M108="","",'Appliances Worksheet'!M108) ->  | P127: =IF('Appliances Worksheet'!E108="","",'Appliances Worksheet'!E108) -> 
D128: =IF('Appliances Worksheet'!E109="",NA(),INDEX('Appliances References'!$O$5:$O$35,MATCH(RIGHT('Appliance Calculations'!A91,8),'Appliances References'!$N$5:$N$35,0))) ->  | J128: =IF('Appliances Worksheet'!J109="","",'Appliances Worksheet'!J109) ->  | N128: =IF('Appliances Worksheet'!M109="","",'Appliances Worksheet'!M109) ->  | P128: =IF('Appliances Worksheet'!E109="","",'Appliances Worksheet'!E109) -> 
D129: =IF('Appliances Worksheet'!E110="",NA(),INDEX('Appliances References'!$O$5:$O$35,MATCH(RIGHT('Appliance Calculations'!A92,8),'Appliances References'!$N$5:$N$35,0))) ->  | J129: =IF('Appliances Worksheet'!J110="","",'Appliances Worksheet'!J110) ->  | N129: =IF('Appliances Worksheet'!M110="","",'Appliances Worksheet'!M110) ->  | P129: =IF('Appliances Worksheet'!E110="","",'Appliances Worksheet'!E110) -> 
D130: =IF('Appliances Worksheet'!E111="",NA(),INDEX('Appliances References'!$O$5:$O$35,MATCH(RIGHT('Appliance Calculations'!A93,8),'Appliances References'!$N$5:$N$35,0))) ->  | J130: =IF('Appliances Worksheet'!J111="","",'Appliances Worksheet'!J111) ->  | N130: =IF('Appliances Worksheet'!M111="","",'Appliances Worksheet'!M111) ->  | P130: =IF('Appliances Worksheet'!E111="","",'Appliances Worksheet'!E111) -> 
D131: =IF('Appliances Worksheet'!E112="",NA(),INDEX('Appliances References'!$O$5:$O$35,MATCH(RIGHT('Appliance Calculations'!A94,8),'Appliances References'!$N$5:$N$35,0))) ->  | J131: =IF('Appliances Worksheet'!J112="","",'Appliances Worksheet'!J112) ->  | N131: =IF('Appliances Worksheet'!M112="","",'Appliances Worksheet'!M112) ->  | P131: =IF('Appliances Worksheet'!E112="","",'Appliances Worksheet'!E112) -> 
D132: =IF('Appliances Worksheet'!E113="",NA(),INDEX('Appliances References'!$O$5:$O$35,MATCH(RIGHT('Appliance Calculations'!A95,8),'Appliances References'!$N$5:$N$35,0))) ->  | J132: =IF('Appliances Worksheet'!J113="","",'Appliances Worksheet'!J113) ->  | N132: =IF('Appliances Worksheet'!M113="","",'Appliances Worksheet'!M113) ->  | P132: =IF('Appliances Worksheet'!E113="","",'Appliances Worksheet'!E113) -> 
D133: =IF('Appliances Worksheet'!E114="",NA(),INDEX('Appliances References'!$O$5:$O$35,MATCH(RIGHT('Appliance Calculations'!A96,8),'Appliances References'!$N$5:$N$35,0))) ->  | J133: =IF('Appliances Worksheet'!J114="","",'Appliances Worksheet'!J114) ->  | N133: =IF('Appliances Worksheet'!M114="","",'Appliances Worksheet'!M114) ->  | P133: =IF('Appliances Worksheet'!E114="","",'Appliances Worksheet'!E114) -> 
D134: =IF('Appliances Worksheet'!E115="",NA(),INDEX('Appliances References'!$O$5:$O$35,MATCH(RIGHT('Appliance Calculations'!A97,8),'Appliances References'!$N$5:$N$35,0))) ->  | J134: =IF('Appliances Worksheet'!J115="","",'Appliances Worksheet'!J115) -> Manufacturer | N134: =IF('Appliances Worksheet'!M115="","",'Appliances Worksheet'!M115) -> Model Number | P134: =IF('Appliances Worksheet'!E115="","",'Appliances Worksheet'!E115) -> Proposed Quantity
D135: =IF('Appliances Worksheet'!E116="",NA(),INDEX('Appliances References'!$O$5:$O$35,MATCH(RIGHT('Appliance Calculations'!A98,8),'Appliances References'!$N$5:$N$35,0))) ->  | J135: =IF('Appliances Worksheet'!J116="","",'Appliances Worksheet'!J116) ->  | N135: =IF('Appliances Worksheet'!M116="","",'Appliances Worksheet'!M116) ->  | P135: =IF('Appliances Worksheet'!E116="","",'Appliances Worksheet'!E116) -> 
D136: =IF('Appliances Worksheet'!E117="",NA(),INDEX('Appliances References'!$O$5:$O$35,MATCH(RIGHT('Appliance Calculations'!A99,8),'Appliances References'!$N$5:$N$35,0))) ->  | J136: =IF('Appliances Worksheet'!J117="","",'Appliances Worksheet'!J117) ->  | N136: =IF('Appliances Worksheet'!M117="","",'Appliances Worksheet'!M117) ->  | P136: =IF('Appliances Worksheet'!E117="","",'Appliances Worksheet'!E117) -> 
D137: =IF('Appliances Worksheet'!E118="",NA(),INDEX('Appliances References'!$O$5:$O$35,MATCH(RIGHT('Appliance Calculations'!A100,8),'Appliances References'!$N$5:$N$35,0))) ->  | J137: =IF('Appliances Worksheet'!J118="","",'Appliances Worksheet'!J118) ->  | N137: =IF('Appliances Worksheet'!M118="","",'Appliances Worksheet'!M118) ->  | P137: =IF('Appliances Worksheet'!E118="","",'Appliances Worksheet'!E118) -> 
D138: =IF('Appliances Worksheet'!E119="",NA(),INDEX('Appliances References'!$O$5:$O$35,MATCH(RIGHT('Appliance Calculations'!A101,8),'Appliances References'!$N$5:$N$35,0))) ->  | J138: =IF('Appliances Worksheet'!J119="","",'Appliances Worksheet'!J119) ->  | N138: =IF('Appliances Worksheet'!M119="","",'Appliances Worksheet'!M119) ->  | P138: =IF('Appliances Worksheet'!E119="","",'Appliances Worksheet'!E119) -> 
D139: =IF('Appliances Worksheet'!E120="",NA(),INDEX('Appliances References'!$O$5:$O$35,MATCH(RIGHT('Appliance Calculations'!A102,8),'Appliances References'!$N$5:$N$35,0))) ->  | J139: =IF('Appliances Worksheet'!G120="","",'Appliances Worksheet'!G120) ->  | N139: =IF('Appliances Worksheet'!J120="","",'Appliances Worksheet'!J120) ->  | P139: =IF('Appliances Worksheet'!E120="","",'Appliances Worksheet'!E120) -> 
D140: =IF('Appliances Worksheet'!E121="",NA(),INDEX('Appliances References'!$O$5:$O$35,MATCH(RIGHT('Appliance Calculations'!A103,8),'Appliances References'!$N$5:$N$35,0))) ->  | J140: =IF('Appliances Worksheet'!G121="","",'Appliances Worksheet'!G121) ->  | N140: =IF('Appliances Worksheet'!J121="","",'Appliances Worksheet'!J121) ->  | P140: =IF('Appliances Worksheet'!E121="","",'Appliances Worksheet'!E121) -> 
D141: =IF('Appliances Worksheet'!E122="",NA(),INDEX('Appliances References'!$O$5:$O$35,MATCH(RIGHT('Appliance Calculations'!A104,8),'Appliances References'!$N$5:$N$35,0))) ->  | J141: =IF('Appliances Worksheet'!G122="","",'Appliances Worksheet'!G122) ->  | N141: =IF('Appliances Worksheet'!J122="","",'Appliances Worksheet'!J122) ->  | P141: =IF('Appliances Worksheet'!E122="","",'Appliances Worksheet'!E122) -> 
D142: =IF('Appliances Worksheet'!E123="",NA(),INDEX('Appliances References'!$O$5:$O$35,MATCH(RIGHT('Appliance Calculations'!A105,8),'Appliances References'!$N$5:$N$35,0))) ->  | J142: =IF('Appliances Worksheet'!G123="","",'Appliances Worksheet'!G123) ->  | N142: =IF('Appliances Worksheet'!J123="","",'Appliances Worksheet'!J123) ->  | P142: =IF('Appliances Worksheet'!E123="","",'Appliances Worksheet'!E123) -> 
D143: =IF('Appliances Worksheet'!E124="",NA(),INDEX('Appliances References'!$O$5:$O$35,MATCH(RIGHT('Appliance Calculations'!A106,8),'Appliances References'!$N$5:$N$35,0))) ->  | J143: =IF('Appliances Worksheet'!G124="","",'Appliances Worksheet'!G124) ->  | N143: =IF('Appliances Worksheet'!J124="","",'Appliances Worksheet'!J124) ->  | P143: =IF('Appliances Worksheet'!E124="","",'Appliances Worksheet'!E124) -> 
D144: =IF('Appliances Worksheet'!E125="",NA(),INDEX('Appliances References'!$O$5:$O$35,MATCH(RIGHT('Appliance Calculations'!A107,8),'Appliances References'!$N$5:$N$35,0))) ->  | J144: =IF('Appliances Worksheet'!G125="","",'Appliances Worksheet'!G125) ->  | N144: =IF('Appliances Worksheet'!J125="","",'Appliances Worksheet'!J125) ->  | P144: =IF('Appliances Worksheet'!E125="","",'Appliances Worksheet'!E125) -> 
D145: =IF('Appliances Worksheet'!E126="",NA(),INDEX('Appliances References'!$O$5:$O$35,MATCH(RIGHT('Appliance Calculations'!A108,8),'Appliances References'!$N$5:$N$35,0))) ->  | J145: =IF('Appliances Worksheet'!G126="","",'Appliances Worksheet'!G126) ->  | N145: =IF('Appliances Worksheet'!J126="","",'Appliances Worksheet'!J126) ->  | P145: =IF('Appliances Worksheet'!E126="","",'Appliances Worksheet'!E126) -> 
D146: =IF('Appliances Worksheet'!E127="",NA(),INDEX('Appliances References'!$O$5:$O$35,MATCH(RIGHT('Appliance Calculations'!A109,8),'Appliances References'!$N$5:$N$35,0))) ->  | J146: =IF('Appliances Worksheet'!J127="","",'Appliances Worksheet'!J127) -> Manufacturer | N146: =IF('Appliances Worksheet'!M127="","",'Appliances Worksheet'!M127) -> Model Number | P146: =IF('Appliances Worksheet'!E127="","",'Appliances Worksheet'!E127) -> Proposed Quantity
D147: =IF('Appliances Worksheet'!E128="",NA(),INDEX('Appliances References'!$O$5:$O$35,MATCH(RIGHT('Appliance Calculations'!A110,8),'Appliances References'!$N$5:$N$35,0))) ->  | J147: =IF('Appliances Worksheet'!J128="","",'Appliances Worksheet'!J128) ->  | N147: =IF('Appliances Worksheet'!M128="","",'Appliances Worksheet'!M128) ->  | P147: =IF('Appliances Worksheet'!E128="","",'Appliances Worksheet'!E128) -> 
D148: =IF('Appliances Worksheet'!E129="",NA(),INDEX('Appliances References'!$O$5:$O$35,MATCH(RIGHT('Appliance Calculations'!A111,8),'Appliances References'!$N$5:$N$35,0))) ->  | J148: =IF('Appliances Worksheet'!J129="","",'Appliances Worksheet'!J129) ->  | N148: =IF('Appliances Worksheet'!M129="","",'Appliances Worksheet'!M129) ->  | P148: =IF('Appliances Worksheet'!E129="","",'Appliances Worksheet'!E129) -> 
D149: =IF('Appliances Worksheet'!E130="",NA(),INDEX('Appliances References'!$O$5:$O$35,MATCH(RIGHT('Appliance Calculations'!A112,8),'Appliances References'!$N$5:$N$35,0))) ->  | J149: =IF('Appliances Worksheet'!J130="","",'Appliances Worksheet'!J130) ->  | N149: =IF('Appliances Worksheet'!M130="","",'Appliances Worksheet'!M130) ->  | P149: =IF('Appliances Worksheet'!E130="","",'Appliances Worksheet'!E130) -> 
D150: =IF('Appliances Worksheet'!E131="",NA(),INDEX('Appliances References'!$O$5:$O$35,MATCH(RIGHT('Appliance Calculations'!A113,8),'Appliances References'!$N$5:$N$35,0))) ->  | J150: =IF('Appliances Worksheet'!J131="","",'Appliances Worksheet'!J131) ->  | N150: =IF('Appliances Worksheet'!M131="","",'Appliances Worksheet'!M131) ->  | P150: =IF('Appliances Worksheet'!E131="","",'Appliances Worksheet'!E131) -> 
D151: =IF('Appliances Worksheet'!E132="",NA(),INDEX('Appliances References'!$O$5:$O$35,MATCH(RIGHT('Appliance Calculations'!A114,8),'Appliances References'!$N$5:$N$35,0))) ->  | J151: =IF('Appliances Worksheet'!J132="","",'Appliances Worksheet'!J132) ->  | N151: =IF('Appliances Worksheet'!M132="","",'Appliances Worksheet'!M132) ->  | P151: =IF('Appliances Worksheet'!E132="","",'Appliances Worksheet'!E132) -> 
D152: =IF('Appliances Worksheet'!E133="",NA(),INDEX('Appliances References'!$O$5:$O$35,MATCH(RIGHT('Appliance Calculations'!A115,8),'Appliances References'!$N$5:$N$35,0))) ->  | J152: =IF('Appliances Worksheet'!J133="","",'Appliances Worksheet'!J133) ->  | N152: =IF('Appliances Worksheet'!M133="","",'Appliances Worksheet'!M133) ->  | P152: =IF('Appliances Worksheet'!E133="","",'Appliances Worksheet'!E133) -> 
D153: =IF('Appliances Worksheet'!E134="",NA(),INDEX('Appliances References'!$O$5:$O$35,MATCH(RIGHT('Appliance Calculations'!A116,8),'Appliances References'!$N$5:$N$35,0))) ->  | J153: =IF('Appliances Worksheet'!J134="","",'Appliances Worksheet'!J134) ->  | N153: =IF('Appliances Worksheet'!M134="","",'Appliances Worksheet'!M134) ->  | P153: =IF('Appliances Worksheet'!E134="","",'Appliances Worksheet'!E134) -> 
D154: =IF('Appliances Worksheet'!E135="",NA(),INDEX('Appliances References'!$O$5:$O$35,MATCH(RIGHT('Appliance Calculations'!A117,8),'Appliances References'!$N$5:$N$35,0))) ->  | J154: =IF('Appliances Worksheet'!J135="","",'Appliances Worksheet'!J135) ->  | N154: =IF('Appliances Worksheet'!M135="","",'Appliances Worksheet'!M135) ->  | P154: =IF('Appliances Worksheet'!E135="","",'Appliances Worksheet'!E135) -> 
D155: =IF('Appliances Worksheet'!E136="",NA(),INDEX('Appliances References'!$O$5:$O$35,MATCH(RIGHT('Appliance Calculations'!A118,8),'Appliances References'!$N$5:$N$35,0))) ->  | J155: =IF('Appliances Worksheet'!J136="","",'Appliances Worksheet'!J136) ->  | N155: =IF('Appliances Worksheet'!M136="","",'Appliances Worksheet'!M136) ->  | P155: =IF('Appliances Worksheet'!E136="","",'Appliances Worksheet'!E136) -> 
D156: =IF('Appliances Worksheet'!E137="",NA(),INDEX('Appliances References'!$O$5:$O$35,MATCH(RIGHT('Appliance Calculations'!A119,8),'Appliances References'!$N$5:$N$35,0))) ->  | J156: =IF('Appliances Worksheet'!J137="","",'Appliances Worksheet'!J137) ->  | N156: =IF('Appliances Worksheet'!M137="","",'Appliances Worksheet'!M137) ->  | P156: =IF('Appliances Worksheet'!E137="","",'Appliances Worksheet'!E137) -> 
D157: =IF('Appliances Worksheet'!E138="",NA(),INDEX('Appliances References'!$O$5:$O$35,MATCH(RIGHT('Appliance Calculations'!A120,8),'Appliances References'!$N$5:$N$35,0))) ->  | J157: =IF('Appliances Worksheet'!J138="","",'Appliances Worksheet'!J138) ->  | N157: =IF('Appliances Worksheet'!M138="","",'Appliances Worksheet'!M138) ->  | P157: =IF('Appliances Worksheet'!E138="","",'Appliances Worksheet'!E138) -> 
D158: =IF('Appliances Worksheet'!E139="",NA(),INDEX('Appliances References'!$O$5:$O$35,MATCH(RIGHT('Appliance Calculations'!A121,8),'Appliances References'!$N$5:$N$35,0))) ->  | J158: =IF('Appliances Worksheet'!M139="","",'Appliances Worksheet'!M139) -> Manufacturer | N158: =IF('Appliances Worksheet'!P139="","",'Appliances Worksheet'!P139) -> Model Number | P158: =IF('Appliances Worksheet'!E139="","",'Appliances Worksheet'!E139) -> Proposed Quantity
D159: =IF('Appliances Worksheet'!E140="",NA(),INDEX('Appliances References'!$O$5:$O$35,MATCH(RIGHT('Appliance Calculations'!A122,8),'Appliances References'!$N$5:$N$35,0))) ->  | J159: =IF('Appliances Worksheet'!M140="","",'Appliances Worksheet'!M140) ->  | N159: =IF('Appliances Worksheet'!P140="","",'Appliances Worksheet'!P140) ->  | P159: =IF('Appliances Worksheet'!E140="","",'Appliances Worksheet'!E140) -> 
D160: =IF('Appliances Worksheet'!E141="",NA(),INDEX('Appliances References'!$O$5:$O$35,MATCH(RIGHT('Appliance Calculations'!A123,8),'Appliances References'!$N$5:$N$35,0))) ->  | J160: =IF('Appliances Worksheet'!M141="","",'Appliances Worksheet'!M141) ->  | N160: =IF('Appliances Worksheet'!P141="","",'Appliances Worksheet'!P141) ->  | P160: =IF('Appliances Worksheet'!E141="","",'Appliances Worksheet'!E141) -> 
D161: =IF('Appliances Worksheet'!E142="",NA(),INDEX('Appliances References'!$O$5:$O$35,MATCH(RIGHT('Appliance Calculations'!A124,8),'Appliances References'!$N$5:$N$35,0))) ->  | J161: =IF('Appliances Worksheet'!M142="","",'Appliances Worksheet'!M142) ->  | N161: =IF('Appliances Worksheet'!P142="","",'Appliances Worksheet'!P142) ->  | P161: =IF('Appliances Worksheet'!E142="","",'Appliances Worksheet'!E142) -> 
D162: =IF('Appliances Worksheet'!E143="",NA(),INDEX('Appliances References'!$O$5:$O$35,MATCH(RIGHT('Appliance Calculations'!A125,8),'Appliances References'!$N$5:$N$35,0))) ->  | J162: =IF('Appliances Worksheet'!M143="","",'Appliances Worksheet'!M143) ->  | N162: =IF('Appliances Worksheet'!P143="","",'Appliances Worksheet'!P143) ->  | P162: =IF('Appliances Worksheet'!E143="","",'Appliances Worksheet'!E143) -> 
D163: =IF('Appliances Worksheet'!E144="",NA(),INDEX('Appliances References'!$O$5:$O$35,MATCH(RIGHT('Appliance Calculations'!A126,8),'Appliances References'!$N$5:$N$35,0))) ->  | J163: =IF('Appliances Worksheet'!M144="","",'Appliances Worksheet'!M144) ->  | N163: =IF('Appliances Worksheet'!P144="","",'Appliances Worksheet'!P144) ->  | P163: =IF('Appliances Worksheet'!E144="","",'Appliances Worksheet'!E144) -> 
D164: =IF('Appliances Worksheet'!E145="",NA(),INDEX('Appliances References'!$O$5:$O$35,MATCH(RIGHT('Appliance Calculations'!A127,8),'Appliances References'!$N$5:$N$35,0))) ->  | J164: =IF('Appliances Worksheet'!M145="","",'Appliances Worksheet'!M145) ->  | N164: =IF('Appliances Worksheet'!P145="","",'Appliances Worksheet'!P145) ->  | P164: =IF('Appliances Worksheet'!E145="","",'Appliances Worksheet'!E145) -> 
D165: =IF('Appliances Worksheet'!E146="",NA(),INDEX('Appliances References'!$O$5:$O$35,MATCH(RIGHT('Appliance Calculations'!A128,8),'Appliances References'!$N$5:$N$35,0))) ->  | J165: =IF('Appliances Worksheet'!M146="","",'Appliances Worksheet'!M146) ->  | N165: =IF('Appliances Worksheet'!P146="","",'Appliances Worksheet'!P146) ->  | P165: =IF('Appliances Worksheet'!E146="","",'Appliances Worksheet'!E146) -> 
D166: =IF('Appliances Worksheet'!E147="",NA(),INDEX('Appliances References'!$O$5:$O$35,MATCH(RIGHT('Appliance Calculations'!A129,8),'Appliances References'!$N$5:$N$35,0))) ->  | J166: =IF('Appliances Worksheet'!M147="","",'Appliances Worksheet'!M147) ->  | N166: =IF('Appliances Worksheet'!P147="","",'Appliances Worksheet'!P147) ->  | P166: =IF('Appliances Worksheet'!E147="","",'Appliances Worksheet'!E147) -> 
D167: =IF('Appliances Worksheet'!E148="",NA(),INDEX('Appliances References'!$O$5:$O$35,MATCH(RIGHT('Appliance Calculations'!A130,8),'Appliances References'!$N$5:$N$35,0))) ->  | J167: =IF('Appliances Worksheet'!M148="","",'Appliances Worksheet'!M148) ->  | N167: =IF('Appliances Worksheet'!P148="","",'Appliances Worksheet'!P148) ->  | P167: =IF('Appliances Worksheet'!E148="","",'Appliances Worksheet'!E148) -> 
D168: =IF('Appliances Worksheet'!E149="",NA(),INDEX('Appliances References'!$O$5:$O$35,MATCH(RIGHT('Appliance Calculations'!A131,8),'Appliances References'!$N$5:$N$35,0))) ->  | J168: =IF('Appliances Worksheet'!M149="","",'Appliances Worksheet'!M149) ->  | N168: =IF('Appliances Worksheet'!P149="","",'Appliances Worksheet'!P149) ->  | P168: =IF('Appliances Worksheet'!E149="","",'Appliances Worksheet'!E149) -> 
D169: =IF('Appliances Worksheet'!E150="",NA(),INDEX('Appliances References'!$O$5:$O$35,MATCH(RIGHT('Appliance Calculations'!A132,8),'Appliances References'!$N$5:$N$35,0))) ->  | J169: =IF('Appliances Worksheet'!M150="","",'Appliances Worksheet'!M150) ->  | N169: =IF('Appliances Worksheet'!P150="","",'Appliances Worksheet'!P150) ->  | P169: =IF('Appliances Worksheet'!E150="","",'Appliances Worksheet'!E150) -> 
D170: =IF('Appliances Worksheet'!E151="",NA(),INDEX('Appliances References'!$O$5:$O$35,MATCH(RIGHT('Appliance Calculations'!A133,8),'Appliances References'!$N$5:$N$35,0))) ->  | J170: =IF('Appliances Worksheet'!G151="","",'Appliances Worksheet'!G151) -> Manufacturer | N170: =IF('Appliances Worksheet'!J151="","",'Appliances Worksheet'!J151) -> Model Number | P170: =IF('Appliances Worksheet'!E151="","",'Appliances Worksheet'!E151) -> Proposed Quantity
D171: =IF('Appliances Worksheet'!E152="",NA(),INDEX('Appliances References'!$O$5:$O$35,MATCH(RIGHT('Appliance Calculations'!A134,8),'Appliances References'!$N$5:$N$35,0))) ->  | J171: =IF('Appliances Worksheet'!G152="","",'Appliances Worksheet'!G152) ->  | N171: =IF('Appliances Worksheet'!J152="","",'Appliances Worksheet'!J152) ->  | P171: =IF('Appliances Worksheet'!E152="","",'Appliances Worksheet'!E152) -> 
D172: =IF('Appliances Worksheet'!E153="",NA(),INDEX('Appliances References'!$O$5:$O$35,MATCH(RIGHT('Appliance Calculations'!A135,8),'Appliances References'!$N$5:$N$35,0))) ->  | J172: =IF('Appliances Worksheet'!G153="","",'Appliances Worksheet'!G153) ->  | N172: =IF('Appliances Worksheet'!J153="","",'Appliances Worksheet'!J153) ->  | P172: =IF('Appliances Worksheet'!E153="","",'Appliances Worksheet'!E153) -> 
D173: =IF('Appliances Worksheet'!E154="",NA(),INDEX('Appliances References'!$O$5:$O$35,MATCH(RIGHT('Appliance Calculations'!A136,8),'Appliances References'!$N$5:$N$35,0))) ->  | J173: =IF('Appliances Worksheet'!G154="","",'Appliances Worksheet'!G154) ->  | N173: =IF('Appliances Worksheet'!J154="","",'Appliances Worksheet'!J154) ->  | P173: =IF('Appliances Worksheet'!E154="","",'Appliances Worksheet'!E154) -> 
D174: =IF('Appliances Worksheet'!E155="",NA(),INDEX('Appliances References'!$O$5:$O$35,MATCH(RIGHT('Appliance Calculations'!A137,8),'Appliances References'!$N$5:$N$35,0))) ->  | J174: =IF('Appliances Worksheet'!G155="","",'Appliances Worksheet'!G155) ->  | N174: =IF('Appliances Worksheet'!J155="","",'Appliances Worksheet'!J155) ->  | P174: =IF('Appliances Worksheet'!E155="","",'Appliances Worksheet'!E155) -> 
D175: =IF('Appliances Worksheet'!E156="",NA(),INDEX('Appliances References'!$O$5:$O$35,MATCH(RIGHT('Appliance Calculations'!A138,8),'Appliances References'!$N$5:$N$35,0))) ->  | J175: =IF('Appliances Worksheet'!J156="","",'Appliances Worksheet'!J156) ->  | N175: =IF('Appliances Worksheet'!J156="","",'Appliances Worksheet'!J156) ->  | P175: =IF('Appliances Worksheet'!E156="","",'Appliances Worksheet'!E156) -> 
D176: =IF('Appliances Worksheet'!E157="",NA(),INDEX('Appliances References'!$O$5:$O$35,MATCH(RIGHT('Appliance Calculations'!A139,8),'Appliances References'!$N$5:$N$35,0))) ->  | J176: =IF('Appliances Worksheet'!J157="","",'Appliances Worksheet'!J157) ->  | N176: =IF('Appliances Worksheet'!J157="","",'Appliances Worksheet'!J157) ->  | P176: =IF('Appliances Worksheet'!E157="","",'Appliances Worksheet'!E157) -> 
D177: =IF('Appliances Worksheet'!E158="",NA(),INDEX('Appliances References'!$O$5:$O$35,MATCH(RIGHT('Appliance Calculations'!A140,8),'Appliances References'!$N$5:$N$35,0))) ->  | J177: =IF('Appliances Worksheet'!J158="","",'Appliances Worksheet'!J158) ->  | N177: =IF('Appliances Worksheet'!J158="","",'Appliances Worksheet'!J158) ->  | P177: =IF('Appliances Worksheet'!E158="","",'Appliances Worksheet'!E158) -> 
D178: =IF('Appliances Worksheet'!E159="",NA(),INDEX('Appliances References'!$O$5:$O$35,MATCH(RIGHT('Appliance Calculations'!A141,8),'Appliances References'!$N$5:$N$35,0))) ->  | J178: =IF('Appliances Worksheet'!J159="","",'Appliances Worksheet'!J159) ->  | N178: =IF('Appliances Worksheet'!J159="","",'Appliances Worksheet'!J159) ->  | P178: =IF('Appliances Worksheet'!E159="","",'Appliances Worksheet'!E159) -> 
D179: =IF('Appliances Worksheet'!E160="",NA(),INDEX('Appliances References'!$O$5:$O$35,MATCH(RIGHT('Appliance Calculations'!A142,8),'Appliances References'!$N$5:$N$35,0))) ->  | J179: =IF('Appliances Worksheet'!J160="","",'Appliances Worksheet'!J160) ->  | N179: =IF('Appliances Worksheet'!J160="","",'Appliances Worksheet'!J160) ->  | P179: =IF('Appliances Worksheet'!E160="","",'Appliances Worksheet'!E160) -> 
D180: =IF('Appliances Worksheet'!E161="",NA(),INDEX('Appliances References'!$O$5:$O$35,MATCH(RIGHT('Appliance Calculations'!A143,8),'Appliances References'!$N$5:$N$35,0))) ->  | J180: =IF('Appliances Worksheet'!J161="","",'Appliances Worksheet'!J161) ->  | N180: =IF('Appliances Worksheet'!J161="","",'Appliances Worksheet'!J161) ->  | P180: =IF('Appliances Worksheet'!E161="","",'Appliances Worksheet'!E161) -> 
D181: =IF('Appliances Worksheet'!E162="",NA(),INDEX('Appliances References'!$O$5:$O$35,MATCH(RIGHT('Appliance Calculations'!A144,8),'Appliances References'!$N$5:$N$35,0))) ->  | J181: =IF('Appliances Worksheet'!J162="","",'Appliances Worksheet'!J162) ->  | N181: =IF('Appliances Worksheet'!J162="","",'Appliances Worksheet'!J162) ->  | P181: =IF('Appliances Worksheet'!E162="","",'Appliances Worksheet'!E162) -> 
D182: =IF('Appliances Worksheet'!E163="",NA(),INDEX('Appliances References'!$O$5:$O$35,MATCH(RIGHT('Appliance Calculations'!A145,8),'Appliances References'!$N$5:$N$35,0))) ->  | J182: =IF('Appliances Worksheet'!G163="","",'Appliances Worksheet'!G163) -> Manufacturer | N182: =IF('Appliances Worksheet'!J163="","",'Appliances Worksheet'!J163) -> Model Number | P182: =IF('Appliances Worksheet'!E163="","",'Appliances Worksheet'!E163) -> Proposed Quantity
D183: =IF('Appliances Worksheet'!E164="",NA(),INDEX('Appliances References'!$O$5:$O$35,MATCH(RIGHT('Appliance Calculations'!A146,8),'Appliances References'!$N$5:$N$35,0))) ->  | J183: =IF('Appliances Worksheet'!G164="","",'Appliances Worksheet'!G164) ->  | N183: =IF('Appliances Worksheet'!J164="","",'Appliances Worksheet'!J164) ->  | P183: =IF('Appliances Worksheet'!E164="","",'Appliances Worksheet'!E164) -> 
D184: =IF('Appliances Worksheet'!E165="",NA(),INDEX('Appliances References'!$O$5:$O$35,MATCH(RIGHT('Appliance Calculations'!A147,8),'Appliances References'!$N$5:$N$35,0))) ->  | J184: =IF('Appliances Worksheet'!G165="","",'Appliances Worksheet'!G165) ->  | N184: =IF('Appliances Worksheet'!J165="","",'Appliances Worksheet'!J165) ->  | P184: =IF('Appliances Worksheet'!E165="","",'Appliances Worksheet'!E165) -> 
D185: =IF('Appliances Worksheet'!E166="",NA(),INDEX('Appliances References'!$O$5:$O$35,MATCH(RIGHT('Appliance Calculations'!A148,8),'Appliances References'!$N$5:$N$35,0))) ->  | J185: =IF('Appliances Worksheet'!G166="","",'Appliances Worksheet'!G166) ->  | N185: =IF('Appliances Worksheet'!J166="","",'Appliances Worksheet'!J166) ->  | P185: =IF('Appliances Worksheet'!E166="","",'Appliances Worksheet'!E166) -> 
D186: =IF('Appliances Worksheet'!E167="",NA(),INDEX('Appliances References'!$O$5:$O$35,MATCH(RIGHT('Appliance Calculations'!A149,8),'Appliances References'!$N$5:$N$35,0))) ->  | J186: =IF('Appliances Worksheet'!G167="","",'Appliances Worksheet'!G167) ->  | N186: =IF('Appliances Worksheet'!J167="","",'Appliances Worksheet'!J167) ->  | P186: =IF('Appliances Worksheet'!E167="","",'Appliances Worksheet'!E167) -> 
D187: =IF('Appliances Worksheet'!E168="",NA(),INDEX('Appliances References'!$O$5:$O$35,MATCH(RIGHT('Appliance Calculations'!A150,8),'Appliances References'!$N$5:$N$35,0))) ->  | J187: =IF('Appliances Worksheet'!J168="","",'Appliances Worksheet'!J168) ->  | N187: =IF('Appliances Worksheet'!J168="","",'Appliances Worksheet'!J168) ->  | P187: =IF('Appliances Worksheet'!E168="","",'Appliances Worksheet'!E168) -> 
D188: =IF('Appliances Worksheet'!E169="",NA(),INDEX('Appliances References'!$O$5:$O$35,MATCH(RIGHT('Appliance Calculations'!A151,8),'Appliances References'!$N$5:$N$35,0))) ->  | J188: =IF('Appliances Worksheet'!J169="","",'Appliances Worksheet'!J169) ->  | N188: =IF('Appliances Worksheet'!J169="","",'Appliances Worksheet'!J169) ->  | P188: =IF('Appliances Worksheet'!E169="","",'Appliances Worksheet'!E169) -> 
D189: =IF('Appliances Worksheet'!E170="",NA(),INDEX('Appliances References'!$O$5:$O$35,MATCH(RIGHT('Appliance Calculations'!A152,8),'Appliances References'!$N$5:$N$35,0))) ->  | J189: =IF('Appliances Worksheet'!J170="","",'Appliances Worksheet'!J170) ->  | N189: =IF('Appliances Worksheet'!J170="","",'Appliances Worksheet'!J170) ->  | P189: =IF('Appliances Worksheet'!E170="","",'Appliances Worksheet'!E170) -> 
D190: =IF('Appliances Worksheet'!E171="",NA(),INDEX('Appliances References'!$O$5:$O$35,MATCH(RIGHT('Appliance Calculations'!A153,8),'Appliances References'!$N$5:$N$35,0))) ->  | J190: =IF('Appliances Worksheet'!J171="","",'Appliances Worksheet'!J171) ->  | N190: =IF('Appliances Worksheet'!J171="","",'Appliances Worksheet'!J171) ->  | P190: =IF('Appliances Worksheet'!E171="","",'Appliances Worksheet'!E171) -> 
